Workbook

Sheet Prezenční listina (hidden)
A1: ="Prezenční listina - Malý svratecký maraton "&O2 -> Prezenční listina - Malý svratecký maraton 2017
B2: Příjmení | C2: Jméno | D2: Narození | E2: Oddíl / Bydliště | F2: Startovní číslo | G2: Datum přihlášení na Stopcy.com | H2: Kategorie | O2: 2017 | S2: Pohlaví
A3: 1 | B3: Bartoňková | C3: Nina | D3: 1990 | E3: Fan Brno | F3: 35 | G3: 2017-08-03 | H3: =IF(S3<>"Ž",IF($O$2-D3>39,IF($O$2-D3>49,IF($O$2-D3>59,IF($O$2-D3>69,IF($O$2-D3>90,"","E"),"D"),"C"),"B"),"A"),IF(S3="Ž",IF($O$2-D3>34,IF($O$2-D3>44,IF($O$2-D3>90,"","H"),"G"),"F"))) -> F | S3: =IF(LEN(B3)=0," ",IF(MID(B3,LEN(B3),1)="á","Ž","M")) -> Ž
A4: =IF(B4<>0,A3+1,"") -> 2 | B4: Bojanovská | C4: Alena | D4: 1975 | E4: Žďár nad Sázavou | F4: 45 | G4: 2017-08-11 | H4: G | S4: Ž
A5: 3 | B5: Faja | C5: Ondřej | D5: 1976 | E5: Brno | F5: 69 | G5: 2017-07-23 | H5: B | S5: M
A6: 4 | B6: Glier | C6: Miroslav | D6: 1949 | E6: Ústí nad Labem | F6: 80 | G6: 2017-08-06 | H6: D | K6: Rok nastavit v buňce O2 | S6: M
A7: 5 | B7: Glier | C7: Michal | D7: 1982 | E7: SDH Doubravník | F7: 79 | G7: 2017-08-06 | H7: A | S7: M
A8: 6 | B8: Holý | C8: Josef | D8: 1941 | E8: AC Moravská Slavia Brno | F8: 10 | G8: 2017-08-15 | H8: E | S8: M
A9: 7 | B9: Hübner | C9: Tomáš | D9: 1979 | E9: SDH Bolešín | F9: 4 | G9: 2017-08-14 | H9: A | S9: M
A10: 8 | B10: Chramosta | C10: Jaroslav | D10: 1966 | E10: JABOJA Team Dobrná | F10: 8 | G10: 2017-08-15 | H10: C | S10: M
A11: 9 | B11: Kalich | C11: Radim | D11: 1985 | E11: Odranec | F11: 73 | G11: 2017-08-05 | H11: A | S11: M
A12: 10 | B12: Komárková | C12: Zdeňka | D12: 1974 | E12: SDH Bolešín | F12: 5 | G12: 2017-08-21 | H12: G | S12: Ž
A13: 11 | B13: Krátký | C13: Josef | D13: 1965 | E13: Hvězda Pardubice | G13: 2017-08-07 | H13: C | S13: M
A14: 12 | B14: Kratochvíl | C14: Jaroslav | D14: 1977 | E14: SDH Hluboké | F14: 75 | G14: 2017-08-20 | H14: B | S14: M
A15: 13 | B15: Křípalová | C15: Renata | D15: 1983 | E15: Třebíč | F15: 30 | G15: 2017-08-21 | H15: F | S15: Ž
A16: 14 | B16: Křižovičová | C16: Hana | D16: 1971 | E16: Nové Město na Moravě | F16: 41 | G16: 2017-08-22 | H16: H | S16: Ž
A17: 15 | B17: Lorenzová | C17: Dana | D17: 1968 | E17: Nové Město na Moravě | G17: 2017-08-16 | H17: H | S17: Ž
A18: 16 | B18: Mareš | C18: Bohumil | D18: 1951 | E18: LEAR Brno | F18: 42 | G18: 2017-08-09 | H18: D | S18: M
A19: 17 | B19: Martincová | C19: Ivana | D19: 1963 | E19: AC Moravská Slavia Brno | F19: 13 | G19: 2017-08-09 | H19: H | S19: Ž
A20: 18 | B20: Mlčáková | C20: Hana | D20: 1981 | E20: Strážnice | F20: 72 | G20: 2017-07-18 | H20: G | S20: Ž
A21: 19 | B21: Münster | C21: Libor | D21: 1966 | E21: Blansko | F21: 63 | G21: 2017-08-17 | H21: C | S21: M
A22: 20 | B22: Novotný | C22: Petr | D22: 1965 | E22: AK Kuřim | F22: 47 | G22: 2017-07-23 | H22: C | S22: M
A23: 21 | B23: Orálek | C23: Daniel | D23: 1970 | E23: behejbrno.com | F23: 82 | G23: 2017-08-04 | H23: B | S23: M
A24: 22 | B24: Ožana | C24: Václav | D24: 1964 | E24: Zakisova-skolabehu | G24: 2017-07-25 | H24: C | S24: M
A25: 23 | B25: Pešáková | C25: Mirka | D25: 1985 | E25: AC Racers Tetčice | F25: 46 | G25: 2017-08-17 | H25: F | S25: Ž
A26: 24 | B26: Petrů | C26: Roman | D26: 1976 | E26: Drnovice | G26: 2016-12-28 | H26: B | S26: M
A27: 25 | B27: Podmelová | C27: Vilma | D27: 1962 | E27: AC Moravská Slavia Brno | F27: 67 | G27: 2017-08-10 | H27: H | S27: Ž
A28: 26 | B28: Ptáček | C28: Michal | D28: 1986 | E28: člen nadšenců parku Lužánky | F28: 17 | G28: 2017-08-20 | H28: A | S28: M
A29: 27 | B29: Pučálka | C29: Radek | D29: 1973 | E29: Železárny Štěpánov s.r.o | F29: 28 | G29: 2017-07-16 | H29: B | S29: M
A30: 28 | B30: Řezníček | C30: Roman | D30: 1977 | E30: Žďár nad Sázavou | F30: 44 | G30: 2017-08-11 | H30: B | S30: M
A31: 29 | B31: Sedláček | C31: Svatopluk | D31: 1957 | E31: AC Moravská Slavia Brno | F31: 84 | G31: 2017-08-18 | H31: D | S31: M
A32: 30 | B32: Stöger | C32: Karel | D32: 1976 | E32: fKlidu Brno | F32: 21 | G32: 2017-08-18 | H32: B | S32: M
A33: 31 | B33: Šedová | C33: Věra | D33: 1964 | E33: Praha | F33: 26 | G33: 2017-08-20 | H33: H | S33: Ž
A34: 32 | B34: Škvařilová | C34: Eva | D34: 1973 | E34: RSFK Říčany | F34: 31 | G34: 2017-08-21 | H34: G | S34: Ž
A35: 33 | B35: Šorf | C35: Ivo | D35: 1975 | E35: ABND Racing Team Bystřice n. P. | F35: 23 | G35: 2017-08-10 | H35: B | S35: =IF(LEN(B35)=0," ",IF(MID(B35,LEN(B35),1)="á","Ž","M")) -> M
A36: =IF(B36<>0,A35+1,"") -> 34 | B36: Tesařová | C36: Marie | D36: 1954 | E36: Křižanov | F36: 9 | G36: 2017-08-11 | H36: H | S36: Ž
A37: 35 | B37: Vlachová Hutová | C37: Eliška | D37: 1988 | E37: Brno | F37: 56 | G37: 2017-05-14 | H37: F | S37: Ž
A38: 36 | B38: Zouhar | C38: Libor | D38: 1958 | E38: Brno-Líšeň | F38: 14 | G38: 2017-08-18 | H38: C | S38: M
A39: 37 | B39: Žličař | C39: Karel | D39: 1977 | E39: Železárny Štěpánov s.r.o | F39: 27 | G39: 2017-07-16 | H39: B | S39: M
A40: 38 | B40: Hanslová | C40: Lenka | D40: 1973 | E40: Žďár nad Sázavou | F40: 40 | G40: 2017-08-25 | H40: =IF(S40<>"Ž",IF($O$2-D40>39,IF($O$2-D40>49,IF($O$2-D40>59,IF($O$2-D40>69,IF($O$2-D40>90,"","E"),"D"),"C"),"B"),"A"),IF(S40="Ž",IF($O$2-D40>34,IF($O$2-D40>44,IF($O$2-D40>90,"","H"),"G"),"F"))) -> G | S40: Ž
A41: 39 | B41: Podsedník | C41: Marek | D41: 1985 | E41: Brno | F41: 2 | H41: A | S41: M
A42: 40 | B42: Ježová | C42: Martina | D42: 1975 | E42: Brno | F42: 3 | H42: G | S42: Ž
A43: 41 | B43: Navrátilová | C43: Vlasta | D43: 1983 | E43: Vír | F43: 6 | H43: F | S43: Ž
A44: 42 | B44: Koutský | C44: Tomáš | D44: 1987 | E44: Ledová stěna Vír | F44: 76 | G44: 2017-08-21 | H44: A | S44: M
A45: 43 | B45: Dostálová | C45: Vendula | D45: 1981 | E45: Digitor.cz | F45: 11 | H45: G | S45: Ž
A46: 44 | B46: Pivec | C46: Jan | D46: 1981 | E46: Digitor.cz | F46: 12 | H46: A | S46: M
A47: 45 | B47: Czerný | C47: Pavel | D47: 1981 | E47: BKB | F47: 19 | H47: A | S47: M
A48: 46 | B48: Ďurdiaková | C48: Tereza | D48: 1991 | E48: AK OLYMP Brno | F48: 22 | H48: F | S48: Ž
A49: 47 | B49: Vrba | C49: Tomáš | D49: 1986 | E49: Bystré | F49: 24 | H49: A | S49: M
A50: 48 | B50: Benko | C50: Jan | D50: 1974 | E50: GOMANGO Litomyšl | F50: 18 | H50: B | S50: M
A51: 49 | B51: Klíma | C51: Miroslav | D51: 1975 | E51: Brno | F51: 33 | H51: B | S51: M
A52: 50 | B52: Fanfrdla | C52: Dalimil | D52: 1973 | E52: Matyteam Brno | F52: 34 | H52: B | S52: M
A53: 51 | B53: Fanfrdla | C53: Ctirad | D53: 1974 | E53: Silůvky | F53: 36 | H53: B | S53: M
A54: 52 | B54: Bělehrádek | C54: Pavel | D54: 1958 | E54: TJ Čolek | F54: 37 | H54: C | S54: M
A55: 53 | B55: Chromý | C55: Bořivoj | D55: 1953 | E55: Tišnov | F55: 38 | H55: D | S55: M
A56: 54 | B56: Plekanec | C56: Juraj | D56: 1974 | E56: Brno | F56: 48 | H56: B | S56: M
A57: 55 | B57: Ondráček | C57: Tomáš | D57: 1977 | E57: Brno | F57: 49 | H57: B | S57: M
A58: 56 | B58: Dvořák | C58: Vojtěch | D58: 1974 | E58: Brno | F58: 51 | H58: B | S58: M
A59: 57 | B59: Drózd | C59: Januš | D59: 1962 | E59: Velké Přílepy | F59: 54 | H59: C | S59: M
A60: 58 | B60: Benešová | C60: Marie | D60: 1982 | E60: Dolní Rožínka | F60: 58 | H60: G | S60: Ž
A61: 59 | B61: Rokosová | C61: Ivana | D61: 1982 | E61: Polička | F61: 60 | H61: G | S61: Ž
A62: 60 | B62: Nekuža | C62: Jiří | D62: 1951 | E62: RUNNERS Zbýšov | F62: 61 | H62: D | S62: M
A63: 61 | B63: Tomek | C63: Pavel | D63: 1980 | E63: Brno | F63: 62 | H63: A | S63: M
A64: 62 | B64: Kohut | C64: Jan | D64: 1985 | E64: MAX-TRAINING.CZ | F64: 64 | H64: A | S64: M
A65: 63 | B65: Kalich | C65: Daniel | D65: 1982 | E65: Brno | F65: 70 | H65: A | S65: M
A66: 64 | B66: Krajča | C66: Rudy | D66: 1965 | E66: rarecacti.com | F66: 77 | H66: C | S66: M
A67: 65 | B67: Zourek | C67: Karel | D67: 1959 | E67: Bedřichovice | F67: 83 | H67: =IF(S67<>"Ž",IF($O$2-D67>39,IF($O$2-D67>49,IF($O$2-D67>59,IF($O$2-D67>69,IF($O$2-D67>90,"","E"),"D"),"C"),"B"),"A"),IF(S67="Ž",IF($O$2-D67>34,IF($O$2-D67>44,IF($O$2-D67>90,"","H"),"G"),"F"))) -> C | S67: =IF(LEN(B67)=0," ",IF(MID(B67,LEN(B67),1)="á","Ž","M")) -> M
A68: 66 | B68: Příhoda | C68: Jan | D68: 1983 | E68: Ždánice | F68: 85 | H68: A | S68: M
A69: 67 | B69: Benc | C69: Karel | D69: 1975 | E69: Pivonice | F69: 86 | H69: B | S69: M
H99: =IF(S99<>"Ž",IF($O$2-D99>39,IF($O$2-D99>49,IF($O$2-D99>59,IF($O$2-D99>69,IF($O$2-D99>90,"","E"),"D"),"C"),"B"),"A"),IF(S99="Ž",IF($O$2-D99>34,IF($O$2-D99>44,IF($O$2-D99>90,"","H"),"G"),"F"))) ->  | S99: =IF(LEN(B99)=0," ",IF(MID(B99,LEN(B99),1)="á","Ž","M")) -> 
A100: =IF(B100<>0,A99+1,"") -> 
H131: =IF(S131<>"Ž",IF($O$2-D131>39,IF($O$2-D131>49,IF($O$2-D131>59,IF($O$2-D131>69,IF($O$2-D131>90,"","E"),"D"),"C"),"B"),"A"),IF(S131="Ž",IF($O$2-D131>34,IF($O$2-D131>44,IF($O$2-D131>90,"","H"),"G"),"F"))) ->  | S131: =IF(LEN(B131)=0," ",IF(MID(B131,LEN(B131),1)="á","Ž","M")) -> 

Sheet Startovní listina
A1: ="Startovní listina - Malý svratecký maraton "&'Prezenční listina'!O2 -> Startovní listina - Malý svratecký maraton 2017
A2: 2017-08-26 | I2: Počet přihlášených v jednotlivých kategoriích
A3: ='Prezenční listina'!O2-1953&". ročník" -> 64. ročník | L3: Celkem startujících
B4: Startovní číslo | C4: Příjmení | D4: Jméno | E4: Narození | F4: Oddíl / Bydliště | G4: Kategorie
A5: 1 | B5: =IF('Prezenční listina'!F41=0,"",'Prezenční listina'!F41) -> 2 | C5: =IF('Prezenční listina'!F41=0,"",'Prezenční listina'!B41) -> Podsedník | D5: =IF('Prezenční listina'!F41=0,"",'Prezenční listina'!C41) -> Marek | E5: =IF('Prezenční listina'!F41=0,"",'Prezenční listina'!D41) -> 1985 | F5: =IF('Prezenční listina'!F41=0,"",'Prezenční listina'!E41) -> Brno | G5: =IF('Prezenční listina'!F41=0,"",'Prezenční listina'!H41) -> A | I5: A: | J5: =COUNTIF($G$5:$G$141,"A") -> 13 | L5: =COUNT(B5:B141) -> 63
A6: =IF(C6="","",A5+1) -> 2 | B6: =IF('Prezenční listina'!F42=0,"",'Prezenční listina'!F42) -> 3 | C6: =IF('Prezenční listina'!F42=0,"",'Prezenční listina'!B42) -> Ježová | D6: =IF('Prezenční listina'!F42=0,"",'Prezenční listina'!C42) -> Martina | E6: =IF('Prezenční listina'!F42=0,"",'Prezenční listina'!D42) -> 1975 | F6: =IF('Prezenční listina'!F42=0,"",'Prezenční listina'!E42) -> Brno | G6: =IF('Prezenční listina'!F42=0,"",'Prezenční listina'!H42) -> G | I6: B: | J6: =COUNTIF($G$5:$G$141,"B") -> 16
A7: 3 | B7: =IF('Prezenční listina'!F9=0,"",'Prezenční listina'!F9) -> 4 | C7: =IF('Prezenční listina'!F9=0,"",'Prezenční listina'!B9) -> Hübner | D7: =IF('Prezenční listina'!F9=0,"",'Prezenční listina'!C9) -> Tomáš | E7: =IF('Prezenční listina'!F9=0,"",'Prezenční listina'!D9) -> 1979 | F7: =IF('Prezenční listina'!F9=0,"",'Prezenční listina'!E9) -> SDH Bolešín | G7: =IF('Prezenční listina'!F9=0,"",'Prezenční listina'!H9) -> A | I7: C: | J7: =COUNTIF($G$5:$G$141,"C") -> 8
A8: 4 | B8: =IF('Prezenční listina'!F12=0,"",'Prezenční listina'!F12) -> 5 | C8: =IF('Prezenční listina'!F12=0,"",'Prezenční listina'!B12) -> Komárková | D8: =IF('Prezenční listina'!F12=0,"",'Prezenční listina'!C12) -> Zdeňka | E8: =IF('Prezenční listina'!F12=0,"",'Prezenční listina'!D12) -> 1974 | F8: =IF('Prezenční listina'!F12=0,"",'Prezenční listina'!E12) -> SDH Bolešín | G8: =IF('Prezenční listina'!F12=0,"",'Prezenční listina'!H12) -> G | I8: D: | J8: =COUNTIF($G$5:$G$141,"D") -> 5
A9: 5 | B9: =IF('Prezenční listina'!F43=0,"",'Prezenční listina'!F43) -> 6 | C9: =IF('Prezenční listina'!F43=0,"",'Prezenční listina'!B43) -> Navrátilová | D9: =IF('Prezenční listina'!F43=0,"",'Prezenční listina'!C43) -> Vlasta | E9: =IF('Prezenční listina'!F43=0,"",'Prezenční listina'!D43) -> 1983 | F9: =IF('Prezenční listina'!F43=0,"",'Prezenční listina'!E43) -> Vír | G9: =IF('Prezenční listina'!F43=0,"",'Prezenční listina'!H43) -> F | I9: E: | J9: =COUNTIF($G$5:$G$141,"E") -> 1
A10: 6 | B10: =IF('Prezenční listina'!F10=0,"",'Prezenční listina'!F10) -> 8 | C10: =IF('Prezenční listina'!F10=0,"",'Prezenční listina'!B10) -> Chramosta | D10: =IF('Prezenční listina'!F10=0,"",'Prezenční listina'!C10) -> Jaroslav | E10: =IF('Prezenční listina'!F10=0,"",'Prezenční listina'!D10) -> 1966 | F10: =IF('Prezenční listina'!F10=0,"",'Prezenční listina'!E10) -> JABOJA Team Dobrná | G10: =IF('Prezenční listina'!F10=0,"",'Prezenční listina'!H10) -> C | I10: F: | J10: =COUNTIF($G$5:$G$141,"F") -> 6
A11: 7 | B11: =IF('Prezenční listina'!F36=0,"",'Prezenční listina'!F36) -> 9 | C11: =IF('Prezenční listina'!F36=0,"",'Prezenční listina'!B36) -> Tesařová | D11: =IF('Prezenční listina'!F36=0,"",'Prezenční listina'!C36) -> Marie | E11: =IF('Prezenční listina'!F36=0,"",'Prezenční listina'!D36) -> 1954 | F11: =IF('Prezenční listina'!F36=0,"",'Prezenční listina'!E36) -> Křižanov | G11: =IF('Prezenční listina'!F36=0,"",'Prezenční listina'!H36) -> H | I11: G: | J11: =COUNTIF($G$5:$G$141,"G") -> 9
A12: 8 | B12: =IF('Prezenční listina'!F8=0,"",'Prezenční listina'!F8) -> 10 | C12: =IF('Prezenční listina'!F8=0,"",'Prezenční listina'!B8) -> Holý | D12: =IF('Prezenční listina'!F8=0,"",'Prezenční listina'!C8) -> Josef | E12: =IF('Prezenční listina'!F8=0,"",'Prezenční listina'!D8) -> 1941 | F12: =IF('Prezenční listina'!F8=0,"",'Prezenční listina'!E8) -> AC Moravská Slavia Brno | G12: =IF('Prezenční listina'!F8=0,"",'Prezenční listina'!H8) -> E | I12: H: | J12: =COUNTIF($G$5:$G$141,"H") -> 5
A13: 9 | B13: =IF('Prezenční listina'!F45=0,"",'Prezenční listina'!F45) -> 11 | C13: =IF('Prezenční listina'!F45=0,"",'Prezenční listina'!B45) -> Dostálová | D13: =IF('Prezenční listina'!F45=0,"",'Prezenční listina'!C45) -> Vendula | E13: =IF('Prezenční listina'!F45=0,"",'Prezenční listina'!D45) -> 1981 | F13: =IF('Prezenční listina'!F45=0,"",'Prezenční listina'!E45) -> Digitor.cz | G13: =IF('Prezenční listina'!F45=0,"",'Prezenční listina'!H45) -> G
A14: 10 | B14: =IF('Prezenční listina'!F46=0,"",'Prezenční listina'!F46) -> 12 | C14: =IF('Prezenční listina'!F46=0,"",'Prezenční listina'!B46) -> Pivec | D14: =IF('Prezenční listina'!F46=0,"",'Prezenční listina'!C46) -> Jan | E14: =IF('Prezenční listina'!F46=0,"",'Prezenční listina'!D46) -> 1981 | F14: =IF('Prezenční listina'!F46=0,"",'Prezenční listina'!E46) -> Digitor.cz | G14: =IF('Prezenční listina'!F46=0,"",'Prezenční listina'!H46) -> A
A15: 11 | B15: =IF('Prezenční listina'!F19=0,"",'Prezenční listina'!F19) -> 13 | C15: =IF('Prezenční listina'!F19=0,"",'Prezenční listina'!B19) -> Martincová | D15: =IF('Prezenční listina'!F19=0,"",'Prezenční listina'!C19) -> Ivana | E15: =IF('Prezenční listina'!F19=0,"",'Prezenční listina'!D19) -> 1963 | F15: =IF('Prezenční listina'!F19=0,"",'Prezenční listina'!E19) -> AC Moravská Slavia Brno | G15: =IF('Prezenční listina'!F19=0,"",'Prezenční listina'!H19) -> H
A16: 12 | B16: =IF('Prezenční listina'!F38=0,"",'Prezenční listina'!F38) -> 14 | C16: =IF('Prezenční listina'!F38=0,"",'Prezenční listina'!B38) -> Zouhar | D16: =IF('Prezenční listina'!F38=0,"",'Prezenční listina'!C38) -> Libor | E16: =IF('Prezenční listina'!F38=0,"",'Prezenční listina'!D38) -> 1958 | F16: =IF('Prezenční listina'!F38=0,"",'Prezenční listina'!E38) -> Brno-Líšeň | G16: =IF('Prezenční listina'!F38=0,"",'Prezenční listina'!H38) -> C
A17: 13 | B17: =IF('Prezenční listina'!F28=0,"",'Prezenční listina'!F28) -> 17 | C17: =IF('Prezenční listina'!F28=0,"",'Prezenční listina'!B28) -> Ptáček | D17: =IF('Prezenční listina'!F28=0,"",'Prezenční listina'!C28) -> Michal | E17: =IF('Prezenční listina'!F28=0,"",'Prezenční listina'!D28) -> 1986 | F17: =IF('Prezenční listina'!F28=0,"",'Prezenční listina'!E28) -> člen nadšenců parku Lužánky | G17: =IF('Prezenční listina'!F28=0,"",'Prezenční listina'!H28) -> A
A18: 14 | B18: =IF('Prezenční listina'!F50=0,"",'Prezenční listina'!F50) -> 18 | C18: =IF('Prezenční listina'!F50=0,"",'Prezenční listina'!B50) -> Benko | D18: =IF('Prezenční listina'!F50=0,"",'Prezenční listina'!C50) -> Jan | E18: =IF('Prezenční listina'!F50=0,"",'Prezenční listina'!D50) -> 1974 | F18: =IF('Prezenční listina'!F50=0,"",'Prezenční listina'!E50) -> GOMANGO Litomyšl | G18: =IF('Prezenční listina'!F50=0,"",'Prezenční listina'!H50) -> B
A19: 15 | B19: =IF('Prezenční listina'!F47=0,"",'Prezenční listina'!F47) -> 19 | C19: =IF('Prezenční listina'!F47=0,"",'Prezenční listina'!B47) -> Czerný | D19: =IF('Prezenční listina'!F47=0,"",'Prezenční listina'!C47) -> Pavel | E19: =IF('Prezenční listina'!F47=0,"",'Prezenční listina'!D47) -> 1981 | F19: =IF('Prezenční listina'!F47=0,"",'Prezenční listina'!E47) -> BKB | G19: =IF('Prezenční listina'!F47=0,"",'Prezenční listina'!H47) -> A
A20: 16 | B20: =IF('Prezenční listina'!F32=0,"",'Prezenční listina'!F32) -> 21 | C20: =IF('Prezenční listina'!F32=0,"",'Prezenční listina'!B32) -> Stöger | D20: =IF('Prezenční listina'!F32=0,"",'Prezenční listina'!C32) -> Karel | E20: =IF('Prezenční listina'!F32=0,"",'Prezenční listina'!D32) -> 1976 | F20: =IF('Prezenční listina'!F32=0,"",'Prezenční listina'!E32) -> fKlidu Brno | G20: =IF('Prezenční listina'!F32=0,"",'Prezenční listina'!H32) -> B
A21: 17 | B21: =IF('Prezenční listina'!F48=0,"",'Prezenční listina'!F48) -> 22 | C21: =IF('Prezenční listina'!F48=0,"",'Prezenční listina'!B48) -> Ďurdiaková | D21: =IF('Prezenční listina'!F48=0,"",'Prezenční listina'!C48) -> Tereza | E21: =IF('Prezenční listina'!F48=0,"",'Prezenční listina'!D48) -> 1991 | F21: =IF('Prezenční listina'!F48=0,"",'Prezenční listina'!E48) -> AK OLYMP Brno | G21: =IF('Prezenční listina'!F48=0,"",'Prezenční listina'!H48) -> F
A22: 18 | B22: =IF('Prezenční listina'!F35=0,"",'Prezenční listina'!F35) -> 23 | C22: =IF('Prezenční listina'!F35=0,"",'Prezenční listina'!B35) -> Šorf | D22: =IF('Prezenční listina'!F35=0,"",'Prezenční listina'!C35) -> Ivo | E22: =IF('Prezenční listina'!F35=0,"",'Prezenční listina'!D35) -> 1975 | F22: =IF('Prezenční listina'!F35=0,"",'Prezenční listina'!E35) -> ABND Racing Team Bystřice n. P. | G22: =IF('Prezenční listina'!F35=0,"",'Prezenční listina'!H35) -> B
A23: 19 | B23: =IF('Prezenční listina'!F49=0,"",'Prezenční listina'!F49) -> 24 | C23: =IF('Prezenční listina'!F49=0,"",'Prezenční listina'!B49) -> Vrba | D23: =IF('Prezenční listina'!F49=0,"",'Prezenční listina'!C49) -> Tomáš | E23: =IF('Prezenční listina'!F49=0,"",'Prezenční listina'!D49) -> 1986 | F23: =IF('Prezenční listina'!F49=0,"",'Prezenční listina'!E49) -> Bystré | G23: =IF('Prezenční listina'!F49=0,"",'Prezenční listina'!H49) -> A
A24: 20 | B24: =IF('Prezenční listina'!F33=0,"",'Prezenční listina'!F33) -> 26 | C24: =IF('Prezenční listina'!F33=0,"",'Prezenční listina'!B33) -> Šedová | D24: =IF('Prezenční listina'!F33=0,"",'Prezenční listina'!C33) -> Věra | E24: =IF('Prezenční listina'!F33=0,"",'Prezenční listina'!D33) -> 1964 | F24: =IF('Prezenční listina'!F33=0,"",'Prezenční listina'!E33) -> Praha | G24: =IF('Prezenční listina'!F33=0,"",'Prezenční listina'!H33) -> H
A25: 21 | B25: =IF('Prezenční listina'!F39=0,"",'Prezenční listina'!F39) -> 27 | C25: =IF('Prezenční listina'!F39=0,"",'Prezenční listina'!B39) -> Žličař | D25: =IF('Prezenční listina'!F39=0,"",'Prezenční listina'!C39) -> Karel | E25: =IF('Prezenční listina'!F39=0,"",'Prezenční listina'!D39) -> 1977 | F25: =IF('Prezenční listina'!F39=0,"",'Prezenční listina'!E39) -> Železárny Štěpánov s.r.o | G25: =IF('Prezenční listina'!F39=0,"",'Prezenční listina'!H39) -> B
A26: 22 | B26: =IF('Prezenční listina'!F29=0,"",'Prezenční listina'!F29) -> 28 | C26: =IF('Prezenční listina'!F29=0,"",'Prezenční listina'!B29) -> Pučálka | D26: =IF('Prezenční listina'!F29=0,"",'Prezenční listina'!C29) -> Radek | E26: =IF('Prezenční listina'!F29=0,"",'Prezenční listina'!D29) -> 1973 | F26: =IF('Prezenční listina'!F29=0,"",'Prezenční listina'!E29) -> Železárny Štěpánov s.r.o | G26: =IF('Prezenční listina'!F29=0,"",'Prezenční listina'!H29) -> B
A27: 23 | B27: =IF('Prezenční listina'!F15=0,"",'Prezenční listina'!F15) -> 30 | C27: =IF('Prezenční listina'!F15=0,"",'Prezenční listina'!B15) -> Křípalová | D27: =IF('Prezenční listina'!F15=0,"",'Prezenční listina'!C15) -> Renata | E27: =IF('Prezenční listina'!F15=0,"",'Prezenční listina'!D15) -> 1983 | F27: =IF('Prezenční listina'!F15=0,"",'Prezenční listina'!E15) -> Třebíč | G27: =IF('Prezenční listina'!F15=0,"",'Prezenční listina'!H15) -> F
A28: 24 | B28: =IF('Prezenční listina'!F34=0,"",'Prezenční listina'!F34) -> 31 | C28: =IF('Prezenční listina'!F34=0,"",'Prezenční listina'!B34) -> Škvařilová | D28: =IF('Prezenční listina'!F34=0,"",'Prezenční listina'!C34) -> Eva | E28: =IF('Prezenční listina'!F34=0,"",'Prezenční listina'!D34) -> 1973 | F28: =IF('Prezenční listina'!F34=0,"",'Prezenční listina'!E34) -> RSFK Říčany | G28: =IF('Prezenční listina'!F34=0,"",'Prezenční listina'!H34) -> G
A29: 25 | B29: =IF('Prezenční listina'!F51=0,"",'Prezenční listina'!F51) -> 33 | C29: =IF('Prezenční listina'!F51=0,"",'Prezenční listina'!B51) -> Klíma | D29: =IF('Prezenční listina'!F51=0,"",'Prezenční listina'!C51) -> Miroslav | E29: =IF('Prezenční listina'!F51=0,"",'Prezenční listina'!D51) -> 1975 | F29: =IF('Prezenční listina'!F51=0,"",'Prezenční listina'!E51) -> Brno | G29: =IF('Prezenční listina'!F51=0,"",'Prezenční listina'!H51) -> B
A30: 26 | B30: =IF('Prezenční listina'!F52=0,"",'Prezenční listina'!F52) -> 34 | C30: =IF('Prezenční listina'!F52=0,"",'Prezenční listina'!B52) -> Fanfrdla | D30: =IF('Prezenční listina'!F52=0,"",'Prezenční listina'!C52) -> Dalimil | E30: =IF('Prezenční listina'!F52=0,"",'Prezenční listina'!D52) -> 1973 | F30: =IF('Prezenční listina'!F52=0,"",'Prezenční listina'!E52) -> Matyteam Brno | G30: =IF('Prezenční listina'!F52=0,"",'Prezenční listina'!H52) -> B
A31: 27 | B31: =IF('Prezenční listina'!F3=0,"",'Prezenční listina'!F3) -> 35 | C31: =IF('Prezenční listina'!F3=0,"",'Prezenční listina'!B3) -> Bartoňková | D31: =IF('Prezenční listina'!F3=0,"",'Prezenční listina'!C3) -> Nina | E31: =IF('Prezenční listina'!F3=0,"",'Prezenční listina'!D3) -> 1990 | F31: =IF('Prezenční listina'!F3=0,"",'Prezenční listina'!E3) -> Fan Brno | G31: =IF('Prezenční listina'!F3=0,"",'Prezenční listina'!H3) -> F
A32: 28 | B32: =IF('Prezenční listina'!F53=0,"",'Prezenční listina'!F53) -> 36 | C32: =IF('Prezenční listina'!F53=0,"",'Prezenční listina'!B53) -> Fanfrdla | D32: =IF('Prezenční listina'!F53=0,"",'Prezenční listina'!C53) -> Ctirad | E32: =IF('Prezenční listina'!F53=0,"",'Prezenční listina'!D53) -> 1974 | F32: =IF('Prezenční listina'!F53=0,"",'Prezenční listina'!E53) -> Silůvky | G32: =IF('Prezenční listina'!F53=0,"",'Prezenční listina'!H53) -> B
A33: 29 | B33: =IF('Prezenční listina'!F54=0,"",'Prezenční listina'!F54) -> 37 | C33: =IF('Prezenční listina'!F54=0,"",'Prezenční listina'!B54) -> Bělehrádek | D33: =IF('Prezenční listina'!F54=0,"",'Prezenční listina'!C54) -> Pavel | E33: =IF('Prezenční listina'!F54=0,"",'Prezenční listina'!D54) -> 1958 | F33: =IF('Prezenční listina'!F54=0,"",'Prezenční listina'!E54) -> TJ Čolek | G33: =IF('Prezenční listina'!F54=0,"",'Prezenční listina'!H54) -> C
A34: 30 | B34: =IF('Prezenční listina'!F55=0,"",'Prezenční listina'!F55) -> 38 | C34: =IF('Prezenční listina'!F55=0,"",'Prezenční listina'!B55) -> Chromý | D34: =IF('Prezenční listina'!F55=0,"",'Prezenční listina'!C55) -> Bořivoj | E34: =IF('Prezenční listina'!F55=0,"",'Prezenční listina'!D55) -> 1953 | F34: =IF('Prezenční listina'!F55=0,"",'Prezenční listina'!E55) -> Tišnov | G34: =IF('Prezenční listina'!F55=0,"",'Prezenční listina'!H55) -> D
A35: 31 | B35: =IF('Prezenční listina'!F40=0,"",'Prezenční listina'!F40) -> 40 | C35: =IF('Prezenční listina'!F40=0,"",'Prezenční listina'!B40) -> Hanslová | D35: =IF('Prezenční listina'!F40=0,"",'Prezenční listina'!C40) -> Lenka | E35: =IF('Prezenční listina'!F40=0,"",'Prezenční listina'!D40) -> 1973 | F35: =IF('Prezenční listina'!F40=0,"",'Prezenční listina'!E40) -> Žďár nad Sázavou | G35: =IF('Prezenční listina'!F40=0,"",'Prezenční listina'!H40) -> G
A36: 32 | B36: =IF('Prezenční listina'!F16=0,"",'Prezenční listina'!F16) -> 41 | C36: =IF('Prezenční listina'!F16=0,"",'Prezenční listina'!B16) -> Křižovičová | D36: =IF('Prezenční listina'!F16=0,"",'Prezenční listina'!C16) -> Hana | E36: =IF('Prezenční listina'!F16=0,"",'Prezenční listina'!D16) -> 1971 | F36: =IF('Prezenční listina'!F16=0,"",'Prezenční listina'!E16) -> Nové Město na Moravě | G36: =IF('Prezenční listina'!F16=0,"",'Prezenční listina'!H16) -> H
A37: 33 | B37: =IF('Prezenční listina'!F18=0,"",'Prezenční listina'!F18) -> 42 | C37: =IF('Prezenční listina'!F18=0,"",'Prezenční listina'!B18) -> Mareš | D37: =IF('Prezenční listina'!F18=0,"",'Prezenční listina'!C18) -> Bohumil | E37: =IF('Prezenční listina'!F18=0,"",'Prezenční listina'!D18) -> 1951 | F37: =IF('Prezenční listina'!F18=0,"",'Prezenční listina'!E18) -> LEAR Brno | G37: =IF('Prezenční listina'!F18=0,"",'Prezenční listina'!H18) -> D
A38: 34 | B38: =IF('Prezenční listina'!F30=0,"",'Prezenční listina'!F30) -> 44 | C38: =IF('Prezenční listina'!F30=0,"",'Prezenční listina'!B30) -> Řezníček | D38: =IF('Prezenční listina'!F30=0,"",'Prezenční listina'!C30) -> Roman | E38: =IF('Prezenční listina'!F30=0,"",'Prezenční listina'!D30) -> 1977 | F38: =IF('Prezenční listina'!F30=0,"",'Prezenční listina'!E30) -> Žďár nad Sázavou | G38: =IF('Prezenční listina'!F30=0,"",'Prezenční listina'!H30) -> B
A39: 35 | B39: =IF('Prezenční listina'!F4=0,"",'Prezenční listina'!F4) -> 45 | C39: =IF('Prezenční listina'!F4=0,"",'Prezenční listina'!B4) -> Bojanovská | D39: =IF('Prezenční listina'!F4=0,"",'Prezenční listina'!C4) -> Alena | E39: =IF('Prezenční listina'!F4=0,"",'Prezenční listina'!D4) -> 1975 | F39: =IF('Prezenční listina'!F4=0,"",'Prezenční listina'!E4) -> Žďár nad Sázavou | G39: =IF('Prezenční listina'!F4=0,"",'Prezenční listina'!H4) -> G
A40: 36 | B40: =IF('Prezenční listina'!F25=0,"",'Prezenční listina'!F25) -> 46 | C40: =IF('Prezenční listina'!F25=0,"",'Prezenční listina'!B25) -> Pešáková | D40: =IF('Prezenční listina'!F25=0,"",'Prezenční listina'!C25) -> Mirka | E40: =IF('Prezenční listina'!F25=0,"",'Prezenční listina'!D25) -> 1985 | F40: =IF('Prezenční listina'!F25=0,"",'Prezenční listina'!E25) -> AC Racers Tetčice | G40: =IF('Prezenční listina'!F25=0,"",'Prezenční listina'!H25) -> F
A41: 37 | B41: =IF('Prezenční listina'!F22=0,"",'Prezenční listina'!F22) -> 47 | C41: =IF('Prezenční listina'!F22=0,"",'Prezenční listina'!B22) -> Novotný | D41: =IF('Prezenční listina'!F22=0,"",'Prezenční listina'!C22) -> Petr | E41: =IF('Prezenční listina'!F22=0,"",'Prezenční listina'!D22) -> 1965 | F41: =IF('Prezenční listina'!F22=0,"",'Prezenční listina'!E22) -> AK Kuřim | G41: =IF('Prezenční listina'!F22=0,"",'Prezenční listina'!H22) -> C
A42: 38 | B42: =IF('Prezenční listina'!F56=0,"",'Prezenční listina'!F56) -> 48 | C42: =IF('Prezenční listina'!F56=0,"",'Prezenční listina'!B56) -> Plekanec | D42: =IF('Prezenční listina'!F56=0,"",'Prezenční listina'!C56) -> Juraj | E42: =IF('Prezenční listina'!F56=0,"",'Prezenční listina'!D56) -> 1974 | F42: =IF('Prezenční listina'!F56=0,"",'Prezenční listina'!E56) -> Brno | G42: =IF('Prezenční listina'!F56=0,"",'Prezenční listina'!H56) -> B
A43: 39 | B43: =IF('Prezenční listina'!F57=0,"",'Prezenční listina'!F57) -> 49 | C43: =IF('Prezenční listina'!F57=0,"",'Prezenční listina'!B57) -> Ondráček | D43: =IF('Prezenční listina'!F57=0,"",'Prezenční listina'!C57) -> Tomáš | E43: =IF('Prezenční listina'!F57=0,"",'Prezenční listina'!D57) -> 1977 | F43: =IF('Prezenční listina'!F57=0,"",'Prezenční listina'!E57) -> Brno | G43: =IF('Prezenční listina'!F57=0,"",'Prezenční listina'!H57) -> B
A44: 40 | B44: =IF('Prezenční listina'!F58=0,"",'Prezenční listina'!F58) -> 51 | C44: =IF('Prezenční listina'!F58=0,"",'Prezenční listina'!B58) -> Dvořák | D44: =IF('Prezenční listina'!F58=0,"",'Prezenční listina'!C58) -> Vojtěch | E44: =IF('Prezenční listina'!F58=0,"",'Prezenční listina'!D58) -> 1974 | F44: =IF('Prezenční listina'!F58=0,"",'Prezenční listina'!E58) -> Brno | G44: =IF('Prezenční listina'!F58=0,"",'Prezenční listina'!H58) -> B
A45: 41 | B45: =IF('Prezenční listina'!F59=0,"",'Prezenční listina'!F59) -> 54 | C45: =IF('Prezenční listina'!F59=0,"",'Prezenční listina'!B59) -> Drózd | D45: =IF('Prezenční listina'!F59=0,"",'Prezenční listina'!C59) -> Januš | E45: =IF('Prezenční listina'!F59=0,"",'Prezenční listina'!D59) -> 1962 | F45: =IF('Prezenční listina'!F59=0,"",'Prezenční listina'!E59) -> Velké Přílepy | G45: =IF('Prezenční listina'!F59=0,"",'Prezenční listina'!H59) -> C
A46: 42 | B46: =IF('Prezenční listina'!F37=0,"",'Prezenční listina'!F37) -> 56 | C46: =IF('Prezenční listina'!F37=0,"",'Prezenční listina'!B37) -> Vlachová Hutová | D46: =IF('Prezenční listina'!F37=0,"",'Prezenční listina'!C37) -> Eliška | E46: =IF('Prezenční listina'!F37=0,"",'Prezenční listina'!D37) -> 1988 | F46: =IF('Prezenční listina'!F37=0,"",'Prezenční listina'!E37) -> Brno | G46: =IF('Prezenční listina'!F37=0,"",'Prezenční listina'!H37) -> F
A47: 43 | B47: =IF('Prezenční listina'!F60=0,"",'Prezenční listina'!F60) -> 58 | C47: =IF('Prezenční listina'!F60=0,"",'Prezenční listina'!B60) -> Benešová | D47: =IF('Prezenční listina'!F60=0,"",'Prezenční listina'!C60) -> Marie | E47: =IF('Prezenční listina'!F60=0,"",'Prezenční listina'!D60) -> 1982 | F47: =IF('Prezenční listina'!F60=0,"",'Prezenční listina'!E60) -> Dolní Rožínka | G47: =IF('Prezenční listina'!F60=0,"",'Prezenční listina'!H60) -> G
A48: 44 | B48: =IF('Prezenční listina'!F61=0,"",'Prezenční listina'!F61) -> 60 | C48: =IF('Prezenční listina'!F61=0,"",'Prezenční listina'!B61) -> Rokosová | D48: =IF('Prezenční listina'!F61=0,"",'Prezenční listina'!C61) -> Ivana | E48: =IF('Prezenční listina'!F61=0,"",'Prezenční listina'!D61) -> 1982 | F48: =IF('Prezenční listina'!F61=0,"",'Prezenční listina'!E61) -> Polička | G48: =IF('Prezenční listina'!F61=0,"",'Prezenční listina'!H61) -> G
A49: 45 | B49: =IF('Prezenční listina'!F62=0,"",'Prezenční listina'!F62) -> 61 | C49: =IF('Prezenční listina'!F62=0,"",'Prezenční listina'!B62) -> Nekuža | D49: =IF('Prezenční listina'!F62=0,"",'Prezenční listina'!C62) -> Jiří | E49: =IF('Prezenční listina'!F62=0,"",'Prezenční listina'!D62) -> 1951 | F49: =IF('Prezenční listina'!F62=0,"",'Prezenční listina'!E62) -> RUNNERS Zbýšov | G49: =IF('Prezenční listina'!F62=0,"",'Prezenční listina'!H62) -> D
A50: 46 | B50: =IF('Prezenční listina'!F63=0,"",'Prezenční listina'!F63) -> 62 | C50: =IF('Prezenční listina'!F63=0,"",'Prezenční listina'!B63) -> Tomek | D50: =IF('Prezenční listina'!F63=0,"",'Prezenční listina'!C63) -> Pavel | E50: =IF('Prezenční listina'!F63=0,"",'Prezenční listina'!D63) -> 1980 | F50: =IF('Prezenční listina'!F63=0,"",'Prezenční listina'!E63) -> Brno | G50: =IF('Prezenční listina'!F63=0,"",'Prezenční listina'!H63) -> A
A51: 47 | B51: =IF('Prezenční listina'!F21=0,"",'Prezenční listina'!F21) -> 63 | C51: =IF('Prezenční listina'!F21=0,"",'Prezenční listina'!B21) -> Münster | D51: =IF('Prezenční listina'!F21=0,"",'Prezenční listina'!C21) -> Libor | E51: =IF('Prezenční listina'!F21=0,"",'Prezenční listina'!D21) -> 1966 | F51: =IF('Prezenční listina'!F21=0,"",'Prezenční listina'!E21) -> Blansko | G51: =IF('Prezenční listina'!F21=0,"",'Prezenční listina'!H21) -> C
A52: 48 | B52: =IF('Prezenční listina'!F64=0,"",'Prezenční listina'!F64) -> 64 | C52: =IF('Prezenční listina'!F64=0,"",'Prezenční listina'!B64) -> Kohut | D52: =IF('Prezenční listina'!F64=0,"",'Prezenční listina'!C64) -> Jan | E52: =IF('Prezenční listina'!F64=0,"",'Prezenční listina'!D64) -> 1985 | F52: =IF('Prezenční listina'!F64=0,"",'Prezenční listina'!E64) -> MAX-TRAINING.CZ | G52: =IF('Prezenční listina'!F64=0,"",'Prezenční listina'!H64) -> A
A53: 49 | B53: =IF('Prezenční listina'!F27=0,"",'Prezenční listina'!F27) -> 67 | C53: =IF('Prezenční listina'!F27=0,"",'Prezenční listina'!B27) -> Podmelová | D53: =IF('Prezenční listina'!F27=0,"",'Prezenční listina'!C27) -> Vilma | E53: =IF('Prezenční listina'!F27=0,"",'Prezenční listina'!D27) -> 1962 | F53: =IF('Prezenční listina'!F27=0,"",'Prezenční listina'!E27) -> AC Moravská Slavia Brno | G53: =IF('Prezenční listina'!F27=0,"",'Prezenční listina'!H27) -> H
A54: 50 | B54: =IF('Prezenční listina'!F5=0,"",'Prezenční listina'!F5) -> 69 | C54: =IF('Prezenční listina'!F5=0,"",'Prezenční listina'!B5) -> Faja | D54: =IF('Prezenční listina'!F5=0,"",'Prezenční listina'!C5) -> Ondřej | E54: =IF('Prezenční listina'!F5=0,"",'Prezenční listina'!D5) -> 1976 | F54: =IF('Prezenční listina'!F5=0,"",'Prezenční listina'!E5) -> Brno | G54: =IF('Prezenční listina'!F5=0,"",'Prezenční listina'!H5) -> B
A55: 51 | B55: =IF('Prezenční listina'!F65=0,"",'Prezenční listina'!F65) -> 70 | C55: =IF('Prezenční listina'!F65=0,"",'Prezenční listina'!B65) -> Kalich | D55: =IF('Prezenční listina'!F65=0,"",'Prezenční listina'!C65) -> Daniel | E55: =IF('Prezenční listina'!F65=0,"",'Prezenční listina'!D65) -> 1982 | F55: =IF('Prezenční listina'!F65=0,"",'Prezenční listina'!E65) -> Brno | G55: =IF('Prezenční listina'!F65=0,"",'Prezenční listina'!H65) -> A
A56: 52 | B56: =IF('Prezenční listina'!F20=0,"",'Prezenční listina'!F20) -> 72 | C56: =IF('Prezenční listina'!F20=0,"",'Prezenční listina'!B20) -> Mlčáková | D56: =IF('Prezenční listina'!F20=0,"",'Prezenční listina'!C20) -> Hana | E56: =IF('Prezenční listina'!F20=0,"",'Prezenční listina'!D20) -> 1981 | F56: =IF('Prezenční listina'!F20=0,"",'Prezenční listina'!E20) -> Strážnice | G56: =IF('Prezenční listina'!F20=0,"",'Prezenční listina'!H20) -> G
A57: 53 | B57: =IF('Prezenční listina'!F11=0,"",'Prezenční listina'!F11) -> 73 | C57: =IF('Prezenční listina'!F11=0,"",'Prezenční listina'!B11) -> Kalich | D57: =IF('Prezenční listina'!F11=0,"",'Prezenční listina'!C11) -> Radim | E57: =IF('Prezenční listina'!F11=0,"",'Prezenční listina'!D11) -> 1985 | F57: =IF('Prezenční listina'!F11=0,"",'Prezenční listina'!E11) -> Odranec | G57: =IF('Prezenční listina'!F11=0,"",'Prezenční listina'!H11) -> A
A58: 54 | B58: =IF('Prezenční listina'!F14=0,"",'Prezenční listina'!F14) -> 75 | C58: =IF('Prezenční listina'!F14=0,"",'Prezenční listina'!B14) -> Kratochvíl | D58: =IF('Prezenční listina'!F14=0,"",'Prezenční listina'!C14) -> Jaroslav | E58: =IF('Prezenční listina'!F14=0,"",'Prezenční listina'!D14) -> 1977 | F58: =IF('Prezenční listina'!F14=0,"",'Prezenční listina'!E14) -> SDH Hluboké | G58: =IF('Prezenční listina'!F14=0,"",'Prezenční listina'!H14) -> B
A59: 55 | B59: =IF('Prezenční listina'!F44=0,"",'Prezenční listina'!F44) -> 76 | C59: =IF('Prezenční listina'!F44=0,"",'Prezenční listina'!B44) -> Koutský | D59: =IF('Prezenční listina'!F44=0,"",'Prezenční listina'!C44) -> Tomáš | E59: =IF('Prezenční listina'!F44=0,"",'Prezenční listina'!D44) -> 1987 | F59: =IF('Prezenční listina'!F44=0,"",'Prezenční listina'!E44) -> Ledová stěna Vír | G59: =IF('Prezenční listina'!F44=0,"",'Prezenční listina'!H44) -> A
A60: 56 | B60: =IF('Prezenční listina'!F66=0,"",'Prezenční listina'!F66) -> 77 | C60: =IF('Prezenční listina'!F66=0,"",'Prezenční listina'!B66) -> Krajča | D60: =IF('Prezenční listina'!F66=0,"",'Prezenční listina'!C66) -> Rudy | E60: =IF('Prezenční listina'!F66=0,"",'Prezenční listina'!D66) -> 1965 | F60: =IF('Prezenční listina'!F66=0,"",'Prezenční listina'!E66) -> rarecacti.com | G60: =IF('Prezenční listina'!F66=0,"",'Prezenční listina'!H66) -> C
A61: 57 | B61: =IF('Prezenční listina'!F7=0,"",'Prezenční listina'!F7) -> 79 | C61: =IF('Prezenční listina'!F7=0,"",'Prezenční listina'!B7) -> Glier | D61: =IF('Prezenční listina'!F7=0,"",'Prezenční listina'!C7) -> Michal | E61: =IF('Prezenční listina'!F7=0,"",'Prezenční listina'!D7) -> 1982 | F61: =IF('Prezenční listina'!F7=0,"",'Prezenční listina'!E7) -> SDH Doubravník | G61: =IF('Prezenční listina'!F7=0,"",'Prezenční listina'!H7) -> A
A62: 58 | B62: =IF('Prezenční listina'!F6=0,"",'Prezenční listina'!F6) -> 80 | C62: =IF('Prezenční listina'!F6=0,"",'Prezenční listina'!B6) -> Glier | D62: =IF('Prezenční listina'!F6=0,"",'Prezenční listina'!C6) -> Miroslav | E62: =IF('Prezenční listina'!F6=0,"",'Prezenční listina'!D6) -> 1949 | F62: =IF('Prezenční listina'!F6=0,"",'Prezenční listina'!E6) -> Ústí nad Labem | G62: =IF('Prezenční listina'!F6=0,"",'Prezenční listina'!H6) -> D
A63: 59 | B63: =IF('Prezenční listina'!F23=0,"",'Prezenční listina'!F23) -> 82 | C63: =IF('Prezenční listina'!F23=0,"",'Prezenční listina'!B23) -> Orálek | D63: =IF('Prezenční listina'!F23=0,"",'Prezenční listina'!C23) -> Daniel | E63: =IF('Prezenční listina'!F23=0,"",'Prezenční listina'!D23) -> 1970 | F63: =IF('Prezenční listina'!F23=0,"",'Prezenční listina'!E23) -> behejbrno.com | G63: =IF('Prezenční listina'!F23=0,"",'Prezenční listina'!H23) -> B
A64: 60 | B64: =IF('Prezenční listina'!F67=0,"",'Prezenční listina'!F67) -> 83 | C64: =IF('Prezenční listina'!F67=0,"",'Prezenční listina'!B67) -> Zourek | D64: =IF('Prezenční listina'!F67=0,"",'Prezenční listina'!C67) -> Karel | E64: =IF('Prezenční listina'!F67=0,"",'Prezenční listina'!D67) -> 1959 | F64: =IF('Prezenční listina'!F67=0,"",'Prezenční listina'!E67) -> Bedřichovice | G64: =IF('Prezenční listina'!F67=0,"",'Prezenční listina'!H67) -> C
A65: 61 | B65: =IF('Prezenční listina'!F31=0,"",'Prezenční listina'!F31) -> 84 | C65: =IF('Prezenční listina'!F31=0,"",'Prezenční listina'!B31) -> Sedláček | D65: =IF('Prezenční listina'!F31=0,"",'Prezenční listina'!C31) -> Svatopluk | E65: =IF('Prezenční listina'!F31=0,"",'Prezenční listina'!D31) -> 1957 | F65: =IF('Prezenční listina'!F31=0,"",'Prezenční listina'!E31) -> AC Moravská Slavia Brno | G65: =IF('Prezenční listina'!F31=0,"",'Prezenční listina'!H31) -> D
A66: 62 | B66: =IF('Prezenční listina'!F68=0,"",'Prezenční listina'!F68) -> 85 | C66: =IF('Prezenční listina'!F68=0,"",'Prezenční listina'!B68) -> Příhoda | D66: =IF('Prezenční listina'!F68=0,"",'Prezenční listina'!C68) -> Jan | E66: =IF('Prezenční listina'!F68=0,"",'Prezenční listina'!D68) -> 1983 | F66: =IF('Prezenční listina'!F68=0,"",'Prezenční listina'!E68) -> Ždánice | G66: =IF('Prezenční listina'!F68=0,"",'Prezenční listina'!H68) -> A
A67: 63 | B67: =IF('Prezenční listina'!F69=0,"",'Prezenční listina'!F69) -> 86 | C67: =IF('Prezenční listina'!F69=0,"",'Prezenční listina'!B69) -> Benc | D67: =IF('Prezenční listina'!F69=0,"",'Prezenční listina'!C69) -> Karel | E67: =IF('Prezenční listina'!F69=0,"",'Prezenční listina'!D69) -> 1975 | F67: =IF('Prezenční listina'!F69=0,"",'Prezenční listina'!E69) -> Pivonice | G67: =IF('Prezenční listina'!F69=0,"",'Prezenční listina'!H69) -> B
B68: =IF('Prezenční listina'!F13=0,"",'Prezenční listina'!F13) ->  | C68: =IF('Prezenční listina'!F13=0,"",'Prezenční listina'!B13) ->  | D68: =IF('Prezenční listina'!F13=0,"",'Prezenční listina'!C13) ->  | E68: =IF('Prezenční listina'!F13=0,"",'Prezenční listina'!D13) ->  | F68: =IF('Prezenční listina'!F13=0,"",'Prezenční listina'!E13) ->  | G68: =IF('Prezenční listina'!F13=0,"",'Prezenční listina'!H13) -> 
B69: =IF('Prezenční listina'!F17=0,"",'Prezenční listina'!F17) ->  | C69: =IF('Prezenční listina'!F17=0,"",'Prezenční listina'!B17) ->  | D69: =IF('Prezenční listina'!F17=0,"",'Prezenční listina'!C17) ->  | E69: =IF('Prezenční listina'!F17=0,"",'Prezenční listina'!D17) ->  | F69: =IF('Prezenční listina'!F17=0,"",'Prezenční listina'!E17) ->  | G69: =IF('Prezenční listina'!F17=0,"",'Prezenční listina'!H17) -> 
A70: =IF(C70="","",A69+1) ->  | B70: =IF('Prezenční listina'!F24=0,"",'Prezenční listina'!F24) ->  | C70: =IF('Prezenční listina'!F24=0,"",'Prezenční listina'!B24) ->  | D70: =IF('Prezenční listina'!F24=0,"",'Prezenční listina'!C24) ->  | E70: =IF('Prezenční listina'!F24=0,"",'Prezenční listina'!D24) ->  | F70: =IF('Prezenční listina'!F24=0,"",'Prezenční listina'!E24) ->  | G70: =IF('Prezenční listina'!F24=0,"",'Prezenční listina'!H24) -> 
B71: =IF('Prezenční listina'!F26=0,"",'Prezenční listina'!F26) ->  | C71: =IF('Prezenční listina'!F26=0,"",'Prezenční listina'!B26) ->  | D71: =IF('Prezenční listina'!F26=0,"",'Prezenční listina'!C26) ->  | E71: =IF('Prezenční listina'!F26=0,"",'Prezenční listina'!D26) ->  | F71: =IF('Prezenční listina'!F26=0,"",'Prezenční listina'!E26) ->  | G71: =IF('Prezenční listina'!F26=0,"",'Prezenční listina'!H26) -> 
B72: =IF('Prezenční listina'!F70=0,"",'Prezenční listina'!F70) ->  | C72: =IF('Prezenční listina'!F70=0,"",'Prezenční listina'!B70) ->  | D72: =IF('Prezenční listina'!F70=0,"",'Prezenční listina'!C70) ->  | E72: =IF('Prezenční listina'!F70=0,"",'Prezenční listina'!D70) ->  | F72: =IF('Prezenční listina'!F70=0,"",'Prezenční listina'!E70) ->  | G72: =IF('Prezenční listina'!F70=0,"",'Prezenční listina'!H70) -> 
B73: =IF('Prezenční listina'!F71=0,"",'Prezenční listina'!F71) ->  | C73: =IF('Prezenční listina'!F71=0,"",'Prezenční listina'!B71) ->  | D73: =IF('Prezenční listina'!F71=0,"",'Prezenční listina'!C71) ->  | E73: =IF('Prezenční listina'!F71=0,"",'Prezenční listina'!D71) ->  | F73: =IF('Prezenční listina'!F71=0,"",'Prezenční listina'!E71) ->  | G73: =IF('Prezenční listina'!F71=0,"",'Prezenční listina'!H71) -> 
B74: =IF('Prezenční listina'!F72=0,"",'Prezenční listina'!F72) ->  | C74: =IF('Prezenční listina'!F72=0,"",'Prezenční listina'!B72) ->  | D74: =IF('Prezenční listina'!F72=0,"",'Prezenční listina'!C72) ->  | E74: =IF('Prezenční listina'!F72=0,"",'Prezenční listina'!D72) ->  | F74: =IF('Prezenční listina'!F72=0,"",'Prezenční listina'!E72) ->  | G74: =IF('Prezenční listina'!F72=0,"",'Prezenční listina'!H72) -> 
B75: =IF('Prezenční listina'!F73=0,"",'Prezenční listina'!F73) ->  | C75: =IF('Prezenční listina'!F73=0,"",'Prezenční listina'!B73) ->  | D75: =IF('Prezenční listina'!F73=0,"",'Prezenční listina'!C73) ->  | E75: =IF('Prezenční listina'!F73=0,"",'Prezenční listina'!D73) ->  | F75: =IF('Prezenční listina'!F73=0,"",'Prezenční listina'!E73) ->  | G75: =IF('Prezenční listina'!F73=0,"",'Prezenční listina'!H73) -> 
B76: =IF('Prezenční listina'!F74=0,"",'Prezenční listina'!F74) ->  | C76: =IF('Prezenční listina'!F74=0,"",'Prezenční listina'!B74) ->  | D76: =IF('Prezenční listina'!F74=0,"",'Prezenční listina'!C74) ->  | E76: =IF('Prezenční listina'!F74=0,"",'Prezenční listina'!D74) ->  | F76: =IF('Prezenční listina'!F74=0,"",'Prezenční listina'!E74) ->  | G76: =IF('Prezenční listina'!F74=0,"",'Prezenční listina'!H74) -> 
B77: =IF('Prezenční listina'!F75=0,"",'Prezenční listina'!F75) ->  | C77: =IF('Prezenční listina'!F75=0,"",'Prezenční listina'!B75) ->  | D77: =IF('Prezenční listina'!F75=0,"",'Prezenční listina'!C75) ->  | E77: =IF('Prezenční listina'!F75=0,"",'Prezenční listina'!D75) ->  | F77: =IF('Prezenční listina'!F75=0,"",'Prezenční listina'!E75) ->  | G77: =IF('Prezenční listina'!F75=0,"",'Prezenční listina'!H75) -> 
B78: =IF('Prezenční listina'!F76=0,"",'Prezenční listina'!F76) ->  | C78: =IF('Prezenční listina'!F76=0,"",'Prezenční listina'!B76) ->  | D78: =IF('Prezenční listina'!F76=0,"",'Prezenční listina'!C76) ->  | E78: =IF('Prezenční listina'!F76=0,"",'Prezenční listina'!D76) ->  | F78: =IF('Prezenční listina'!F76=0,"",'Prezenční listina'!E76) ->  | G78: =IF('Prezenční listina'!F76=0,"",'Prezenční listina'!H76) -> 
B79: =IF('Prezenční listina'!F77=0,"",'Prezenční listina'!F77) ->  | C79: =IF('Prezenční listina'!F77=0,"",'Prezenční listina'!B77) ->  | D79: =IF('Prezenční listina'!F77=0,"",'Prezenční listina'!C77) ->  | E79: =IF('Prezenční listina'!F77=0,"",'Prezenční listina'!D77) ->  | F79: =IF('Prezenční listina'!F77=0,"",'Prezenční listina'!E77) ->  | G79: =IF('Prezenční listina'!F77=0,"",'Prezenční listina'!H77) -> 
B80: =IF('Prezenční listina'!F78=0,"",'Prezenční listina'!F78) ->  | C80: =IF('Prezenční listina'!F78=0,"",'Prezenční listina'!B78) ->  | D80: =IF('Prezenční listina'!F78=0,"",'Prezenční listina'!C78) ->  | E80: =IF('Prezenční listina'!F78=0,"",'Prezenční listina'!D78) ->  | F80: =IF('Prezenční listina'!F78=0,"",'Prezenční listina'!E78) ->  | G80: =IF('Prezenční listina'!F78=0,"",'Prezenční listina'!H78) -> 
B81: =IF('Prezenční listina'!F79=0,"",'Prezenční listina'!F79) ->  | C81: =IF('Prezenční listina'!F79=0,"",'Prezenční listina'!B79) ->  | D81: =IF('Prezenční listina'!F79=0,"",'Prezenční listina'!C79) ->  | E81: =IF('Prezenční listina'!F79=0,"",'Prezenční listina'!D79) ->  | F81: =IF('Prezenční listina'!F79=0,"",'Prezenční listina'!E79) ->  | G81: =IF('Prezenční listina'!F79=0,"",'Prezenční listina'!H79) -> 
B82: =IF('Prezenční listina'!F80=0,"",'Prezenční listina'!F80) ->  | C82: =IF('Prezenční listina'!F80=0,"",'Prezenční listina'!B80) ->  | D82: =IF('Prezenční listina'!F80=0,"",'Prezenční listina'!C80) ->  | E82: =IF('Prezenční listina'!F80=0,"",'Prezenční listina'!D80) ->  | F82: =IF('Prezenční listina'!F80=0,"",'Prezenční listina'!E80) ->  | G82: =IF('Prezenční listina'!F80=0,"",'Prezenční listina'!H80) -> 
B83: =IF('Prezenční listina'!F81=0,"",'Prezenční listina'!F81) ->  | C83: =IF('Prezenční listina'!F81=0,"",'Prezenční listina'!B81) ->  | D83: =IF('Prezenční listina'!F81=0,"",'Prezenční listina'!C81) ->  | E83: =IF('Prezenční listina'!F81=0,"",'Prezenční listina'!D81) ->  | F83: =IF('Prezenční listina'!F81=0,"",'Prezenční listina'!E81) ->  | G83: =IF('Prezenční listina'!F81=0,"",'Prezenční listina'!H81) -> 
B84: =IF('Prezenční listina'!F82=0,"",'Prezenční listina'!F82) ->  | C84: =IF('Prezenční listina'!F82=0,"",'Prezenční listina'!B82) ->  | D84: =IF('Prezenční listina'!F82=0,"",'Prezenční listina'!C82) ->  | E84: =IF('Prezenční listina'!F82=0,"",'Prezenční listina'!D82) ->  | F84: =IF('Prezenční listina'!F82=0,"",'Prezenční listina'!E82) ->  | G84: =IF('Prezenční listina'!F82=0,"",'Prezenční listina'!H82) -> 
B85: =IF('Prezenční listina'!F83=0,"",'Prezenční listina'!F83) ->  | C85: =IF('Prezenční listina'!F83=0,"",'Prezenční listina'!B83) ->  | D85: =IF('Prezenční listina'!F83=0,"",'Prezenční listina'!C83) ->  | E85: =IF('Prezenční listina'!F83=0,"",'Prezenční listina'!D83) ->  | F85: =IF('Prezenční listina'!F83=0,"",'Prezenční listina'!E83) ->  | G85: =IF('Prezenční listina'!F83=0,"",'Prezenční listina'!H83) -> 
B86: =IF('Prezenční listina'!F84=0,"",'Prezenční listina'!F84) ->  | C86: =IF('Prezenční listina'!F84=0,"",'Prezenční listina'!B84) ->  | D86: =IF('Prezenční listina'!F84=0,"",'Prezenční listina'!C84) ->  | E86: =IF('Prezenční listina'!F84=0,"",'Prezenční listina'!D84) ->  | F86: =IF('Prezenční listina'!F84=0,"",'Prezenční listina'!E84) ->  | G86: =IF('Prezenční listina'!F84=0,"",'Prezenční listina'!H84) -> 
B87: =IF('Prezenční listina'!F85=0,"",'Prezenční listina'!F85) ->  | C87: =IF('Prezenční listina'!F85=0,"",'Prezenční listina'!B85) ->  | D87: =IF('Prezenční listina'!F85=0,"",'Prezenční listina'!C85) ->  | E87: =IF('Prezenční listina'!F85=0,"",'Prezenční listina'!D85) ->  | F87: =IF('Prezenční listina'!F85=0,"",'Prezenční listina'!E85) ->  | G87: =IF('Prezenční listina'!F85=0,"",'Prezenční listina'!H85) -> 
B88: =IF('Prezenční listina'!F86=0,"",'Prezenční listina'!F86) ->  | C88: =IF('Prezenční listina'!F86=0,"",'Prezenční listina'!B86) ->  | D88: =IF('Prezenční listina'!F86=0,"",'Prezenční listina'!C86) ->  | E88: =IF('Prezenční listina'!F86=0,"",'Prezenční listina'!D86) ->  | F88: =IF('Prezenční listina'!F86=0,"",'Prezenční listina'!E86) ->  | G88: =IF('Prezenční listina'!F86=0,"",'Prezenční listina'!H86) -> 
B89: =IF('Prezenční listina'!F87=0,"",'Prezenční listina'!F87) ->  | C89: =IF('Prezenční listina'!F87=0,"",'Prezenční listina'!B87) ->  | D89: =IF('Prezenční listina'!F87=0,"",'Prezenční listina'!C87) ->  | E89: =IF('Prezenční listina'!F87=0,"",'Prezenční listina'!D87) ->  | F89: =IF('Prezenční listina'!F87=0,"",'Prezenční listina'!E87) ->  | G89: =IF('Prezenční listina'!F87=0,"",'Prezenční listina'!H87) -> 
B90: =IF('Prezenční listina'!F88=0,"",'Prezenční listina'!F88) ->  | C90: =IF('Prezenční listina'!F88=0,"",'Prezenční listina'!B88) ->  | D90: =IF('Prezenční listina'!F88=0,"",'Prezenční listina'!C88) ->  | E90: =IF('Prezenční listina'!F88=0,"",'Prezenční listina'!D88) ->  | F90: =IF('Prezenční listina'!F88=0,"",'Prezenční listina'!E88) ->  | G90: =IF('Prezenční listina'!F88=0,"",'Prezenční listina'!H88) -> 
B91: =IF('Prezenční listina'!F89=0,"",'Prezenční listina'!F89) ->  | C91: =IF('Prezenční listina'!F89=0,"",'Prezenční listina'!B89) ->  | D91: =IF('Prezenční listina'!F89=0,"",'Prezenční listina'!C89) ->  | E91: =IF('Prezenční listina'!F89=0,"",'Prezenční listina'!D89) ->  | F91: =IF('Prezenční listina'!F89=0,"",'Prezenční listina'!E89) ->  | G91: =IF('Prezenční listina'!F89=0,"",'Prezenční listina'!H89) -> 
B92: =IF('Prezenční listina'!F90=0,"",'Prezenční listina'!F90) ->  | C92: =IF('Prezenční listina'!F90=0,"",'Prezenční listina'!B90) ->  | D92: =IF('Prezenční listina'!F90=0,"",'Prezenční listina'!C90) ->  | E92: =IF('Prezenční listina'!F90=0,"",'Prezenční listina'!D90) ->  | F92: =IF('Prezenční listina'!F90=0,"",'Prezenční listina'!E90) ->  | G92: =IF('Prezenční listina'!F90=0,"",'Prezenční listina'!H90) -> 
B93: =IF('Prezenční listina'!F91=0,"",'Prezenční listina'!F91) ->  | C93: =IF('Prezenční listina'!F91=0,"",'Prezenční listina'!B91) ->  | D93: =IF('Prezenční listina'!F91=0,"",'Prezenční listina'!C91) ->  | E93: =IF('Prezenční listina'!F91=0,"",'Prezenční listina'!D91) ->  | F93: =IF('Prezenční listina'!F91=0,"",'Prezenční listina'!E91) ->  | G93: =IF('Prezenční listina'!F91=0,"",'Prezenční listina'!H91) -> 
B94: =IF('Prezenční listina'!F92=0,"",'Prezenční listina'!F92) ->  | C94: =IF('Prezenční listina'!F92=0,"",'Prezenční listina'!B92) ->  | D94: =IF('Prezenční listina'!F92=0,"",'Prezenční listina'!C92) ->  | E94: =IF('Prezenční listina'!F92=0,"",'Prezenční listina'!D92) ->  | F94: =IF('Prezenční listina'!F92=0,"",'Prezenční listina'!E92) ->  | G94: =IF('Prezenční listina'!F92=0,"",'Prezenční listina'!H92) -> 
B95: =IF('Prezenční listina'!F93=0,"",'Prezenční listina'!F93) ->  | C95: =IF('Prezenční listina'!F93=0,"",'Prezenční listina'!B93) ->  | D95: =IF('Prezenční listina'!F93=0,"",'Prezenční listina'!C93) ->  | E95: =IF('Prezenční listina'!F93=0,"",'Prezenční listina'!D93) ->  | F95: =IF('Prezenční listina'!F93=0,"",'Prezenční listina'!E93) ->  | G95: =IF('Prezenční listina'!F93=0,"",'Prezenční listina'!H93) -> 
B96: =IF('Prezenční listina'!F94=0,"",'Prezenční listina'!F94) ->  | C96: =IF('Prezenční listina'!F94=0,"",'Prezenční listina'!B94) ->  | D96: =IF('Prezenční listina'!F94=0,"",'Prezenční listina'!C94) ->  | E96: =IF('Prezenční listina'!F94=0,"",'Prezenční listina'!D94) ->  | F96: =IF('Prezenční listina'!F94=0,"",'Prezenční listina'!E94) ->  | G96: =IF('Prezenční listina'!F94=0,"",'Prezenční listina'!H94) -> 
B97: =IF('Prezenční listina'!F95=0,"",'Prezenční listina'!F95) ->  | C97: =IF('Prezenční listina'!F95=0,"",'Prezenční listina'!B95) ->  | D97: =IF('Prezenční listina'!F95=0,"",'Prezenční listina'!C95) ->  | E97: =IF('Prezenční listina'!F95=0,"",'Prezenční listina'!D95) ->  | F97: =IF('Prezenční listina'!F95=0,"",'Prezenční listina'!E95) ->  | G97: =IF('Prezenční listina'!F95=0,"",'Prezenční listina'!H95) -> 
B98: =IF('Prezenční listina'!F96=0,"",'Prezenční listina'!F96) ->  | C98: =IF('Prezenční listina'!F96=0,"",'Prezenční listina'!B96) ->  | D98: =IF('Prezenční listina'!F96=0,"",'Prezenční listina'!C96) ->  | E98: =IF('Prezenční listina'!F96=0,"",'Prezenční listina'!D96) ->  | F98: =IF('Prezenční listina'!F96=0,"",'Prezenční listina'!E96) ->  | G98: =IF('Prezenční listina'!F96=0,"",'Prezenční listina'!H96) -> 
B99: =IF('Prezenční listina'!F97=0,"",'Prezenční listina'!F97) ->  | C99: =IF('Prezenční listina'!F97=0,"",'Prezenční listina'!B97) ->  | D99: =IF('Prezenční listina'!F97=0,"",'Prezenční listina'!C97) ->  | E99: =IF('Prezenční listina'!F97=0,"",'Prezenční listina'!D97) ->  | F99: =IF('Prezenční listina'!F97=0,"",'Prezenční listina'!E97) ->  | G99: =IF('Prezenční listina'!F97=0,"",'Prezenční listina'!H97) -> 
B100: =IF('Prezenční listina'!F98=0,"",'Prezenční listina'!F98) ->  | C100: =IF('Prezenční listina'!F98=0,"",'Prezenční listina'!B98) ->  | D100: =IF('Prezenční listina'!F98=0,"",'Prezenční listina'!C98) ->  | E100: =IF('Prezenční listina'!F98=0,"",'Prezenční listina'!D98) ->  | F100: =IF('Prezenční listina'!F98=0,"",'Prezenční listina'!E98) ->  | G100: =IF('Prezenční listina'!F98=0,"",'Prezenční listina'!H98) -> 
B101: =IF('Prezenční listina'!F99=0,"",'Prezenční listina'!F99) ->  | C101: =IF('Prezenční listina'!F99=0,"",'Prezenční listina'!B99) ->  | D101: =IF('Prezenční listina'!F99=0,"",'Prezenční listina'!C99) ->  | E101: =IF('Prezenční listina'!F99=0,"",'Prezenční listina'!D99) ->  | F101: =IF('Prezenční listina'!F99=0,"",'Prezenční listina'!E99) ->  | G101: =IF('Prezenční listina'!F99=0,"",'Prezenční listina'!H99) -> 
B102: =IF('Prezenční listina'!F100=0,"",'Prezenční listina'!F100) ->  | C102: =IF('Prezenční listina'!F100=0,"",'Prezenční listina'!B100) ->  | D102: =IF('Prezenční listina'!F100=0,"",'Prezenční listina'!C100) ->  | E102: =IF('Prezenční listina'!F100=0,"",'Prezenční listina'!D100) ->  | F102: =IF('Prezenční listina'!F100=0,"",'Prezenční listina'!E100) ->  | G102: =IF('Prezenční listina'!F100=0,"",'Prezenční listina'!H100) -> 
B103: =IF('Prezenční listina'!F101=0,"",'Prezenční listina'!F101) ->  | C103: =IF('Prezenční listina'!F101=0,"",'Prezenční listina'!B101) ->  | D103: =IF('Prezenční listina'!F101=0,"",'Prezenční listina'!C101) ->  | E103: =IF('Prezenční listina'!F101=0,"",'Prezenční listina'!D101) ->  | F103: =IF('Prezenční listina'!F101=0,"",'Prezenční listina'!E101) ->  | G103: =IF('Prezenční listina'!F101=0,"",'Prezenční listina'!H101) -> 
B104: =IF('Prezenční listina'!F102=0,"",'Prezenční listina'!F102) ->  | C104: =IF('Prezenční listina'!F102=0,"",'Prezenční listina'!B102) ->  | D104: =IF('Prezenční listina'!F102=0,"",'Prezenční listina'!C102) ->  | E104: =IF('Prezenční listina'!F102=0,"",'Prezenční listina'!D102) ->  | F104: =IF('Prezenční listina'!F102=0,"",'Prezenční listina'!E102) ->  | G104: =IF('Prezenční listina'!F102=0,"",'Prezenční listina'!H102) -> 
B105: =IF('Prezenční listina'!F103=0,"",'Prezenční listina'!F103) ->  | C105: =IF('Prezenční listina'!F103=0,"",'Prezenční listina'!B103) ->  | D105: =IF('Prezenční listina'!F103=0,"",'Prezenční listina'!C103) ->  | E105: =IF('Prezenční listina'!F103=0,"",'Prezenční listina'!D103) ->  | F105: =IF('Prezenční listina'!F103=0,"",'Prezenční listina'!E103) ->  | G105: =IF('Prezenční listina'!F103=0,"",'Prezenční listina'!H103) -> 
B106: =IF('Prezenční listina'!F104=0,"",'Prezenční listina'!F104) ->  | C106: =IF('Prezenční listina'!F104=0,"",'Prezenční listina'!B104) ->  | D106: =IF('Prezenční listina'!F104=0,"",'Prezenční listina'!C104) ->  | E106: =IF('Prezenční listina'!F104=0,"",'Prezenční listina'!D104) ->  | F106: =IF('Prezenční listina'!F104=0,"",'Prezenční listina'!E104) ->  | G106: =IF('Prezenční listina'!F104=0,"",'Prezenční listina'!H104) -> 
B107: =IF('Prezenční listina'!F105=0,"",'Prezenční listina'!F105) ->  | C107: =IF('Prezenční listina'!F105=0,"",'Prezenční listina'!B105) ->  | D107: =IF('Prezenční listina'!F105=0,"",'Prezenční listina'!C105) ->  | E107: =IF('Prezenční listina'!F105=0,"",'Prezenční listina'!D105) ->  | F107: =IF('Prezenční listina'!F105=0,"",'Prezenční listina'!E105) ->  | G107: =IF('Prezenční listina'!F105=0,"",'Prezenční listina'!H105) -> 
B108: =IF('Prezenční listina'!F106=0,"",'Prezenční listina'!F106) ->  | C108: =IF('Prezenční listina'!F106=0,"",'Prezenční listina'!B106) ->  | D108: =IF('Prezenční listina'!F106=0,"",'Prezenční listina'!C106) ->  | E108: =IF('Prezenční listina'!F106=0,"",'Prezenční listina'!D106) ->  | F108: =IF('Prezenční listina'!F106=0,"",'Prezenční listina'!E106) ->  | G108: =IF('Prezenční listina'!F106=0,"",'Prezenční listina'!H106) -> 
B109: =IF('Prezenční listina'!F107=0,"",'Prezenční listina'!F107) ->  | C109: =IF('Prezenční listina'!F107=0,"",'Prezenční listina'!B107) ->  | D109: =IF('Prezenční listina'!F107=0,"",'Prezenční listina'!C107) ->  | E109: =IF('Prezenční listina'!F107=0,"",'Prezenční listina'!D107) ->  | F109: =IF('Prezenční listina'!F107=0,"",'Prezenční listina'!E107) ->  | G109: =IF('Prezenční listina'!F107=0,"",'Prezenční listina'!H107) -> 
B110: =IF('Prezenční listina'!F108=0,"",'Prezenční listina'!F108) ->  | C110: =IF('Prezenční listina'!F108=0,"",'Prezenční listina'!B108) ->  | D110: =IF('Prezenční listina'!F108=0,"",'Prezenční listina'!C108) ->  | E110: =IF('Prezenční listina'!F108=0,"",'Prezenční listina'!D108) ->  | F110: =IF('Prezenční listina'!F108=0,"",'Prezenční listina'!E108) ->  | G110: =IF('Prezenční listina'!F108=0,"",'Prezenční listina'!H108) -> 
B111: =IF('Prezenční listina'!F109=0,"",'Prezenční listina'!F109) ->  | C111: =IF('Prezenční listina'!F109=0,"",'Prezenční listina'!B109) ->  | D111: =IF('Prezenční listina'!F109=0,"",'Prezenční listina'!C109) ->  | E111: =IF('Prezenční listina'!F109=0,"",'Prezenční listina'!D109) ->  | F111: =IF('Prezenční listina'!F109=0,"",'Prezenční listina'!E109) ->  | G111: =IF('Prezenční listina'!F109=0,"",'Prezenční listina'!H109) -> 
B112: =IF('Prezenční listina'!F110=0,"",'Prezenční listina'!F110) ->  | C112: =IF('Prezenční listina'!F110=0,"",'Prezenční listina'!B110) ->  | D112: =IF('Prezenční listina'!F110=0,"",'Prezenční listina'!C110) ->  | E112: =IF('Prezenční listina'!F110=0,"",'Prezenční listina'!D110) ->  | F112: =IF('Prezenční listina'!F110=0,"",'Prezenční listina'!E110) ->  | G112: =IF('Prezenční listina'!F110=0,"",'Prezenční listina'!H110) -> 
B113: =IF('Prezenční listina'!F111=0,"",'Prezenční listina'!F111) ->  | C113: =IF('Prezenční listina'!F111=0,"",'Prezenční listina'!B111) ->  | D113: =IF('Prezenční listina'!F111=0,"",'Prezenční listina'!C111) ->  | E113: =IF('Prezenční listina'!F111=0,"",'Prezenční listina'!D111) ->  | F113: =IF('Prezenční listina'!F111=0,"",'Prezenční listina'!E111) ->  | G113: =IF('Prezenční listina'!F111=0,"",'Prezenční listina'!H111) -> 
B114: =IF('Prezenční listina'!F112=0,"",'Prezenční listina'!F112) ->  | C114: =IF('Prezenční listina'!F112=0,"",'Prezenční listina'!B112) ->  | D114: =IF('Prezenční listina'!F112=0,"",'Prezenční listina'!C112) ->  | E114: =IF('Prezenční listina'!F112=0,"",'Prezenční listina'!D112) ->  | F114: =IF('Prezenční listina'!F112=0,"",'Prezenční listina'!E112) ->  | G114: =IF('Prezenční listina'!F112=0,"",'Prezenční listina'!H112) -> 
B115: =IF('Prezenční listina'!F113=0,"",'Prezenční listina'!F113) ->  | C115: =IF('Prezenční listina'!F113=0,"",'Prezenční listina'!B113) ->  | D115: =IF('Prezenční listina'!F113=0,"",'Prezenční listina'!C113) ->  | E115: =IF('Prezenční listina'!F113=0,"",'Prezenční listina'!D113) ->  | F115: =IF('Prezenční listina'!F113=0,"",'Prezenční listina'!E113) ->  | G115: =IF('Prezenční listina'!F113=0,"",'Prezenční listina'!H113) -> 
B116: =IF('Prezenční listina'!F114=0,"",'Prezenční listina'!F114) ->  | C116: =IF('Prezenční listina'!F114=0,"",'Prezenční listina'!B114) ->  | D116: =IF('Prezenční listina'!F114=0,"",'Prezenční listina'!C114) ->  | E116: =IF('Prezenční listina'!F114=0,"",'Prezenční listina'!D114) ->  | F116: =IF('Prezenční listina'!F114=0,"",'Prezenční listina'!E114) ->  | G116: =IF('Prezenční listina'!F114=0,"",'Prezenční listina'!H114) -> 
B117: =IF('Prezenční listina'!F115=0,"",'Prezenční listina'!F115) ->  | C117: =IF('Prezenční listina'!F115=0,"",'Prezenční listina'!B115) ->  | D117: =IF('Prezenční listina'!F115=0,"",'Prezenční listina'!C115) ->  | E117: =IF('Prezenční listina'!F115=0,"",'Prezenční listina'!D115) ->  | F117: =IF('Prezenční listina'!F115=0,"",'Prezenční listina'!E115) ->  | G117: =IF('Prezenční listina'!F115=0,"",'Prezenční listina'!H115) -> 
B118: =IF('Prezenční listina'!F116=0,"",'Prezenční listina'!F116) ->  | C118: =IF('Prezenční listina'!F116=0,"",'Prezenční listina'!B116) ->  | D118: =IF('Prezenční listina'!F116=0,"",'Prezenční listina'!C116) ->  | E118: =IF('Prezenční listina'!F116=0,"",'Prezenční listina'!D116) ->  | F118: =IF('Prezenční listina'!F116=0,"",'Prezenční listina'!E116) ->  | G118: =IF('Prezenční listina'!F116=0,"",'Prezenční listina'!H116) -> 
B119: =IF('Prezenční listina'!F117=0,"",'Prezenční listina'!F117) ->  | C119: =IF('Prezenční listina'!F117=0,"",'Prezenční listina'!B117) ->  | D119: =IF('Prezenční listina'!F117=0,"",'Prezenční listina'!C117) ->  | E119: =IF('Prezenční listina'!F117=0,"",'Prezenční listina'!D117) ->  | F119: =IF('Prezenční listina'!F117=0,"",'Prezenční listina'!E117) ->  | G119: =IF('Prezenční listina'!F117=0,"",'Prezenční listina'!H117) -> 
B120: =IF('Prezenční listina'!F118=0,"",'Prezenční listina'!F118) ->  | C120: =IF('Prezenční listina'!F118=0,"",'Prezenční listina'!B118) ->  | D120: =IF('Prezenční listina'!F118=0,"",'Prezenční listina'!C118) ->  | E120: =IF('Prezenční listina'!F118=0,"",'Prezenční listina'!D118) ->  | F120: =IF('Prezenční listina'!F118=0,"",'Prezenční listina'!E118) ->  | G120: =IF('Prezenční listina'!F118=0,"",'Prezenční listina'!H118) -> 
B121: =IF('Prezenční listina'!F119=0,"",'Prezenční listina'!F119) ->  | C121: =IF('Prezenční listina'!F119=0,"",'Prezenční listina'!B119) ->  | D121: =IF('Prezenční listina'!F119=0,"",'Prezenční listina'!C119) ->  | E121: =IF('Prezenční listina'!F119=0,"",'Prezenční listina'!D119) ->  | F121: =IF('Prezenční listina'!F119=0,"",'Prezenční listina'!E119) ->  | G121: =IF('Prezenční listina'!F119=0,"",'Prezenční listina'!H119) -> 
B122: =IF('Prezenční listina'!F120=0,"",'Prezenční listina'!F120) ->  | C122: =IF('Prezenční listina'!F120=0,"",'Prezenční listina'!B120) ->  | D122: =IF('Prezenční listina'!F120=0,"",'Prezenční listina'!C120) ->  | E122: =IF('Prezenční listina'!F120=0,"",'Prezenční listina'!D120) ->  | F122: =IF('Prezenční listina'!F120=0,"",'Prezenční listina'!E120) ->  | G122: =IF('Prezenční listina'!F120=0,"",'Prezenční listina'!H120) -> 
B123: =IF('Prezenční listina'!F121=0,"",'Prezenční listina'!F121) ->  | C123: =IF('Prezenční listina'!F121=0,"",'Prezenční listina'!B121) ->  | D123: =IF('Prezenční listina'!F121=0,"",'Prezenční listina'!C121) ->  | E123: =IF('Prezenční listina'!F121=0,"",'Prezenční listina'!D121) ->  | F123: =IF('Prezenční listina'!F121=0,"",'Prezenční listina'!E121) ->  | G123: =IF('Prezenční listina'!F121=0,"",'Prezenční listina'!H121) -> 
B124: =IF('Prezenční listina'!F122=0,"",'Prezenční listina'!F122) ->  | C124: =IF('Prezenční listina'!F122=0,"",'Prezenční listina'!B122) ->  | D124: =IF('Prezenční listina'!F122=0,"",'Prezenční listina'!C122) ->  | E124: =IF('Prezenční listina'!F122=0,"",'Prezenční listina'!D122) ->  | F124: =IF('Prezenční listina'!F122=0,"",'Prezenční listina'!E122) ->  | G124: =IF('Prezenční listina'!F122=0,"",'Prezenční listina'!H122) -> 
B125: =IF('Prezenční listina'!F123=0,"",'Prezenční listina'!F123) ->  | C125: =IF('Prezenční listina'!F123=0,"",'Prezenční listina'!B123) ->  | D125: =IF('Prezenční listina'!F123=0,"",'Prezenční listina'!C123) ->  | E125: =IF('Prezenční listina'!F123=0,"",'Prezenční listina'!D123) ->  | F125: =IF('Prezenční listina'!F123=0,"",'Prezenční listina'!E123) ->  | G125: =IF('Prezenční listina'!F123=0,"",'Prezenční listina'!H123) -> 
B126: =IF('Prezenční listina'!F124=0,"",'Prezenční listina'!F124) ->  | C126: =IF('Prezenční listina'!F124=0,"",'Prezenční listina'!B124) ->  | D126: =IF('Prezenční listina'!F124=0,"",'Prezenční listina'!C124) ->  | E126: =IF('Prezenční listina'!F124=0,"",'Prezenční listina'!D124) ->  | F126: =IF('Prezenční listina'!F124=0,"",'Prezenční listina'!E124) ->  | G126: =IF('Prezenční listina'!F124=0,"",'Prezenční listina'!H124) -> 
B127: =IF('Prezenční listina'!F125=0,"",'Prezenční listina'!F125) ->  | C127: =IF('Prezenční listina'!F125=0,"",'Prezenční listina'!B125) ->  | D127: =IF('Prezenční listina'!F125=0,"",'Prezenční listina'!C125) ->  | E127: =IF('Prezenční listina'!F125=0,"",'Prezenční listina'!D125) ->  | F127: =IF('Prezenční listina'!F125=0,"",'Prezenční listina'!E125) ->  | G127: =IF('Prezenční listina'!F125=0,"",'Prezenční listina'!H125) -> 
B128: =IF('Prezenční listina'!F126=0,"",'Prezenční listina'!F126) ->  | C128: =IF('Prezenční listina'!F126=0,"",'Prezenční listina'!B126) ->  | D128: =IF('Prezenční listina'!F126=0,"",'Prezenční listina'!C126) ->  | E128: =IF('Prezenční listina'!F126=0,"",'Prezenční listina'!D126) ->  | F128: =IF('Prezenční listina'!F126=0,"",'Prezenční listina'!E126) ->  | G128: =IF('Prezenční listina'!F126=0,"",'Prezenční listina'!H126) -> 
B129: =IF('Prezenční listina'!F127=0,"",'Prezenční listina'!F127) ->  | C129: =IF('Prezenční listina'!F127=0,"",'Prezenční listina'!B127) ->  | D129: =IF('Prezenční listina'!F127=0,"",'Prezenční listina'!C127) ->  | E129: =IF('Prezenční listina'!F127=0,"",'Prezenční listina'!D127) ->  | F129: =IF('Prezenční listina'!F127=0,"",'Prezenční listina'!E127) ->  | G129: =IF('Prezenční listina'!F127=0,"",'Prezenční listina'!H127) -> 
B130: =IF('Prezenční listina'!F128=0,"",'Prezenční listina'!F128) ->  | C130: =IF('Prezenční listina'!F128=0,"",'Prezenční listina'!B128) ->  | D130: =IF('Prezenční listina'!F128=0,"",'Prezenční listina'!C128) ->  | E130: =IF('Prezenční listina'!F128=0,"",'Prezenční listina'!D128) ->  | F130: =IF('Prezenční listina'!F128=0,"",'Prezenční listina'!E128) ->  | G130: =IF('Prezenční listina'!F128=0,"",'Prezenční listina'!H128) -> 
B131: =IF('Prezenční listina'!F129=0,"",'Prezenční listina'!F129) ->  | C131: =IF('Prezenční listina'!F129=0,"",'Prezenční listina'!B129) ->  | D131: =IF('Prezenční listina'!F129=0,"",'Prezenční listina'!C129) ->  | E131: =IF('Prezenční listina'!F129=0,"",'Prezenční listina'!D129) ->  | F131: =IF('Prezenční listina'!F129=0,"",'Prezenční listina'!E129) ->  | G131: =IF('Prezenční listina'!F129=0,"",'Prezenční listina'!H129) -> 
B132: =IF('Prezenční listina'!F130=0,"",'Prezenční listina'!F130) ->  | C132: =IF('Prezenční listina'!F130=0,"",'Prezenční listina'!B130) ->  | D132: =IF('Prezenční listina'!F130=0,"",'Prezenční listina'!C130) ->  | E132: =IF('Prezenční listina'!F130=0,"",'Prezenční listina'!D130) ->  | F132: =IF('Prezenční listina'!F130=0,"",'Prezenční listina'!E130) ->  | G132: =IF('Prezenční listina'!F130=0,"",'Prezenční listina'!H130) -> 
B133: =IF('Prezenční listina'!F131=0,"",'Prezenční listina'!F131) ->  | C133: =IF('Prezenční listina'!F131=0,"",'Prezenční listina'!B131) ->  | D133: =IF('Prezenční listina'!F131=0,"",'Prezenční listina'!C131) ->  | E133: =IF('Prezenční listina'!F131=0,"",'Prezenční listina'!D131) ->  | F133: =IF('Prezenční listina'!F131=0,"",'Prezenční listina'!E131) ->  | G133: =IF('Prezenční listina'!F131=0,"",'Prezenční listina'!H131) -> 
A134: =IF(C134="","",A133+1) ->  | B134: =IF('Prezenční listina'!F132=0,"",'Prezenční listina'!F132) ->  | C134: =IF('Prezenční listina'!F132=0,"",'Prezenční listina'!B132) ->  | D134: =IF('Prezenční listina'!F132=0,"",'Prezenční listina'!C132) ->  | E134: =IF('Prezenční listina'!F132=0,"",'Prezenční listina'!D132) ->  | F134: =IF('Prezenční listina'!F132=0,"",'Prezenční listina'!E132) ->  | G134: =IF('Prezenční listina'!F132=0,"",'Prezenční listina'!H132) -> 
B135: =IF('Prezenční listina'!F133=0,"",'Prezenční listina'!F133) ->  | C135: =IF('Prezenční listina'!F133=0,"",'Prezenční listina'!B133) ->  | D135: =IF('Prezenční listina'!F133=0,"",'Prezenční listina'!C133) ->  | E135: =IF('Prezenční listina'!F133=0,"",'Prezenční listina'!D133) ->  | F135: =IF('Prezenční listina'!F133=0,"",'Prezenční listina'!E133) ->  | G135: =IF('Prezenční listina'!F133=0,"",'Prezenční listina'!H133) -> 
B136: =IF('Prezenční listina'!F134=0,"",'Prezenční listina'!F134) ->  | C136: =IF('Prezenční listina'!F134=0,"",'Prezenční listina'!B134) ->  | D136: =IF('Prezenční listina'!F134=0,"",'Prezenční listina'!C134) ->  | E136: =IF('Prezenční listina'!F134=0,"",'Prezenční listina'!D134) ->  | F136: =IF('Prezenční listina'!F134=0,"",'Prezenční listina'!E134) ->  | G136: =IF('Prezenční listina'!F134=0,"",'Prezenční listina'!H134) -> 
B137: =IF('Prezenční listina'!F135=0,"",'Prezenční listina'!F135) ->  | C137: =IF('Prezenční listina'!F135=0,"",'Prezenční listina'!B135) ->  | D137: =IF('Prezenční listina'!F135=0,"",'Prezenční listina'!C135) ->  | E137: =IF('Prezenční listina'!F135=0,"",'Prezenční listina'!D135) ->  | F137: =IF('Prezenční listina'!F135=0,"",'Prezenční listina'!E135) ->  | G137: =IF('Prezenční listina'!F135=0,"",'Prezenční listina'!H135) -> 
B138: =IF('Prezenční listina'!F136=0,"",'Prezenční listina'!F136) ->  | C138: =IF('Prezenční listina'!F136=0,"",'Prezenční listina'!B136) ->  | D138: =IF('Prezenční listina'!F136=0,"",'Prezenční listina'!C136) ->  | E138: =IF('Prezenční listina'!F136=0,"",'Prezenční listina'!D136) ->  | F138: =IF('Prezenční listina'!F136=0,"",'Prezenční listina'!E136) ->  | G138: =IF('Prezenční listina'!F136=0,"",'Prezenční listina'!H136) -> 
B139: =IF('Prezenční listina'!F137=0,"",'Prezenční listina'!F137) ->  | C139: =IF('Prezenční listina'!F137=0,"",'Prezenční listina'!B137) ->  | D139: =IF('Prezenční listina'!F137=0,"",'Prezenční listina'!C137) ->  | E139: =IF('Prezenční listina'!F137=0,"",'Prezenční listina'!D137) ->  | F139: =IF('Prezenční listina'!F137=0,"",'Prezenční listina'!E137) ->  | G139: =IF('Prezenční listina'!F137=0,"",'Prezenční listina'!H137) -> 
B140: =IF('Prezenční listina'!F138=0,"",'Prezenční listina'!F138) ->  | C140: =IF('Prezenční listina'!F138=0,"",'Prezenční listina'!B138) ->  | D140: =IF('Prezenční listina'!F138=0,"",'Prezenční listina'!C138) ->  | E140: =IF('Prezenční listina'!F138=0,"",'Prezenční listina'!D138) ->  | F140: =IF('Prezenční listina'!F138=0,"",'Prezenční listina'!E138) ->  | G140: =IF('Prezenční listina'!F138=0,"",'Prezenční listina'!H138) -> 
B141: =IF('Prezenční listina'!F139=0,"",'Prezenční listina'!F139) ->  | C141: =IF('Prezenční listina'!F139=0,"",'Prezenční listina'!B139) ->  | D141: =IF('Prezenční listina'!F139=0,"",'Prezenční listina'!C139) ->  | E141: =IF('Prezenční listina'!F139=0,"",'Prezenční listina'!D139) ->  | F141: =IF('Prezenční listina'!F139=0,"",'Prezenční listina'!E139) ->  | G141: =IF('Prezenční listina'!F139=0,"",'Prezenční listina'!H139) -> 

Sheet Výsledková listina
A1: ="Výsledková listina - Malý svratecký maraton "&'Prezenční listina'!O2 -> Výsledková listina - Malý svratecký maraton 2017
A2: ='Startovní listina'!A2:G2 -> 2017-08-26 | K2: Poté, co jsou dopsány časy VŠECH běžců, stisknout tlačítko 1.řazení Ve sloupci B (Pořadí v kategorii) vytvořit posloupnou číselnou řadu pro každou kategorii a poté stisknout tlačítko 2.řazení !!! POZOR!!! Použití tlačítek je nevratný krok!
A3: ='Prezenční listina'!O2-1953&". ročník" -> 64. ročník
A4: Celkové pořadí | B4: Pořadí v kategorii | C4: Kategorie | D4: Startovní číslo | E4: Příjmení | F4: Jméno | G4: Narození | H4: Oddíl / Bydliště | I4: Čas
A5: 1 | B5: 1 | C5: ='Startovní listina'!G52 -> A | D5: ='Startovní listina'!B52 -> 64 | E5: ='Startovní listina'!C52 -> Kohut | F5: ='Startovní listina'!D52 -> Jan | G5: ='Startovní listina'!E52 -> 1985 | H5: ='Startovní listina'!F52 -> MAX-TRAINING.CZ | I5: 02:02:34
A6: =IF('Výsledková listina'!D5<>"",A5+1,"") -> 2 | B6: 1 | C6: ='Startovní listina'!G63 -> B | D6: ='Startovní listina'!B63 -> 82 | E6: ='Startovní listina'!C63 -> Orálek | F6: ='Startovní listina'!D63 -> Daniel | G6: ='Startovní listina'!E63 -> 1970 | H6: ='Startovní listina'!F63 -> behejbrno.com | I6: 02:05:07
A7: =IF('Výsledková listina'!D6<>"",A6+1,"") -> 3 | B7: 2 | C7: ='Startovní listina'!G42 -> B | D7: ='Startovní listina'!B42 -> 48 | E7: ='Startovní listina'!C42 -> Plekanec | F7: ='Startovní listina'!D42 -> Juraj | G7: ='Startovní listina'!E42 -> 1974 | H7: ='Startovní listina'!F42 -> Brno | I7: 02:07:40
A8: =IF('Výsledková listina'!D7<>"",A7+1,"") -> 4 | B8: 1 | C8: ='Startovní listina'!G10 -> C | D8: ='Startovní listina'!B10 -> 8 | E8: ='Startovní listina'!C10 -> Chramosta | F8: ='Startovní listina'!D10 -> Jaroslav | G8: ='Startovní listina'!E10 -> 1966 | H8: ='Startovní listina'!F10 -> JABOJA Team Dobrná | I8: 02:14:08
A9: =IF('Výsledková listina'!D8<>"",A8+1,"") -> 5 | B9: 2 | C9: ='Startovní listina'!G19 -> A | D9: ='Startovní listina'!B19 -> 19 | E9: ='Startovní listina'!C19 -> Czerný | F9: ='Startovní listina'!D19 -> Pavel | G9: ='Startovní listina'!E19 -> 1981 | H9: ='Startovní listina'!F19 -> BKB | I9: 02:16:10
A10: =IF('Výsledková listina'!D9<>"",A9+1,"") -> 6 | B10: 1 | C10: ='Startovní listina'!G21 -> F | D10: ='Startovní listina'!B21 -> 22 | E10: ='Startovní listina'!C21 -> Ďurdiaková | F10: ='Startovní listina'!D21 -> Tereza | G10: ='Startovní listina'!E21 -> 1991 | H10: ='Startovní listina'!F21 -> AK OLYMP Brno | I10: 02:16:30
A11: =IF('Výsledková listina'!D10<>"",A10+1,"") -> 7 | B11: 3 | C11: ='Startovní listina'!G61 -> A | D11: ='Startovní listina'!B61 -> 79 | E11: ='Startovní listina'!C61 -> Glier | F11: ='Startovní listina'!D61 -> Michal | G11: ='Startovní listina'!E61 -> 1982 | H11: ='Startovní listina'!F61 -> SDH Doubravník | I11: 02:18:14
A12: =IF('Výsledková listina'!D11<>"",A11+1,"") -> 8 | B12: 2 | C12: ='Startovní listina'!G60 -> C | D12: ='Startovní listina'!B60 -> 77 | E12: ='Startovní listina'!C60 -> Krajča | F12: ='Startovní listina'!D60 -> Rudy | G12: ='Startovní listina'!E60 -> 1965 | H12: ='Startovní listina'!F60 -> rarecacti.com | I12: 02:19:24
A13: =IF('Výsledková listina'!D12<>"",A12+1,"") -> 9 | B13: 3 | C13: ='Startovní listina'!G43 -> B | D13: ='Startovní listina'!B43 -> 49 | E13: ='Startovní listina'!C43 -> Ondráček | F13: ='Startovní listina'!D43 -> Tomáš | G13: ='Startovní listina'!E43 -> 1977 | H13: ='Startovní listina'!F43 -> Brno | I13: 02:19:59
A14: =IF('Výsledková listina'!D13<>"",A13+1,"") -> 10 | B14: 4 | C14: ='Startovní listina'!G66 -> A | D14: ='Startovní listina'!B66 -> 85 | E14: ='Startovní listina'!C66 -> Příhoda | F14: ='Startovní listina'!D66 -> Jan | G14: ='Startovní listina'!E66 -> 1983 | H14: ='Startovní listina'!F66 -> Ždánice | I14: 02:23:57
A15: =IF('Výsledková listina'!D14<>"",A14+1,"") -> 11 | B15: 2 | C15: ='Startovní listina'!G40 -> F | D15: ='Startovní listina'!B40 -> 46 | E15: ='Startovní listina'!C40 -> Pešáková | F15: ='Startovní listina'!D40 -> Mirka | G15: ='Startovní listina'!E40 -> 1985 | H15: ='Startovní listina'!F40 -> AC Racers Tetčice | I15: 02:26:01
A16: =IF('Výsledková listina'!D15<>"",A15+1,"") -> 12 | B16: 4 | C16: ='Startovní listina'!G22 -> B | D16: ='Startovní listina'!B22 -> 23 | E16: ='Startovní listina'!C22 -> Šorf | F16: ='Startovní listina'!D22 -> Ivo | G16: ='Startovní listina'!E22 -> 1975 | H16: ='Startovní listina'!F22 -> ABND Racing Team Bystřice n. P. | I16: 02:32:59
A17: =IF('Výsledková listina'!D16<>"",A16+1,"") -> 13 | B17: 5 | C17: ='Startovní listina'!G20 -> B | D17: ='Startovní listina'!B20 -> 21 | E17: ='Startovní listina'!C20 -> Stöger | F17: ='Startovní listina'!D20 -> Karel | G17: ='Startovní listina'!E20 -> 1976 | H17: ='Startovní listina'!F20 -> fKlidu Brno | I17: 02:34:34
A18: =IF('Výsledková listina'!D17<>"",A17+1,"") -> 14 | B18: 6 | C18: ='Startovní listina'!G29 -> B | D18: ='Startovní listina'!B29 -> 33 | E18: ='Startovní listina'!C29 -> Klíma | F18: ='Startovní listina'!D29 -> Miroslav | G18: ='Startovní listina'!E29 -> 1975 | H18: ='Startovní listina'!F29 -> Brno | I18: 02:37:58
A19: =IF('Výsledková listina'!D18<>"",A18+1,"") -> 15 | B19: 5 | C19: ='Startovní listina'!G7 -> A | D19: ='Startovní listina'!B7 -> 4 | E19: ='Startovní listina'!C7 -> Hübner | F19: ='Startovní listina'!D7 -> Tomáš | G19: ='Startovní listina'!E7 -> 1979 | H19: ='Startovní listina'!F7 -> SDH Bolešín | I19: 02:38:59
A20: =IF('Výsledková listina'!D19<>"",A19+1,"") -> 16 | B20: 6 | C20: ='Startovní listina'!G57 -> A | D20: ='Startovní listina'!B57 -> 73 | E20: ='Startovní listina'!C57 -> Kalich | F20: ='Startovní listina'!D57 -> Radim | G20: ='Startovní listina'!E57 -> 1985 | H20: ='Startovní listina'!F57 -> Odranec | I20: 02:40:14
A21: =IF('Výsledková listina'!D20<>"",A20+1,"") -> 17 | B21: 7 | C21: ='Startovní listina'!G32 -> B | D21: ='Startovní listina'!B32 -> 36 | E21: ='Startovní listina'!C32 -> Fanfrdla | F21: ='Startovní listina'!D32 -> Ctirad | G21: ='Startovní listina'!E32 -> 1974 | H21: ='Startovní listina'!F32 -> Silůvky | I21: 02:42:23
A22: =IF('Výsledková listina'!D21<>"",A21+1,"") -> 18 | B22: 3 | C22: ='Startovní listina'!G46 -> F | D22: ='Startovní listina'!B46 -> 56 | E22: ='Startovní listina'!C46 -> Vlachová Hutová | F22: ='Startovní listina'!D46 -> Eliška | G22: ='Startovní listina'!E46 -> 1988 | H22: ='Startovní listina'!F46 -> Brno | I22: 02:43:14
A23: =IF('Výsledková listina'!D22<>"",A22+1,"") -> 19 | B23: 8 | C23: ='Startovní listina'!G58 -> B | D23: ='Startovní listina'!B58 -> 75 | E23: ='Startovní listina'!C58 -> Kratochvíl | F23: ='Startovní listina'!D58 -> Jaroslav | G23: ='Startovní listina'!E58 -> 1977 | H23: ='Startovní listina'!F58 -> SDH Hluboké | I23: 02:43:22
A24: =IF('Výsledková listina'!D23<>"",A23+1,"") -> 20 | B24: 1 | C24: ='Startovní listina'!G39 -> G | D24: ='Startovní listina'!B39 -> 45 | E24: ='Startovní listina'!C39 -> Bojanovská | F24: ='Startovní listina'!D39 -> Alena | G24: ='Startovní listina'!E39 -> 1975 | H24: ='Startovní listina'!F39 -> Žďár nad Sázavou | I24: 02:45:19
A25: =IF('Výsledková listina'!D24<>"",A24+1,"") -> 21 | B25: 9 | C25: ='Startovní listina'!G30 -> B | D25: ='Startovní listina'!B30 -> 34 | E25: ='Startovní listina'!C30 -> Fanfrdla | F25: ='Startovní listina'!D30 -> Dalimil | G25: ='Startovní listina'!E30 -> 1973 | H25: ='Startovní listina'!F30 -> Matyteam Brno | I25: 02:47:46
A26: =IF('Výsledková listina'!D25<>"",A25+1,"") -> 22 | B26: 4 | C26: ='Startovní listina'!G31 -> F | D26: ='Startovní listina'!B31 -> 35 | E26: ='Startovní listina'!C31 -> Bartoňková | F26: ='Startovní listina'!D31 -> Nina | G26: ='Startovní listina'!E31 -> 1990 | H26: ='Startovní listina'!F31 -> Fan Brno | I26: 02:49:11
A27: =IF('Výsledková listina'!D26<>"",A26+1,"") -> 23 | B27: 1 | C27: ='Startovní listina'!G15 -> H | D27: ='Startovní listina'!B15 -> 13 | E27: ='Startovní listina'!C15 -> Martincová | F27: ='Startovní listina'!D15 -> Ivana | G27: ='Startovní listina'!E15 -> 1963 | H27: ='Startovní listina'!F15 -> AC Moravská Slavia Brno | I27: 02:50:24
A28: =IF('Výsledková listina'!D27<>"",A27+1,"") -> 24 | B28: 10 | C28: ='Startovní listina'!G38 -> B | D28: ='Startovní listina'!B38 -> 44 | E28: ='Startovní listina'!C38 -> Řezníček | F28: ='Startovní listina'!D38 -> Roman | G28: ='Startovní listina'!E38 -> 1977 | H28: ='Startovní listina'!F38 -> Žďár nad Sázavou | I28: 02:50:25
A29: =IF('Výsledková listina'!D28<>"",A28+1,"") -> 25 | B29: 1 | C29: ='Startovní listina'!G37 -> D | D29: ='Startovní listina'!B37 -> 42 | E29: ='Startovní listina'!C37 -> Mareš | F29: ='Startovní listina'!D37 -> Bohumil | G29: ='Startovní listina'!E37 -> 1951 | H29: ='Startovní listina'!F37 -> LEAR Brno | I29: 02:53:59
A30: =IF('Výsledková listina'!D29<>"",A29+1,"") -> 26 | B30: 3 | C30: ='Startovní listina'!G33 -> C | D30: ='Startovní listina'!B33 -> 37 | E30: ='Startovní listina'!C33 -> Bělehrádek | F30: ='Startovní listina'!D33 -> Pavel | G30: ='Startovní listina'!E33 -> 1958 | H30: ='Startovní listina'!F33 -> TJ Čolek | I30: 03:02:28
A31: =IF('Výsledková listina'!D30<>"",A30+1,"") -> 27 | B31: 2 | C31: ='Startovní listina'!G35 -> G | D31: ='Startovní listina'!B35 -> 40 | E31: ='Startovní listina'!C35 -> Hanslová | F31: ='Startovní listina'!D35 -> Lenka | G31: ='Startovní listina'!E35 -> 1973 | H31: ='Startovní listina'!F35 -> Žďár nad Sázavou | I31: 03:06:33
A32: =IF('Výsledková listina'!D31<>"",A31+1,"") -> 28 | B32: 3 | C32: ='Startovní listina'!G8 -> G | D32: ='Startovní listina'!B8 -> 5 | E32: ='Startovní listina'!C8 -> Komárková | F32: ='Startovní listina'!D8 -> Zdeňka | G32: ='Startovní listina'!E8 -> 1974 | H32: ='Startovní listina'!F8 -> SDH Bolešín | I32: 03:06:42
A33: =IF('Výsledková listina'!D32<>"",A32+1,"") -> 29 | B33: 4 | C33: ='Startovní listina'!G16 -> C | D33: ='Startovní listina'!B16 -> 14 | E33: ='Startovní listina'!C16 -> Zouhar | F33: ='Startovní listina'!D16 -> Libor | G33: ='Startovní listina'!E16 -> 1958 | H33: ='Startovní listina'!F16 -> Brno-Líšeň | I33: 03:08:14
A34: =IF('Výsledková listina'!D33<>"",A33+1,"") -> 30 | B34: 4 | C34: ='Startovní listina'!G56 -> G | D34: ='Startovní listina'!B56 -> 72 | E34: ='Startovní listina'!C56 -> Mlčáková | F34: ='Startovní listina'!D56 -> Hana | G34: ='Startovní listina'!E56 -> 1981 | H34: ='Startovní listina'!F56 -> Strážnice | I34: 03:08:52
A35: =IF('Výsledková listina'!D34<>"",A34+1,"") -> 31 | B35: 2 | C35: ='Startovní listina'!G65 -> D | D35: ='Startovní listina'!B65 -> 84 | E35: ='Startovní listina'!C65 -> Sedláček | F35: ='Startovní listina'!D65 -> Svatopluk | G35: ='Startovní listina'!E65 -> 1957 | H35: ='Startovní listina'!F65 -> AC Moravská Slavia Brno | I35: 03:10:04
A36: =IF('Výsledková listina'!D35<>"",A35+1,"") -> 32 | B36: 7 | C36: ='Startovní listina'!G5 -> A | D36: ='Startovní listina'!B5 -> 2 | E36: ='Startovní listina'!C5 -> Podsedník | F36: ='Startovní listina'!D5 -> Marek | G36: ='Startovní listina'!E5 -> 1985 | H36: ='Startovní listina'!F5 -> Brno | I36: 03:13:33
A37: =IF('Výsledková listina'!D36<>"",A36+1,"") -> 33 | B37: 5 | C37: ='Startovní listina'!G41 -> C | D37: ='Startovní listina'!B41 -> 47 | E37: ='Startovní listina'!C41 -> Novotný | F37: ='Startovní listina'!D41 -> Petr | G37: ='Startovní listina'!E41 -> 1965 | H37: ='Startovní listina'!F41 -> AK Kuřim | I37: 03:13:56
A38: =IF('Výsledková listina'!D37<>"",A37+1,"") -> 34 | B38: 8 | C38: ='Startovní listina'!G59 -> A | D38: ='Startovní listina'!B59 -> 76 | E38: ='Startovní listina'!C59 -> Koutský | F38: ='Startovní listina'!D59 -> Tomáš | G38: ='Startovní listina'!E59 -> 1987 | H38: ='Startovní listina'!F59 -> Ledová stěna Vír | I38: 03:17:28
A39: =IF('Výsledková listina'!D38<>"",A38+1,"") -> 35 | B39: 3 | C39: ='Startovní listina'!G34 -> D | D39: ='Startovní listina'!B34 -> 38 | E39: ='Startovní listina'!C34 -> Chromý | F39: ='Startovní listina'!D34 -> Bořivoj | G39: ='Startovní listina'!E34 -> 1953 | H39: ='Startovní listina'!F34 -> Tišnov | I39: 03:21:42
A40: =IF('Výsledková listina'!D39<>"",A39+1,"") -> 36 | B40: 9 | C40: ='Startovní listina'!G55 -> A | D40: ='Startovní listina'!B55 -> 70 | E40: ='Startovní listina'!C55 -> Kalich | F40: ='Startovní listina'!D55 -> Daniel | G40: ='Startovní listina'!E55 -> 1982 | H40: ='Startovní listina'!F55 -> Brno | I40: 03:21:48
A41: =IF('Výsledková listina'!D40<>"",A40+1,"") -> 37 | B41: 4 | C41: ='Startovní listina'!G62 -> D | D41: ='Startovní listina'!B62 -> 80 | E41: ='Startovní listina'!C62 -> Glier | F41: ='Startovní listina'!D62 -> Miroslav | G41: ='Startovní listina'!E62 -> 1949 | H41: ='Startovní listina'!F62 -> Ústí nad Labem | I41: 03:22:35
A42: =IF('Výsledková listina'!D41<>"",A41+1,"") -> 38 | B42: 11 | C42: ='Startovní listina'!G44 -> B | D42: ='Startovní listina'!B44 -> 51 | E42: ='Startovní listina'!C44 -> Dvořák | F42: ='Startovní listina'!D44 -> Vojtěch | G42: ='Startovní listina'!E44 -> 1974 | H42: ='Startovní listina'!F44 -> Brno | I42: 03:24:14
A43: =IF('Výsledková listina'!D42<>"",A42+1,"") -> 39 | B43: 10 | C43: ='Startovní listina'!G23 -> A | D43: ='Startovní listina'!B23 -> 24 | E43: ='Startovní listina'!C23 -> Vrba | F43: ='Startovní listina'!D23 -> Tomáš | G43: ='Startovní listina'!E23 -> 1986 | H43: ='Startovní listina'!F23 -> Bystré | I43: 03:24:30
A44: =IF('Výsledková listina'!D43<>"",A43+1,"") -> 40 | B44: 5 | C44: ='Startovní listina'!G49 -> D | D44: ='Startovní listina'!B49 -> 61 | E44: ='Startovní listina'!C49 -> Nekuža | F44: ='Startovní listina'!D49 -> Jiří | G44: ='Startovní listina'!E49 -> 1951 | H44: ='Startovní listina'!F49 -> RUNNERS Zbýšov | I44: 03:28:12
A45: =IF('Výsledková listina'!D44<>"",A44+1,"") -> 41 | B45: 11 | C45: ='Startovní listina'!G17 -> A | D45: ='Startovní listina'!B17 -> 17 | E45: ='Startovní listina'!C17 -> Ptáček | F45: ='Startovní listina'!D17 -> Michal | G45: ='Startovní listina'!E17 -> 1986 | H45: ='Startovní listina'!F17 -> člen nadšenců parku Lužánky | I45: 03:29:37
A46: =IF('Výsledková listina'!D45<>"",A45+1,"") -> 42 | B46: 12 | C46: ='Startovní listina'!G26 -> B | D46: ='Startovní listina'!B26 -> 28 | E46: ='Startovní listina'!C26 -> Pučálka | F46: ='Startovní listina'!D26 -> Radek | G46: ='Startovní listina'!E26 -> 1973 | H46: ='Startovní listina'!F26 -> Železárny Štěpánov s.r.o | I46: 03:32:19
A47: =IF('Výsledková listina'!D46<>"",A46+1,"") -> 43 | B47: 2 | C47: ='Startovní listina'!G53 -> H | D47: ='Startovní listina'!B53 -> 67 | E47: ='Startovní listina'!C53 -> Podmelová | F47: ='Startovní listina'!D53 -> Vilma | G47: ='Startovní listina'!E53 -> 1962 | H47: ='Startovní listina'!F53 -> AC Moravská Slavia Brno | I47: 03:34:29
A48: =IF('Výsledková listina'!D47<>"",A47+1,"") -> 44 | B48: 13 | C48: ='Startovní listina'!G67 -> B | D48: ='Startovní listina'!B67 -> 86 | E48: ='Startovní listina'!C67 -> Benc | F48: ='Startovní listina'!D67 -> Karel | G48: ='Startovní listina'!E67 -> 1975 | H48: ='Startovní listina'!F67 -> Pivonice | I48: 03:36:44
A49: =IF('Výsledková listina'!D48<>"",A48+1,"") -> 45 | B49: 6 | C49: ='Startovní listina'!G64 -> C | D49: ='Startovní listina'!B64 -> 83 | E49: ='Startovní listina'!C64 -> Zourek | F49: ='Startovní listina'!D64 -> Karel | G49: ='Startovní listina'!E64 -> 1959 | H49: ='Startovní listina'!F64 -> Bedřichovice | I49: 03:41:37
A50: =IF('Výsledková listina'!D49<>"",A49+1,"") -> 46 | B50: 5 | C50: ='Startovní listina'!G6 -> G | D50: ='Startovní listina'!B6 -> 3 | E50: ='Startovní listina'!C6 -> Ježová | F50: ='Startovní listina'!D6 -> Martina | G50: ='Startovní listina'!E6 -> 1975 | H50: ='Startovní listina'!F6 -> Brno | I50: 03:42:47
A51: =IF('Výsledková listina'!D50<>"",A50+1,"") -> 47 | B51: 5 | C51: ='Startovní listina'!G27 -> F | D51: ='Startovní listina'!B27 -> 30 | E51: ='Startovní listina'!C27 -> Křípalová | F51: ='Startovní listina'!D27 -> Renata | G51: ='Startovní listina'!E27 -> 1983 | H51: ='Startovní listina'!F27 -> Třebíč | I51: 03:43:37
A52: =IF('Výsledková listina'!D51<>"",A51+1,"") -> 48 | B52: 6 | C52: ='Startovní listina'!G9 -> F | D52: ='Startovní listina'!B9 -> 6 | E52: ='Startovní listina'!C9 -> Navrátilová | F52: ='Startovní listina'!D9 -> Vlasta | G52: ='Startovní listina'!E9 -> 1983 | H52: ='Startovní listina'!F9 -> Vír | I52: 03:47:53
A53: =IF('Výsledková listina'!D52<>"",A52+1,"") -> 49 | B53: 6 | C53: ='Startovní listina'!G48 -> G | D53: ='Startovní listina'!B48 -> 60 | E53: ='Startovní listina'!C48 -> Rokosová | F53: ='Startovní listina'!D48 -> Ivana | G53: ='Startovní listina'!E48 -> 1982 | H53: ='Startovní listina'!F48 -> Polička | I53: 03:50:36
A54: =IF('Výsledková listina'!D53<>"",A53+1,"") -> 50 | B54: 7 | C54: ='Startovní listina'!G45 -> C | D54: ='Startovní listina'!B45 -> 54 | E54: ='Startovní listina'!C45 -> Drózd | F54: ='Startovní listina'!D45 -> Januš | G54: ='Startovní listina'!E45 -> 1962 | H54: ='Startovní listina'!F45 -> Velké Přílepy | I54: 03:52:56
A55: =IF('Výsledková listina'!D54<>"",A54+1,"") -> 51 | B55: 7 | C55: ='Startovní listina'!G28 -> G | D55: ='Startovní listina'!B28 -> 31 | E55: ='Startovní listina'!C28 -> Škvařilová | F55: ='Startovní listina'!D28 -> Eva | G55: ='Startovní listina'!E28 -> 1973 | H55: ='Startovní listina'!F28 -> RSFK Říčany | I55: 03:54:13
A56: =IF('Výsledková listina'!D55<>"",A55+1,"") -> 52 | B56: 3 | C56: ='Startovní listina'!G36 -> H | D56: ='Startovní listina'!B36 -> 41 | E56: ='Startovní listina'!C36 -> Křižovičová | F56: ='Startovní listina'!D36 -> Hana | G56: ='Startovní listina'!E36 -> 1971 | H56: ='Startovní listina'!F36 -> Nové Město na Moravě | I56: 03:54:14
A57: =IF('Výsledková listina'!D56<>"",A56+1,"") -> 53 | B57: 14 | C57: ='Startovní listina'!G54 -> B | D57: ='Startovní listina'!B54 -> 69 | E57: ='Startovní listina'!C54 -> Faja | F57: ='Startovní listina'!D54 -> Ondřej | G57: ='Startovní listina'!E54 -> 1976 | H57: ='Startovní listina'!F54 -> Brno | I57: 03:57:29
A58: =IF('Výsledková listina'!D57<>"",A57+1,"") -> 54 | B58: 8 | C58: ='Startovní listina'!G51 -> C | D58: ='Startovní listina'!B51 -> 63 | E58: ='Startovní listina'!C51 -> Münster | F58: ='Startovní listina'!D51 -> Libor | G58: ='Startovní listina'!E51 -> 1966 | H58: ='Startovní listina'!F51 -> Blansko | I58: 04:01:51
A59: =IF('Výsledková listina'!D58<>"",A58+1,"") -> 55 | B59: 4 | C59: ='Startovní listina'!G11 -> H | D59: ='Startovní listina'!B11 -> 9 | E59: ='Startovní listina'!C11 -> Tesařová | F59: ='Startovní listina'!D11 -> Marie | G59: ='Startovní listina'!E11 -> 1954 | H59: ='Startovní listina'!F11 -> Křižanov | I59: 04:04:20
A60: =IF('Výsledková listina'!D59<>"",A59+1,"") -> 56 | B60: 5 | C60: ='Startovní listina'!G24 -> H | D60: ='Startovní listina'!B24 -> 26 | E60: ='Startovní listina'!C24 -> Šedová | F60: ='Startovní listina'!D24 -> Věra | G60: ='Startovní listina'!E24 -> 1964 | H60: ='Startovní listina'!F24 -> Praha | I60: 04:09:04
A61: =IF('Výsledková listina'!D60<>"",A60+1,"") -> 57 | B61: 8 | C61: ='Startovní listina'!G47 -> G | D61: ='Startovní listina'!B47 -> 58 | E61: ='Startovní listina'!C47 -> Benešová | F61: ='Startovní listina'!D47 -> Marie | G61: ='Startovní listina'!E47 -> 1982 | H61: ='Startovní listina'!F47 -> Dolní Rožínka | I61: 04:10:36
A62: =IF('Výsledková listina'!D61<>"",A61+1,"") -> 58 | B62: 1 | C62: ='Startovní listina'!G12 -> E | D62: ='Startovní listina'!B12 -> 10 | E62: ='Startovní listina'!C12 -> Holý | F62: ='Startovní listina'!D12 -> Josef | G62: ='Startovní listina'!E12 -> 1941 | H62: ='Startovní listina'!F12 -> AC Moravská Slavia Brno | I62: 04:11:22
A63: =IF('Výsledková listina'!D62<>"",A62+1,"") -> 59 | B63: 12 | C63: ='Startovní listina'!G14 -> A | D63: ='Startovní listina'!B14 -> 12 | E63: ='Startovní listina'!C14 -> Pivec | F63: ='Startovní listina'!D14 -> Jan | G63: ='Startovní listina'!E14 -> 1981 | H63: ='Startovní listina'!F14 -> Digitor.cz | I63: DNF
A64: =IF('Výsledková listina'!D63<>"",A63+1,"") -> 60 | B64: 13 | C64: ='Startovní listina'!G50 -> A | D64: ='Startovní listina'!B50 -> 62 | E64: ='Startovní listina'!C50 -> Tomek | F64: ='Startovní listina'!D50 -> Pavel | G64: ='Startovní listina'!E50 -> 1980 | H64: ='Startovní listina'!F50 -> Brno | I64: DNF
A65: =IF('Výsledková listina'!D64<>"",A64+1,"") -> 61 | B65: 15 | C65: ='Startovní listina'!G18 -> B | D65: ='Startovní listina'!B18 -> 18 | E65: ='Startovní listina'!C18 -> Benko | F65: ='Startovní listina'!D18 -> Jan | G65: ='Startovní listina'!E18 -> 1974 | H65: ='Startovní listina'!F18 -> GOMANGO Litomyšl | I65: DNF
A66: =IF('Výsledková listina'!D65<>"",A65+1,"") -> 62 | B66: 16 | C66: ='Startovní listina'!G25 -> B | D66: ='Startovní listina'!B25 -> 27 | E66: ='Startovní listina'!C25 -> Žličař | F66: ='Startovní listina'!D25 -> Karel | G66: ='Startovní listina'!E25 -> 1977 | H66: ='Startovní listina'!F25 -> Železárny Štěpánov s.r.o | I66: DNF
A67: =IF('Výsledková listina'!D66<>"",A66+1,"") -> 63 | B67: 9 | C67: ='Startovní listina'!G13 -> G | D67: ='Startovní listina'!B13 -> 11 | E67: ='Startovní listina'!C13 -> Dostálová | F67: ='Startovní listina'!D13 -> Vendula | G67: ='Startovní listina'!E13 -> 1981 | H67: ='Startovní listina'!F13 -> Digitor.cz | I67: DNF
A68: =IF('Výsledková listina'!D67<>"",A67+1,"") -> 64 | C68: ='Startovní listina'!G68 ->  | D68: ='Startovní listina'!B68 ->  | E68: ='Startovní listina'!C68 ->  | F68: ='Startovní listina'!D68 ->  | G68: ='Startovní listina'!E68 ->  | H68: ='Startovní listina'!F68 -> 
A69: =IF('Výsledková listina'!D68<>"",A68+1,"") ->  | C69: ='Startovní listina'!G69 ->  | D69: ='Startovní listina'!B69 ->  | E69: ='Startovní listina'!C69 ->  | F69: ='Startovní listina'!D69 ->  | G69: ='Startovní listina'!E69 ->  | H69: ='Startovní listina'!F69 -> 
A70: =IF('Výsledková listina'!D69<>"",A69+1,"") ->  | C70: ='Startovní listina'!G70 ->  | D70: ='Startovní listina'!B70 ->  | E70: ='Startovní listina'!C70 ->  | F70: ='Startovní listina'!D70 ->  | G70: ='Startovní listina'!E70 ->  | H70: ='Startovní listina'!F70 -> 
A71: =IF('Výsledková listina'!D70<>"",A70+1,"") ->  | C71: ='Startovní listina'!G71 ->  | D71: ='Startovní listina'!B71 ->  | E71: ='Startovní listina'!C71 ->  | F71: ='Startovní listina'!D71 ->  | G71: ='Startovní listina'!E71 ->  | H71: ='Startovní listina'!F71 -> 
A72: =IF('Výsledková listina'!D71<>"",A71+1,"") ->  | C72: ='Startovní listina'!G72 ->  | D72: ='Startovní listina'!B72 ->  | E72: ='Startovní listina'!C72 ->  | F72: ='Startovní listina'!D72 ->  | G72: ='Startovní listina'!E72 ->  | H72: ='Startovní listina'!F72 -> 
A73: =IF('Výsledková listina'!D72<>"",A72+1,"") ->  | C73: ='Startovní listina'!G73 ->  | D73: ='Startovní listina'!B73 ->  | E73: ='Startovní listina'!C73 ->  | F73: ='Startovní listina'!D73 ->  | G73: ='Startovní listina'!E73 ->  | H73: ='Startovní listina'!F73 -> 
A74: =IF('Výsledková listina'!D73<>"",A73+1,"") ->  | C74: ='Startovní listina'!G74 ->  | D74: ='Startovní listina'!B74 ->  | E74: ='Startovní listina'!C74 ->  | F74: ='Startovní listina'!D74 ->  | G74: ='Startovní listina'!E74 ->  | H74: ='Startovní listina'!F74 -> 
A75: =IF('Výsledková listina'!D74<>"",A74+1,"") ->  | C75: ='Startovní listina'!G77 ->  | D75: ='Startovní listina'!B77 ->  | E75: ='Startovní listina'!C77 ->  | F75: ='Startovní listina'!D77 ->  | G75: ='Startovní listina'!E77 ->  | H75: ='Startovní listina'!F77 -> 
A76: =IF('Výsledková listina'!D75<>"",A75+1,"") ->  | C76: ='Startovní listina'!G80 ->  | D76: ='Startovní listina'!B80 ->  | E76: ='Startovní listina'!C80 ->  | F76: ='Startovní listina'!D80 ->  | G76: ='Startovní listina'!E80 ->  | H76: ='Startovní listina'!F80 -> 
A77: =IF('Výsledková listina'!D76<>"",A76+1,"") ->  | C77: ='Startovní listina'!G73 ->  | D77: ='Startovní listina'!B73 ->  | E77: ='Startovní listina'!C73 ->  | F77: ='Startovní listina'!D73 ->  | G77: ='Startovní listina'!E73 ->  | H77: ='Startovní listina'!F73 -> 
A78: =IF('Výsledková listina'!D77<>"",A77+1,"") ->  | C78: ='Startovní listina'!G81 ->  | D78: ='Startovní listina'!B81 ->  | E78: ='Startovní listina'!C81 ->  | F78: ='Startovní listina'!D81 ->  | G78: ='Startovní listina'!E81 ->  | H78: ='Startovní listina'!F81 -> 
A79: =IF('Výsledková listina'!D78<>"",A78+1,"") ->  | C79: ='Startovní listina'!G75 ->  | D79: ='Startovní listina'!B75 ->  | E79: ='Startovní listina'!C75 ->  | F79: ='Startovní listina'!D75 ->  | G79: ='Startovní listina'!E75 ->  | H79: ='Startovní listina'!F75 -> 
A80: =IF('Výsledková listina'!D79<>"",A79+1,"") ->  | C80: ='Startovní listina'!G78 ->  | D80: ='Startovní listina'!B78 ->  | E80: ='Startovní listina'!C78 ->  | F80: ='Startovní listina'!D78 ->  | G80: ='Startovní listina'!E78 ->  | H80: ='Startovní listina'!F78 -> 
A81: =IF('Výsledková listina'!D80<>"",A80+1,"") ->  | C81: ='Startovní listina'!G68 ->  | D81: ='Startovní listina'!B68 ->  | E81: ='Startovní listina'!C68 ->  | F81: ='Startovní listina'!D68 ->  | G81: ='Startovní listina'!E68 ->  | H81: ='Startovní listina'!F68 -> 
A82: =IF('Výsledková listina'!D81<>"",A81+1,"") ->  | C82: ='Startovní listina'!G79 ->  | D82: ='Startovní listina'!B79 ->  | E82: ='Startovní listina'!C79 ->  | F82: ='Startovní listina'!D79 ->  | G82: ='Startovní listina'!E79 ->  | H82: ='Startovní listina'!F79 -> 
A83: =IF('Výsledková listina'!D82<>"",A82+1,"") ->  | C83: ='Startovní listina'!G82 ->  | D83: ='Startovní listina'!B82 ->  | E83: ='Startovní listina'!C82 ->  | F83: ='Startovní listina'!D82 ->  | G83: ='Startovní listina'!E82 ->  | H83: ='Startovní listina'!F82 -> 
A84: =IF('Výsledková listina'!D83<>"",A83+1,"") ->  | C84: ='Startovní listina'!G83 ->  | D84: ='Startovní listina'!B83 ->  | E84: ='Startovní listina'!C83 ->  | F84: ='Startovní listina'!D83 ->  | G84: ='Startovní listina'!E83 ->  | H84: ='Startovní listina'!F83 -> 
A85: =IF('Výsledková listina'!D84<>"",A84+1,"") ->  | C85: ='Startovní listina'!G85 ->  | D85: ='Startovní listina'!B85 ->  | E85: ='Startovní listina'!C85 ->  | F85: ='Startovní listina'!D85 ->  | G85: ='Startovní listina'!E85 ->  | H85: ='Startovní listina'!F85 -> 
A86: =IF('Výsledková listina'!D85<>"",A85+1,"") ->  | C86: ='Startovní listina'!G86 ->  | D86: ='Startovní listina'!B86 ->  | E86: ='Startovní listina'!C86 ->  | F86: ='Startovní listina'!D86 ->  | G86: ='Startovní listina'!E86 ->  | H86: ='Startovní listina'!F86 -> 
A87: =IF('Výsledková listina'!D86<>"",A86+1,"") ->  | C87: ='Startovní listina'!G87 ->  | D87: ='Startovní listina'!B87 ->  | E87: ='Startovní listina'!C87 ->  | F87: ='Startovní listina'!D87 ->  | G87: ='Startovní listina'!E87 ->  | H87: ='Startovní listina'!F87 -> 
A88: =IF('Výsledková listina'!D87<>"",A87+1,"") ->  | C88: ='Startovní listina'!G88 ->  | D88: ='Startovní listina'!B88 ->  | E88: ='Startovní listina'!C88 ->  | F88: ='Startovní listina'!D88 ->  | G88: ='Startovní listina'!E88 ->  | H88: ='Startovní listina'!F88 -> 
A89: =IF('Výsledková listina'!D88<>"",A88+1,"") ->  | C89: ='Startovní listina'!G89 ->  | D89: ='Startovní listina'!B89 ->  | E89: ='Startovní listina'!C89 ->  | F89: ='Startovní listina'!D89 ->  | G89: ='Startovní listina'!E89 ->  | H89: ='Startovní listina'!F89 -> 
A90: =IF('Výsledková listina'!D89<>"",A89+1,"") ->  | C90: ='Startovní listina'!G90 ->  | D90: ='Startovní listina'!B90 ->  | E90: ='Startovní listina'!C90 ->  | F90: ='Startovní listina'!D90 ->  | G90: ='Startovní listina'!E90 ->  | H90: ='Startovní listina'!F90 -> 
A91: =IF('Výsledková listina'!D90<>"",A90+1,"") ->  | C91: ='Startovní listina'!G91 ->  | D91: ='Startovní listina'!B91 ->  | E91: ='Startovní listina'!C91 ->  | F91: ='Startovní listina'!D91 ->  | G91: ='Startovní listina'!E91 ->  | H91: ='Startovní listina'!F91 -> 
A92: =IF('Výsledková listina'!D91<>"",A91+1,"") ->  | C92: ='Startovní listina'!G92 ->  | D92: ='Startovní listina'!B92 ->  | E92: ='Startovní listina'!C92 ->  | F92: ='Startovní listina'!D92 ->  | G92: ='Startovní listina'!E92 ->  | H92: ='Startovní listina'!F92 -> 
A93: =IF('Výsledková listina'!D92<>"",A92+1,"") ->  | C93: ='Startovní listina'!G93 ->  | D93: ='Startovní listina'!B93 ->  | E93: ='Startovní listina'!C93 ->  | F93: ='Startovní listina'!D93 ->  | G93: ='Startovní listina'!E93 ->  | H93: ='Startovní listina'!F93 -> 
A94: =IF('Výsledková listina'!D93<>"",A93+1,"") ->  | C94: ='Startovní listina'!G94 ->  | D94: ='Startovní listina'!B94 ->  | E94: ='Startovní listina'!C94 ->  | F94: ='Startovní listina'!D94 ->  | G94: ='Startovní listina'!E94 ->  | H94: ='Startovní listina'!F94 -> 
A95: =IF('Výsledková listina'!D94<>"",A94+1,"") ->  | C95: ='Startovní listina'!G95 ->  | D95: ='Startovní listina'!B95 ->  | E95: ='Startovní listina'!C95 ->  | F95: ='Startovní listina'!D95 ->  | G95: ='Startovní listina'!E95 ->  | H95: ='Startovní listina'!F95 -> 
A96: =IF('Výsledková listina'!D95<>"",A95+1,"") ->  | C96: ='Startovní listina'!G96 ->  | D96: ='Startovní listina'!B96 ->  | E96: ='Startovní listina'!C96 ->  | F96: ='Startovní listina'!D96 ->  | G96: ='Startovní listina'!E96 ->  | H96: ='Startovní listina'!F96 -> 
A97: =IF('Výsledková listina'!D96<>"",A96+1,"") ->  | C97: ='Startovní listina'!G97 ->  | D97: ='Startovní listina'!B97 ->  | E97: ='Startovní listina'!C97 ->  | F97: ='Startovní listina'!D97 ->  | G97: ='Startovní listina'!E97 ->  | H97: ='Startovní listina'!F97 -> 
A98: =IF('Výsledková listina'!D97<>"",A97+1,"") ->  | C98: ='Startovní listina'!G98 ->  | D98: ='Startovní listina'!B98 ->  | E98: ='Startovní listina'!C98 ->  | F98: ='Startovní listina'!D98 ->  | G98: ='Startovní listina'!E98 ->  | H98: ='Startovní listina'!F98 -> 
A99: =IF('Výsledková listina'!D98<>"",A98+1,"") ->  | C99: ='Startovní listina'!G99 ->  | D99: ='Startovní listina'!B99 ->  | E99: ='Startovní listina'!C99 ->  | F99: ='Startovní listina'!D99 ->  | G99: ='Startovní listina'!E99 ->  | H99: ='Startovní listina'!F99 -> 
A100: =IF('Výsledková listina'!D99<>"",A99+1,"") ->  | C100: ='Startovní listina'!G100 ->  | D100: ='Startovní listina'!B100 ->  | E100: ='Startovní listina'!C100 ->  | F100: ='Startovní listina'!D100 ->  | G100: ='Startovní listina'!E100 ->  | H100: ='Startovní listina'!F100 -> 
A101: =IF('Výsledková listina'!D100<>"",A100+1,"") ->  | C101: ='Startovní listina'!G101 ->  | D101: ='Startovní listina'!B101 ->  | E101: ='Startovní listina'!C101 ->  | F101: ='Startovní listina'!D101 ->  | G101: ='Startovní listina'!E101 ->  | H101: ='Startovní listina'!F101 -> 
A102: =IF('Výsledková listina'!D101<>"",A101+1,"") ->  | C102: ='Startovní listina'!G102 ->  | D102: ='Startovní listina'!B102 ->  | E102: ='Startovní listina'!C102 ->  | F102: ='Startovní listina'!D102 ->  | G102: ='Startovní listina'!E102 ->  | H102: ='Startovní listina'!F102 -> 
A103: =IF('Výsledková listina'!D102<>"",A102+1,"") ->  | C103: ='Startovní listina'!G103 ->  | D103: ='Startovní listina'!B103 ->  | E103: ='Startovní listina'!C103 ->  | F103: ='Startovní listina'!D103 ->  | G103: ='Startovní listina'!E103 ->  | H103: ='Startovní listina'!F103 -> 
A104: =IF('Výsledková listina'!D103<>"",A103+1,"") ->  | C104: ='Startovní listina'!G104 ->  | D104: ='Startovní listina'!B104 ->  | E104: ='Startovní listina'!C104 ->  | F104: ='Startovní listina'!D104 ->  | G104: ='Startovní listina'!E104 ->  | H104: ='Startovní listina'!F104 -> 

Sheet Družstva (hidden)
B1: ="Výsledková listina - Malý svratecký maratón "&'Prezenční listina'!O2&" - družstva" -> Výsledková listina - Malý svratecký maratón 2017 - družstva
B2: ='Prezenční listina'!O2-1953&". ročník" -> 64. ročník
B3: Pořadí | C3: Startovní číslo | D3: Příjmení | E3: Jméno | F3: Narození | G3: Oddíl / Bydliště | H3: Čas | I3: Výsledný čas
B4: 1. | C4: 48 | D4: =IF(ISERROR(VLOOKUP(C4,'Startovní listina'!$B$5:$F$141,2)),"",VLOOKUP(C4,'Startovní listina'!$B$5:$F$141,2)) -> Plekanec | E4: =IF(ISERROR(VLOOKUP(C4,'Startovní listina'!$B$5:$F$141,3)),"",VLOOKUP(C4,'Startovní listina'!$B$5:$F$141,3)) -> Juraj | F4: =IF(ISERROR(VLOOKUP(C4,'Startovní listina'!$B$5:$F$141,4)),"",VLOOKUP(C4,'Startovní listina'!$B$5:$F$141,4)) -> 1974 | G4: =IF(K4=K5,K4,"RŮZNÉ ODDÍLY !!!") -> Brno | H4: 02:07:40 | I4: =IF((H4=0),"",H4+H5) -> 04:27:39 | K4: =IF(ISERROR(VLOOKUP(C4,'Startovní listina'!$B$5:$F$141,5)),"",VLOOKUP(C4,'Startovní listina'!$B$5:$F$141,5)) -> Brno
C5: 49 | D5: =IF(ISERROR(VLOOKUP(C5,'Startovní listina'!$B$5:$F$141,2)),"",VLOOKUP(C5,'Startovní listina'!$B$5:$F$141,2)) -> Ondráček | E5: =IF(ISERROR(VLOOKUP(C5,'Startovní listina'!$B$5:$F$141,3)),"",VLOOKUP(C5,'Startovní listina'!$B$5:$F$141,3)) -> Tomáš | F5: =IF(ISERROR(VLOOKUP(C5,'Startovní listina'!$B$5:$F$141,4)),"",VLOOKUP(C5,'Startovní listina'!$B$5:$F$141,4)) -> 1977 | H5: 02:19:59 | K5: =IF(ISERROR(VLOOKUP(C5,'Startovní listina'!$B$5:$F$141,5)),"",VLOOKUP(C5,'Startovní listina'!$B$5:$F$141,5)) -> Brno
B6: 2. | D6: =IF(ISERROR(VLOOKUP(C6,'Startovní listina'!$B$5:$F$141,2)),"",VLOOKUP(C6,'Startovní listina'!$B$5:$F$141,2)) ->  | E6: =IF(ISERROR(VLOOKUP(C6,'Startovní listina'!$B$5:$F$141,3)),"",VLOOKUP(C6,'Startovní listina'!$B$5:$F$141,3)) ->  | F6: =IF(ISERROR(VLOOKUP(C6,'Startovní listina'!$B$5:$F$141,4)),"",VLOOKUP(C6,'Startovní listina'!$B$5:$F$141,4)) ->  | G6: =IF(K6=K7,K6,"RŮZNÉ ODDÍLY !!!") ->  | H6: 03:50:36 | I6: =IF((H6=0),"",H6+H7) -> 04:35:36 | K6: =IF(ISERROR(VLOOKUP(C6,'Startovní listina'!$B$5:$F$141,5)),"",VLOOKUP(C6,'Startovní listina'!$B$5:$F$141,5)) -> 
D7: =IF(ISERROR(VLOOKUP(C7,'Startovní listina'!$B$5:$F$141,2)),"",VLOOKUP(C7,'Startovní listina'!$B$5:$F$141,2)) ->  | E7: =IF(ISERROR(VLOOKUP(C7,'Startovní listina'!$B$5:$F$141,3)),"",VLOOKUP(C7,'Startovní listina'!$B$5:$F$141,3)) ->  | F7: =IF(ISERROR(VLOOKUP(C7,'Startovní listina'!$B$5:$F$141,4)),"",VLOOKUP(C7,'Startovní listina'!$B$5:$F$141,4)) ->  | H7: 00:45:00 | K7: =IF(ISERROR(VLOOKUP(C7,'Startovní listina'!$B$5:$F$141,5)),"",VLOOKUP(C7,'Startovní listina'!$B$5:$F$141,5)) -> 
B8: 3. | D8: =IF(ISERROR(VLOOKUP(C8,'Startovní listina'!$B$5:$F$141,2)),"",VLOOKUP(C8,'Startovní listina'!$B$5:$F$141,2)) ->  | E8: =IF(ISERROR(VLOOKUP(C8,'Startovní listina'!$B$5:$F$141,3)),"",VLOOKUP(C8,'Startovní listina'!$B$5:$F$141,3)) ->  | F8: =IF(ISERROR(VLOOKUP(C8,'Startovní listina'!$B$5:$F$141,4)),"",VLOOKUP(C8,'Startovní listina'!$B$5:$F$141,4)) ->  | G8: =IF(K8=K9,K8,"RŮZNÉ ODDÍLY !!!") ->  | I8: =IF((H8=0),"",H8+H9) ->  | K8: =IF(ISERROR(VLOOKUP(C8,'Startovní listina'!$B$5:$F$141,5)),"",VLOOKUP(C8,'Startovní listina'!$B$5:$F$141,5)) -> 
D9: =IF(ISERROR(VLOOKUP(C9,'Startovní listina'!$B$5:$F$141,2)),"",VLOOKUP(C9,'Startovní listina'!$B$5:$F$141,2)) ->  | E9: =IF(ISERROR(VLOOKUP(C9,'Startovní listina'!$B$5:$F$141,3)),"",VLOOKUP(C9,'Startovní listina'!$B$5:$F$141,3)) ->  | F9: =IF(ISERROR(VLOOKUP(C9,'Startovní listina'!$B$5:$F$141,4)),"",VLOOKUP(C9,'Startovní listina'!$B$5:$F$141,4)) ->  | K9: =IF(ISERROR(VLOOKUP(C9,'Startovní listina'!$B$5:$F$141,5)),"",VLOOKUP(C9,'Startovní listina'!$B$5:$F$141,5)) -> 
B10: 4. | D10: =IF(ISERROR(VLOOKUP(C10,'Startovní listina'!$B$5:$F$141,2)),"",VLOOKUP(C10,'Startovní listina'!$B$5:$F$141,2)) ->  | E10: =IF(ISERROR(VLOOKUP(C10,'Startovní listina'!$B$5:$F$141,3)),"",VLOOKUP(C10,'Startovní listina'!$B$5:$F$141,3)) ->  | F10: =IF(ISERROR(VLOOKUP(C10,'Startovní listina'!$B$5:$F$141,4)),"",VLOOKUP(C10,'Startovní listina'!$B$5:$F$141,4)) ->  | G10: =IF(K10=K11,K10,"RŮZNÉ ODDÍLY !!!") ->  | I10: =IF((H10=0),"",H10+H11) ->  | K10: =IF(ISERROR(VLOOKUP(C10,'Startovní listina'!$B$5:$F$141,5)),"",VLOOKUP(C10,'Startovní listina'!$B$5:$F$141,5)) -> 
D11: =IF(ISERROR(VLOOKUP(C11,'Startovní listina'!$B$5:$F$141,2)),"",VLOOKUP(C11,'Startovní listina'!$B$5:$F$141,2)) ->  | E11: =IF(ISERROR(VLOOKUP(C11,'Startovní listina'!$B$5:$F$141,3)),"",VLOOKUP(C11,'Startovní listina'!$B$5:$F$141,3)) ->  | F11: =IF(ISERROR(VLOOKUP(C11,'Startovní listina'!$B$5:$F$141,4)),"",VLOOKUP(C11,'Startovní listina'!$B$5:$F$141,4)) ->  | K11: =IF(ISERROR(VLOOKUP(C11,'Startovní listina'!$B$5:$F$141,5)),"",VLOOKUP(C11,'Startovní listina'!$B$5:$F$141,5)) -> 
B12: 5. | D12: =IF(ISERROR(VLOOKUP(C12,'Startovní listina'!$B$5:$F$141,2)),"",VLOOKUP(C12,'Startovní listina'!$B$5:$F$141,2)) ->  | E12: =IF(ISERROR(VLOOKUP(C12,'Startovní listina'!$B$5:$F$141,3)),"",VLOOKUP(C12,'Startovní listina'!$B$5:$F$141,3)) ->  | F12: =IF(ISERROR(VLOOKUP(C12,'Startovní listina'!$B$5:$F$141,4)),"",VLOOKUP(C12,'Startovní listina'!$B$5:$F$141,4)) ->  | G12: =IF(K12=K13,K12,"RŮZNÉ ODDÍLY !!!") ->  | I12: =IF((H12=0),"",H12+H13) ->  | K12: =IF(ISERROR(VLOOKUP(C12,'Startovní listina'!$B$5:$F$141,5)),"",VLOOKUP(C12,'Startovní listina'!$B$5:$F$141,5)) -> 
D13: =IF(ISERROR(VLOOKUP(C13,'Startovní listina'!$B$5:$F$141,2)),"",VLOOKUP(C13,'Startovní listina'!$B$5:$F$141,2)) ->  | E13: =IF(ISERROR(VLOOKUP(C13,'Startovní listina'!$B$5:$F$141,3)),"",VLOOKUP(C13,'Startovní listina'!$B$5:$F$141,3)) ->  | F13: =IF(ISERROR(VLOOKUP(C13,'Startovní listina'!$B$5:$F$141,4)),"",VLOOKUP(C13,'Startovní listina'!$B$5:$F$141,4)) ->  | K13: =IF(ISERROR(VLOOKUP(C13,'Startovní listina'!$B$5:$F$141,5)),"",VLOOKUP(C13,'Startovní listina'!$B$5:$F$141,5)) -> 
B14: 6. | D14: =IF(ISERROR(VLOOKUP(C14,'Startovní listina'!$B$5:$F$141,2)),"",VLOOKUP(C14,'Startovní listina'!$B$5:$F$141,2)) ->  | E14: =IF(ISERROR(VLOOKUP(C14,'Startovní listina'!$B$5:$F$141,3)),"",VLOOKUP(C14,'Startovní listina'!$B$5:$F$141,3)) ->  | F14: =IF(ISERROR(VLOOKUP(C14,'Startovní listina'!$B$5:$F$141,4)),"",VLOOKUP(C14,'Startovní listina'!$B$5:$F$141,4)) ->  | G14: =IF(K14=K15,K14,"RŮZNÉ ODDÍLY !!!") ->  | I14: =IF((H14=0),"",H14+H15) ->  | K14: =IF(ISERROR(VLOOKUP(C14,'Startovní listina'!$B$5:$F$141,5)),"",VLOOKUP(C14,'Startovní listina'!$B$5:$F$141,5)) -> 
D15: =IF(ISERROR(VLOOKUP(C15,'Startovní listina'!$B$5:$F$141,2)),"",VLOOKUP(C15,'Startovní listina'!$B$5:$F$141,2)) ->  | E15: =IF(ISERROR(VLOOKUP(C15,'Startovní listina'!$B$5:$F$141,3)),"",VLOOKUP(C15,'Startovní listina'!$B$5:$F$141,3)) ->  | F15: =IF(ISERROR(VLOOKUP(C15,'Startovní listina'!$B$5:$F$141,4)),"",VLOOKUP(C15,'Startovní listina'!$B$5:$F$141,4)) ->  | K15: =IF(ISERROR(VLOOKUP(C15,'Startovní listina'!$B$5:$F$141,5)),"",VLOOKUP(C15,'Startovní listina'!$B$5:$F$141,5)) -> 
B16: 7. | D16: =IF(ISERROR(VLOOKUP(C16,'Startovní listina'!$B$5:$F$141,2)),"",VLOOKUP(C16,'Startovní listina'!$B$5:$F$141,2)) ->  | E16: =IF(ISERROR(VLOOKUP(C16,'Startovní listina'!$B$5:$F$141,3)),"",VLOOKUP(C16,'Startovní listina'!$B$5:$F$141,3)) ->  | F16: =IF(ISERROR(VLOOKUP(C16,'Startovní listina'!$B$5:$F$141,4)),"",VLOOKUP(C16,'Startovní listina'!$B$5:$F$141,4)) ->  | G16: =IF(K16=K17,K16,"RŮZNÉ ODDÍLY !!!") ->  | I16: =IF((H16=0),"",H16+H17) ->  | K16: =IF(ISERROR(VLOOKUP(C16,'Startovní listina'!$B$5:$F$141,5)),"",VLOOKUP(C16,'Startovní listina'!$B$5:$F$141,5)) -> 
D17: =IF(ISERROR(VLOOKUP(C17,'Startovní listina'!$B$5:$F$141,2)),"",VLOOKUP(C17,'Startovní listina'!$B$5:$F$141,2)) ->  | E17: =IF(ISERROR(VLOOKUP(C17,'Startovní listina'!$B$5:$F$141,3)),"",VLOOKUP(C17,'Startovní listina'!$B$5:$F$141,3)) ->  | F17: =IF(ISERROR(VLOOKUP(C17,'Startovní listina'!$B$5:$F$141,4)),"",VLOOKUP(C17,'Startovní listina'!$B$5:$F$141,4)) ->  | K17: =IF(ISERROR(VLOOKUP(C17,'Startovní listina'!$B$5:$F$141,5)),"",VLOOKUP(C17,'Startovní listina'!$B$5:$F$141,5)) -> 
B18: 8. | D18: =IF(ISERROR(VLOOKUP(C18,'Startovní listina'!$B$5:$F$141,2)),"",VLOOKUP(C18,'Startovní listina'!$B$5:$F$141,2)) ->  | E18: =IF(ISERROR(VLOOKUP(C18,'Startovní listina'!$B$5:$F$141,3)),"",VLOOKUP(C18,'Startovní listina'!$B$5:$F$141,3)) ->  | F18: =IF(ISERROR(VLOOKUP(C18,'Startovní listina'!$B$5:$F$141,4)),"",VLOOKUP(C18,'Startovní listina'!$B$5:$F$141,4)) ->  | I18: =IF((H18=0),"",H18+H19) ->  | K18: =IF(ISERROR(VLOOKUP(C18,'Startovní listina'!$B$5:$F$141,5)),"",VLOOKUP(C18,'Startovní listina'!$B$5:$F$141,5)) -> 
D19: =IF(ISERROR(VLOOKUP(C19,'Startovní listina'!$B$5:$F$141,2)),"",VLOOKUP(C19,'Startovní listina'!$B$5:$F$141,2)) ->  | E19: =IF(ISERROR(VLOOKUP(C19,'Startovní listina'!$B$5:$F$141,3)),"",VLOOKUP(C19,'Startovní listina'!$B$5:$F$141,3)) ->  | F19: =IF(ISERROR(VLOOKUP(C19,'Startovní listina'!$B$5:$F$141,4)),"",VLOOKUP(C19,'Startovní listina'!$B$5:$F$141,4)) ->  | K19: =IF(ISERROR(VLOOKUP(C19,'Startovní listina'!$B$5:$F$141,5)),"",VLOOKUP(C19,'Startovní listina'!$B$5:$F$141,5)) -> 
B20: 9. | D20: =IF(ISERROR(VLOOKUP(C20,'Startovní listina'!$B$5:$F$141,2)),"",VLOOKUP(C20,'Startovní listina'!$B$5:$F$141,2)) ->  | E20: =IF(ISERROR(VLOOKUP(C20,'Startovní listina'!$B$5:$F$141,3)),"",VLOOKUP(C20,'Startovní listina'!$B$5:$F$141,3)) ->  | F20: =IF(ISERROR(VLOOKUP(C20,'Startovní listina'!$B$5:$F$141,4)),"",VLOOKUP(C20,'Startovní listina'!$B$5:$F$141,4)) ->  | I20: =IF((H20=0),"",H20+H21) ->  | K20: =IF(ISERROR(VLOOKUP(C20,'Startovní listina'!$B$5:$F$141,5)),"",VLOOKUP(C20,'Startovní listina'!$B$5:$F$141,5)) -> 
D21: =IF(ISERROR(VLOOKUP(C21,'Startovní listina'!$B$5:$F$141,2)),"",VLOOKUP(C21,'Startovní listina'!$B$5:$F$141,2)) ->  | E21: =IF(ISERROR(VLOOKUP(C21,'Startovní listina'!$B$5:$F$141,3)),"",VLOOKUP(C21,'Startovní listina'!$B$5:$F$141,3)) ->  | F21: =IF(ISERROR(VLOOKUP(C21,'Startovní listina'!$B$5:$F$141,4)),"",VLOOKUP(C21,'Startovní listina'!$B$5:$F$141,4)) ->  | K21: =IF(ISERROR(VLOOKUP(C21,'Startovní listina'!$B$5:$F$141,5)),"",VLOOKUP(C21,'Startovní listina'!$B$5:$F$141,5)) -> 
B22: 10. | D22: =IF(ISERROR(VLOOKUP(C22,'Startovní listina'!$B$5:$F$141,2)),"",VLOOKUP(C22,'Startovní listina'!$B$5:$F$141,2)) ->  | E22: =IF(ISERROR(VLOOKUP(C22,'Startovní listina'!$B$5:$F$141,3)),"",VLOOKUP(C22,'Startovní listina'!$B$5:$F$141,3)) ->  | F22: =IF(ISERROR(VLOOKUP(C22,'Startovní listina'!$B$5:$F$141,4)),"",VLOOKUP(C22,'Startovní listina'!$B$5:$F$141,4)) ->  | I22: =IF((H22=0),"",H22+H23) ->  | K22: =IF(ISERROR(VLOOKUP(C22,'Startovní listina'!$B$5:$F$141,5)),"",VLOOKUP(C22,'Startovní listina'!$B$5:$F$141,5)) -> 
D23: =IF(ISERROR(VLOOKUP(C23,'Startovní listina'!$B$5:$F$141,2)),"",VLOOKUP(C23,'Startovní listina'!$B$5:$F$141,2)) ->  | E23: =IF(ISERROR(VLOOKUP(C23,'Startovní listina'!$B$5:$F$141,3)),"",VLOOKUP(C23,'Startovní listina'!$B$5:$F$141,3)) ->  | F23: =IF(ISERROR(VLOOKUP(C23,'Startovní listina'!$B$5:$F$141,4)),"",VLOOKUP(C23,'Startovní listina'!$B$5:$F$141,4)) ->  | K23: =IF(ISERROR(VLOOKUP(C23,'Startovní listina'!$B$5:$F$141,5)),"",VLOOKUP(C23,'Startovní listina'!$B$5:$F$141,5)) -> 
B24: 11. | D24: =IF(ISERROR(VLOOKUP(C24,'Startovní listina'!$B$5:$F$141,2)),"",VLOOKUP(C24,'Startovní listina'!$B$5:$F$141,2)) ->  | E24: =IF(ISERROR(VLOOKUP(C24,'Startovní listina'!$B$5:$F$141,3)),"",VLOOKUP(C24,'Startovní listina'!$B$5:$F$141,3)) ->  | F24: =IF(ISERROR(VLOOKUP(C24,'Startovní listina'!$B$5:$F$141,4)),"",VLOOKUP(C24,'Startovní listina'!$B$5:$F$141,4)) ->  | I24: =IF((H24=0),"",H24+H25) ->  | K24: =IF(ISERROR(VLOOKUP(C24,'Startovní listina'!$B$5:$F$141,5)),"",VLOOKUP(C24,'Startovní listina'!$B$5:$F$141,5)) -> 
D25: =IF(ISERROR(VLOOKUP(C25,'Startovní listina'!$B$5:$F$141,2)),"",VLOOKUP(C25,'Startovní listina'!$B$5:$F$141,2)) ->  | E25: =IF(ISERROR(VLOOKUP(C25,'Startovní listina'!$B$5:$F$141,3)),"",VLOOKUP(C25,'Startovní listina'!$B$5:$F$141,3)) ->  | F25: =IF(ISERROR(VLOOKUP(C25,'Startovní listina'!$B$5:$F$141,4)),"",VLOOKUP(C25,'Startovní listina'!$B$5:$F$141,4)) ->  | K25: =IF(ISERROR(VLOOKUP(C25,'Startovní listina'!$B$5:$F$141,5)),"",VLOOKUP(C25,'Startovní listina'!$B$5:$F$141,5)) -> 

Sheet Běh Vírem
A1: ="Běh Vírem "&'Prezenční listina'!O2 -> Běh Vírem 2017
D2: ='Startovní listina'!$A$2 -> 2017-08-26 | E2: ='Startovní listina'!$A$2 -> 2017-08-26
D3: ='Prezenční listina'!$O$2-1966&" . ročník" -> 51 . ročník
B4: Příjmení | C4: Jméno | D4: Narození | E4: Oddíl / Bydliště | F4: Startovní číslo | G4: Čas | H4: Pohlaví
B5: Křenková | C5: Kateřina | D5: 2001 | E5: Přeštice | F5: 85 | G5: 00:12:23 | H5: =IF(LEN(B5)=0," ",IF(MID(B5,LEN(B5),1)="á","Ž","M")) -> Ž
B6: Stalmachová | C6: Nika | D6: 2002 | E6: Vír | F6: 88 | G6: 00:15:14 | H6: Ž
B7: Slavíková | C7: Lenka | D7: 2001 | E7: Žďár nad Sázavou | F7: 83 | G7: 00:16:49 | H7: Ž
B8: Chaloupka | C8: Milan | D8: 2002 | E8: Brno | F8: 82 | G8: 00:11:28 | H8: M
B9: Coural | C9: Jaroslav | D9: 2002 | E9: Vír | F9: 80 | G9: 00:12:12 | H9: M
B10: Jílek | C10: František | D10: 2004 | E10: Velké Tresné | F10: 70 | G10: 00:14:10 | H10: M
L12: ;
K25: ,

Sheet mezičasy 2016 (hidden)
A1: 5. km | C1: 10. km | E1: 16. km | G1: 25. km
A2: číslo | B2: čas | C2: číslo | D2: čas | E2: číslo | F2: čas | G2: číslo | H2: čas
A3: 83 | B3: 00:17:02 | C3: 31 | D3: 00:34:16 | E3: 31 | F3: 00:55:10 | G3: 31 | H3: 01:28:37
A4: 31 | B4: : : | C4: 83 | D4: : : | E4: 83 | F4: 00:55:24 | G4: 83 | H4: 01:29:24
A5: 37 | B5: 00:19:08 | C5: 8 | D5: 00:38:36 | E5: 37 | F5: 01:02:56 | G5: 37 | H5: 01:41:23
A6: 8 | B6: : : | C6: 37 | D6: 00:38:38 | E6: 8 | F6: 01:04:06 | G6: 8 | H6: 01:43:04
A7: 74 | B7: 00:19:14 | C7: 77 | D7: 00:39:12 | E7: 64 | F7: : : | G7: 77 | H7: 01:43:22
A8: 12 | B8: : : | C8: 64 | D8: : : | E8: 77 | F8: : : | H8: : :
A9: 61 | B9: : : | C9: 12 | D9: : : | E9: 12 | F9: : : | H9: : :
A10: 69 | B10: : : | C10: 61 | D10: : : | E10: 61 | F10: 01:04:32 | H10: : :
A11: 54 | B11: 00:19:45 | C11: 54 | D11: 00:40:29 | E11: 54 | F11: 01:06:44 | H11: : :
A12: 93 | B12: 00:19:58 | D12: : : | E12: 1 | F12: 01:07:50 | H12: : :
A13: 1 | B13: : : | D13: : : | F13: : : | H13: : :
A14: 35 | B14: 00:20:15 | D14: : : | F14: : : | H14: : :
A15: 48 | B15: : : | D15: : : | E15: 34 | F15: 09:30:00 | H15: : :
A16: 38 | B16: 00:21:14 | D16: : : | E16: 38 | F16: : : | H16: : :
A17: 34 | B17: 00:21:26 | D17: : : | F17: : : | H17: : :
A18: 30 | B18: 00:21:41 | D18: : : | F18: : : | H18: : :
A19: 18 | B19: : : | D19: : : | F19: : : | H19: : :
B20: : : | D20: : : | F20: : : | H20: : :
B21: : : | D21: : : | F21: : : | H21: : :
B22: : : | D22: : : | F22: : : | H22: : :
B23: : : | D23: : : | F23: : : | H23: : :
B24: : : | D24: : : | F24: : : | H24: : :
B25: : : | D25: : : | F25: : : | H25: : :
B26: : : | D26: : : | F26: : : | H26: : :
B27: : : | D27: : : | F27: : : | H27: : :
B28: : : | D28: : : | F28: : : | H28: : :
B29: : : | D29: : : | F29: : : | H29: : :
B30: : : | D30: : : | F30: : : | H30: : :

Sheet mezičasy 2017 (hidden)
A1: 5. km | C1: 10. km | E1: 16. km | G1: 25. km
A2: číslo | B2: čas | C2: číslo | D2: čas | E2: číslo | F2: čas | G2: číslo | H2: čas
A3: 82 | B3: 00:17:36 | C3: 82 | D3: 00:35:34 | E3: 82 | F3: 00:57:57 | G3: 64 | H3: 01:34:10
A4: 64 | B4: 00:17:53 | C4: 64 | D4: 00:35:50 | E4: 64 | F4: 00:57:57 | G4: 82 | H4: 01:34:40
A5: 48 | B5: 00:18:54 | C5: 48 | D5: 00:37:43 | E5: 48 | F5: 01:00:45 | G5: 48 | H5: 01:37:47
A6: 19 | B6: 00:18:59 | C6: 19 | D6: 00:39:11 | E6: 49 | F6: 01:03:42 | G6: 19 | H6: 01:44:00
A7: 49 | B7: 00:19:14 | C7: 49 | D7: 00:39:28 | E7: 19 | F7: 01:03:56 | G7: 49 | H7: 01:44:00
A8: 18 | B8: 00:19:52 | C8: 18 | D8: 00:39:57 | E8: 8 | F8: 01:05:23 | G8: 8 | H8: 01:44:10
A9: 77/8 | B9: 00:20:11 | D9: : : | E9: 77 | F9: 01:05:50 | G9: 79 | H9: 01:46:00
B10: : : | D10: : : | E10: 79 | F10: 01:06:02 | H10: : :
A11: 22 | B11: 00:20:46 | C11: 22 | D11: 00:41:55 | E11: 22 | F11: 01:07:23 | G11: 22 | H11: 01:46:00
A12: 46 | B12: 00:21:27 | D12: : : | F12: : : | H12: : :
B13: : : | D13: : : | F13: : : | H13: : :
B14: : : | D14: : : | F14: : : | H14: : :
B15: : : | D15: : : | F15: : : | H15: : :
B16: : : | D16: : : | F16: : : | H16: : :
B17: : : | D17: : : | F17: : : | H17: : :
B18: : : | D18: : : | F18: : : | H18: : :
B19: : : | D19: : : | F19: : : | H19: : :
B20: : : | D20: : : | F20: : : | H20: : :
B21: : : | D21: : : | F21: : : | H21: : :
B22: : : | D22: : : | F22: : : | H22: : :
B23: : : | D23: : : | F23: : : | H23: : :
B24: : : | D24: : : | F24: : : | H24: : :
B25: : : | D25: : : | F25: : : | H25: : :
B26: : : | D26: : : | F26: : : | H26: : :
B27: : : | D27: : : | F27: : : | H27: : :
B28: : : | D28: : : | F28: : : | H28: : :
B29: : : | D29: : : | F29: : : | H29: : :
B30: : : | D30: : : | F30: : : | H30: : :

Sheet Diplom MSM A5 (hidden)
D27: ='Výsledková listina'!E5&" "&'Výsledková listina'!F5 -> Kohut Jan
G30: ='Výsledková listina'!B5&"." -> 1.
D32: ='Výsledková listina'!C5 -> A
M33: ='Výsledková listina'!I5 -> 02:02:34
G36: 20. srpna 2016

Sheet Diplom MSM A5 (2) (hidden)
D27: ='Výsledková listina'!E6&" "&'Výsledková listina'!F6 -> Orálek Daniel
G30: ='Výsledková listina'!B6&"." -> 1.
D32: ='Výsledková listina'!C6 -> B
M33: ='Výsledková listina'!I6 -> 02:05:07
G36: 20. srpna 2016

Sheet Družstva (prac.) (hidden)
B1: ="Výsledková listina - Malý svratecký maratón "&'Prezenční listina'!O2&" - družstva" -> Výsledková listina - Malý svratecký maratón 2017 - družstva
B2: ='Prezenční listina'!O2-1953&". ročník" -> 64. ročník
B3: Pořadí | C3: Startovní číslo | D3: Příjmení | E3: Jméno | F3: Narození | G3: Oddíl / Bydliště | H3: Čas | I3: Výsledný čas
B4: 1. | C4: 3 | D4: =IF(ISERROR(VLOOKUP(C4,'Startovní listina'!$B$5:$F$141,2)),"",VLOOKUP(C4,'Startovní listina'!$B$5:$F$141,2)) -> Ježová | E4: =IF(ISERROR(VLOOKUP(C4,'Startovní listina'!$B$5:$F$141,3)),"",VLOOKUP(C4,'Startovní listina'!$B$5:$F$141,3)) -> Martina | F4: =IF(ISERROR(VLOOKUP(C4,'Startovní listina'!$B$5:$F$141,4)),"",VLOOKUP(C4,'Startovní listina'!$B$5:$F$141,4)) -> 1975 | G4: =IF(K4=K5,K4,"RŮZNÉ ODDÍLY !!!") -> Brno | H4: 03:07:50 | I4: =IF((H4=0),"",H4+H5) -> 05:48:15 | K4: =IF(ISERROR(VLOOKUP(C4,'Startovní listina'!$B$5:$F$141,5)),"",VLOOKUP(C4,'Startovní listina'!$B$5:$F$141,5)) -> Brno
C5: 2 | D5: =IF(ISERROR(VLOOKUP(C5,'Startovní listina'!$B$5:$F$141,2)),"",VLOOKUP(C5,'Startovní listina'!$B$5:$F$141,2)) -> Podsedník | E5: =IF(ISERROR(VLOOKUP(C5,'Startovní listina'!$B$5:$F$141,3)),"",VLOOKUP(C5,'Startovní listina'!$B$5:$F$141,3)) -> Marek | F5: =IF(ISERROR(VLOOKUP(C5,'Startovní listina'!$B$5:$F$141,4)),"",VLOOKUP(C5,'Startovní listina'!$B$5:$F$141,4)) -> 1985 | H5: 02:40:25 | K5: =IF(ISERROR(VLOOKUP(C5,'Startovní listina'!$B$5:$F$141,5)),"",VLOOKUP(C5,'Startovní listina'!$B$5:$F$141,5)) -> Brno
B6: 2. | C6: 11 | D6: =IF(ISERROR(VLOOKUP(C6,'Startovní listina'!$B$5:$F$141,2)),"",VLOOKUP(C6,'Startovní listina'!$B$5:$F$141,2)) -> Dostálová | E6: =IF(ISERROR(VLOOKUP(C6,'Startovní listina'!$B$5:$F$141,3)),"",VLOOKUP(C6,'Startovní listina'!$B$5:$F$141,3)) -> Vendula | F6: =IF(ISERROR(VLOOKUP(C6,'Startovní listina'!$B$5:$F$141,4)),"",VLOOKUP(C6,'Startovní listina'!$B$5:$F$141,4)) -> 1981 | G6: =IF(K6=K7,K6,"RŮZNÉ ODDÍLY !!!") -> RŮZNÉ ODDÍLY !!! | H6: 02:01:16 | I6: =IF((H6=0),"",H6+H7) -> 04:06:56 | K6: =IF(ISERROR(VLOOKUP(C6,'Startovní listina'!$B$5:$F$141,5)),"",VLOOKUP(C6,'Startovní listina'!$B$5:$F$141,5)) -> Digitor.cz
C7: 8 | D7: =IF(ISERROR(VLOOKUP(C7,'Startovní listina'!$B$5:$F$141,2)),"",VLOOKUP(C7,'Startovní listina'!$B$5:$F$141,2)) -> Chramosta | E7: =IF(ISERROR(VLOOKUP(C7,'Startovní listina'!$B$5:$F$141,3)),"",VLOOKUP(C7,'Startovní listina'!$B$5:$F$141,3)) -> Jaroslav | F7: =IF(ISERROR(VLOOKUP(C7,'Startovní listina'!$B$5:$F$141,4)),"",VLOOKUP(C7,'Startovní listina'!$B$5:$F$141,4)) -> 1966 | H7: 02:05:40 | K7: =IF(ISERROR(VLOOKUP(C7,'Startovní listina'!$B$5:$F$141,5)),"",VLOOKUP(C7,'Startovní listina'!$B$5:$F$141,5)) -> JABOJA Team Dobrná
B8: 3. | C8: 9 | D8: =IF(ISERROR(VLOOKUP(C8,'Startovní listina'!$B$5:$F$141,2)),"",VLOOKUP(C8,'Startovní listina'!$B$5:$F$141,2)) -> Tesařová | E8: =IF(ISERROR(VLOOKUP(C8,'Startovní listina'!$B$5:$F$141,3)),"",VLOOKUP(C8,'Startovní listina'!$B$5:$F$141,3)) -> Marie | F8: =IF(ISERROR(VLOOKUP(C8,'Startovní listina'!$B$5:$F$141,4)),"",VLOOKUP(C8,'Startovní listina'!$B$5:$F$141,4)) -> 1954 | G8: =IF(K8=K9,K8,"RŮZNÉ ODDÍLY !!!") -> RŮZNÉ ODDÍLY !!! | H8: 02:40:16 | I8: =IF((H8=0),"",H8+H9) -> 05:12:53 | K8: =IF(ISERROR(VLOOKUP(C8,'Startovní listina'!$B$5:$F$141,5)),"",VLOOKUP(C8,'Startovní listina'!$B$5:$F$141,5)) -> Křižanov
C9: 10 | D9: =IF(ISERROR(VLOOKUP(C9,'Startovní listina'!$B$5:$F$141,2)),"",VLOOKUP(C9,'Startovní listina'!$B$5:$F$141,2)) -> Holý | E9: =IF(ISERROR(VLOOKUP(C9,'Startovní listina'!$B$5:$F$141,3)),"",VLOOKUP(C9,'Startovní listina'!$B$5:$F$141,3)) -> Josef | F9: =IF(ISERROR(VLOOKUP(C9,'Startovní listina'!$B$5:$F$141,4)),"",VLOOKUP(C9,'Startovní listina'!$B$5:$F$141,4)) -> 1941 | H9: 02:32:37 | K9: =IF(ISERROR(VLOOKUP(C9,'Startovní listina'!$B$5:$F$141,5)),"",VLOOKUP(C9,'Startovní listina'!$B$5:$F$141,5)) -> AC Moravská Slavia Brno
B10: 4. | C10: 23 | D10: =IF(ISERROR(VLOOKUP(C10,'Startovní listina'!$B$5:$F$141,2)),"",VLOOKUP(C10,'Startovní listina'!$B$5:$F$141,2)) -> Šorf | E10: =IF(ISERROR(VLOOKUP(C10,'Startovní listina'!$B$5:$F$141,3)),"",VLOOKUP(C10,'Startovní listina'!$B$5:$F$141,3)) -> Ivo | F10: =IF(ISERROR(VLOOKUP(C10,'Startovní listina'!$B$5:$F$141,4)),"",VLOOKUP(C10,'Startovní listina'!$B$5:$F$141,4)) -> 1975 | G10: =IF(K10=K11,K10,"RŮZNÉ ODDÍLY !!!") -> RŮZNÉ ODDÍLY !!! | H10: 03:04:10 | I10: =IF((H10=0),"",H10+H11) -> 06:10:48 | K10: =IF(ISERROR(VLOOKUP(C10,'Startovní listina'!$B$5:$F$141,5)),"",VLOOKUP(C10,'Startovní listina'!$B$5:$F$141,5)) -> ABND Racing Team Bystřice n. P.
C11: 24 | D11: =IF(ISERROR(VLOOKUP(C11,'Startovní listina'!$B$5:$F$141,2)),"",VLOOKUP(C11,'Startovní listina'!$B$5:$F$141,2)) -> Vrba | E11: =IF(ISERROR(VLOOKUP(C11,'Startovní listina'!$B$5:$F$141,3)),"",VLOOKUP(C11,'Startovní listina'!$B$5:$F$141,3)) -> Tomáš | F11: =IF(ISERROR(VLOOKUP(C11,'Startovní listina'!$B$5:$F$141,4)),"",VLOOKUP(C11,'Startovní listina'!$B$5:$F$141,4)) -> 1986 | H11: 03:06:38 | K11: =IF(ISERROR(VLOOKUP(C11,'Startovní listina'!$B$5:$F$141,5)),"",VLOOKUP(C11,'Startovní listina'!$B$5:$F$141,5)) -> Bystré
B12: 5. | C12: 35 | D12: =IF(ISERROR(VLOOKUP(C12,'Startovní listina'!$B$5:$F$141,2)),"",VLOOKUP(C12,'Startovní listina'!$B$5:$F$141,2)) -> Bartoňková | E12: =IF(ISERROR(VLOOKUP(C12,'Startovní listina'!$B$5:$F$141,3)),"",VLOOKUP(C12,'Startovní listina'!$B$5:$F$141,3)) -> Nina | F12: =IF(ISERROR(VLOOKUP(C12,'Startovní listina'!$B$5:$F$141,4)),"",VLOOKUP(C12,'Startovní listina'!$B$5:$F$141,4)) -> 1990 | G12: =IF(K12=K13,K12,"RŮZNÉ ODDÍLY !!!") -> RŮZNÉ ODDÍLY !!! | H12: 02:31:40 | I12: =IF((H12=0),"",H12+H13) -> 06:21:15 | K12: =IF(ISERROR(VLOOKUP(C12,'Startovní listina'!$B$5:$F$141,5)),"",VLOOKUP(C12,'Startovní listina'!$B$5:$F$141,5)) -> Fan Brno
C13: 36 | D13: =IF(ISERROR(VLOOKUP(C13,'Startovní listina'!$B$5:$F$141,2)),"",VLOOKUP(C13,'Startovní listina'!$B$5:$F$141,2)) -> Fanfrdla | E13: =IF(ISERROR(VLOOKUP(C13,'Startovní listina'!$B$5:$F$141,3)),"",VLOOKUP(C13,'Startovní listina'!$B$5:$F$141,3)) -> Ctirad | F13: =IF(ISERROR(VLOOKUP(C13,'Startovní listina'!$B$5:$F$141,4)),"",VLOOKUP(C13,'Startovní listina'!$B$5:$F$141,4)) -> 1974 | H13: 03:49:35 | K13: =IF(ISERROR(VLOOKUP(C13,'Startovní listina'!$B$5:$F$141,5)),"",VLOOKUP(C13,'Startovní listina'!$B$5:$F$141,5)) -> Silůvky
B14: 6. | C14: 82 | D14: =IF(ISERROR(VLOOKUP(C14,'Startovní listina'!$B$5:$F$141,2)),"",VLOOKUP(C14,'Startovní listina'!$B$5:$F$141,2)) -> Orálek | E14: =IF(ISERROR(VLOOKUP(C14,'Startovní listina'!$B$5:$F$141,3)),"",VLOOKUP(C14,'Startovní listina'!$B$5:$F$141,3)) -> Daniel | F14: =IF(ISERROR(VLOOKUP(C14,'Startovní listina'!$B$5:$F$141,4)),"",VLOOKUP(C14,'Startovní listina'!$B$5:$F$141,4)) -> 1970 | G14: =IF(K14=K15,K14,"RŮZNÉ ODDÍLY !!!") -> RŮZNÉ ODDÍLY !!! | H14: 02:11:00 | I14: =IF((H14=0),"",H14+H15) -> 04:05:34 | K14: =IF(ISERROR(VLOOKUP(C14,'Startovní listina'!$B$5:$F$141,5)),"",VLOOKUP(C14,'Startovní listina'!$B$5:$F$141,5)) -> behejbrno.com
C15: 107 | D15: =IF(ISERROR(VLOOKUP(C15,'Startovní listina'!$B$5:$F$141,2)),"",VLOOKUP(C15,'Startovní listina'!$B$5:$F$141,2)) -> Benc | E15: =IF(ISERROR(VLOOKUP(C15,'Startovní listina'!$B$5:$F$141,3)),"",VLOOKUP(C15,'Startovní listina'!$B$5:$F$141,3)) -> Karel | F15: =IF(ISERROR(VLOOKUP(C15,'Startovní listina'!$B$5:$F$141,4)),"",VLOOKUP(C15,'Startovní listina'!$B$5:$F$141,4)) -> 1975 | H15: 01:54:34 | K15: =IF(ISERROR(VLOOKUP(C15,'Startovní listina'!$B$5:$F$141,5)),"",VLOOKUP(C15,'Startovní listina'!$B$5:$F$141,5)) -> Pivonice
B16: 7. | C16: 28 | D16: =IF(ISERROR(VLOOKUP(C16,'Startovní listina'!$B$5:$F$141,2)),"",VLOOKUP(C16,'Startovní listina'!$B$5:$F$141,2)) -> Pučálka | E16: =IF(ISERROR(VLOOKUP(C16,'Startovní listina'!$B$5:$F$141,3)),"",VLOOKUP(C16,'Startovní listina'!$B$5:$F$141,3)) -> Radek | F16: =IF(ISERROR(VLOOKUP(C16,'Startovní listina'!$B$5:$F$141,4)),"",VLOOKUP(C16,'Startovní listina'!$B$5:$F$141,4)) -> 1973 | G16: =IF(K16=K17,K16,"RŮZNÉ ODDÍLY !!!") -> RŮZNÉ ODDÍLY !!! | H16: 02:19:07 | I16: =IF((H16=0),"",H16+H17) -> 04:24:14 | K16: =IF(ISERROR(VLOOKUP(C16,'Startovní listina'!$B$5:$F$141,5)),"",VLOOKUP(C16,'Startovní listina'!$B$5:$F$141,5)) -> Železárny Štěpánov s.r.o
C17: 26 | D17: =IF(ISERROR(VLOOKUP(C17,'Startovní listina'!$B$5:$F$141,2)),"",VLOOKUP(C17,'Startovní listina'!$B$5:$F$141,2)) -> Šedová | E17: =IF(ISERROR(VLOOKUP(C17,'Startovní listina'!$B$5:$F$141,3)),"",VLOOKUP(C17,'Startovní listina'!$B$5:$F$141,3)) -> Věra | F17: =IF(ISERROR(VLOOKUP(C17,'Startovní listina'!$B$5:$F$141,4)),"",VLOOKUP(C17,'Startovní listina'!$B$5:$F$141,4)) -> 1964 | H17: 02:05:07 | K17: =IF(ISERROR(VLOOKUP(C17,'Startovní listina'!$B$5:$F$141,5)),"",VLOOKUP(C17,'Startovní listina'!$B$5:$F$141,5)) -> Praha
B18: 8. | D18: =IF(ISERROR(VLOOKUP(C18,'Startovní listina'!$B$5:$F$141,2)),"",VLOOKUP(C18,'Startovní listina'!$B$5:$F$141,2)) ->  | E18: =IF(ISERROR(VLOOKUP(C18,'Startovní listina'!$B$5:$F$141,3)),"",VLOOKUP(C18,'Startovní listina'!$B$5:$F$141,3)) ->  | F18: =IF(ISERROR(VLOOKUP(C18,'Startovní listina'!$B$5:$F$141,4)),"",VLOOKUP(C18,'Startovní listina'!$B$5:$F$141,4)) ->  | G18: =IF(K18=K19,K18,"RŮZNÉ ODDÍLY !!!") ->  | I18: =IF((H18=0),"",H18+H19) ->  | K18: =IF(ISERROR(VLOOKUP(C18,'Startovní listina'!$B$5:$F$141,5)),"",VLOOKUP(C18,'Startovní listina'!$B$5:$F$141,5)) -> 
D19: =IF(ISERROR(VLOOKUP(C19,'Startovní listina'!$B$5:$F$141,2)),"",VLOOKUP(C19,'Startovní listina'!$B$5:$F$141,2)) ->  | E19: =IF(ISERROR(VLOOKUP(C19,'Startovní listina'!$B$5:$F$141,3)),"",VLOOKUP(C19,'Startovní listina'!$B$5:$F$141,3)) ->  | F19: =IF(ISERROR(VLOOKUP(C19,'Startovní listina'!$B$5:$F$141,4)),"",VLOOKUP(C19,'Startovní listina'!$B$5:$F$141,4)) ->  | K19: =IF(ISERROR(VLOOKUP(C19,'Startovní listina'!$B$5:$F$141,5)),"",VLOOKUP(C19,'Startovní listina'!$B$5:$F$141,5)) -> 
B20: 9. | D20: =IF(ISERROR(VLOOKUP(C20,'Startovní listina'!$B$5:$F$141,2)),"",VLOOKUP(C20,'Startovní listina'!$B$5:$F$141,2)) ->  | E20: =IF(ISERROR(VLOOKUP(C20,'Startovní listina'!$B$5:$F$141,3)),"",VLOOKUP(C20,'Startovní listina'!$B$5:$F$141,3)) ->  | F20: =IF(ISERROR(VLOOKUP(C20,'Startovní listina'!$B$5:$F$141,4)),"",VLOOKUP(C20,'Startovní listina'!$B$5:$F$141,4)) ->  | G20: =IF(K20=K21,K20,"RŮZNÉ ODDÍLY !!!") ->  | I20: =IF((H20=0),"",H20+H21) ->  | K20: =IF(ISERROR(VLOOKUP(C20,'Startovní listina'!$B$5:$F$141,5)),"",VLOOKUP(C20,'Startovní listina'!$B$5:$F$141,5)) -> 
D21: =IF(ISERROR(VLOOKUP(C21,'Startovní listina'!$B$5:$F$141,2)),"",VLOOKUP(C21,'Startovní listina'!$B$5:$F$141,2)) ->  | E21: =IF(ISERROR(VLOOKUP(C21,'Startovní listina'!$B$5:$F$141,3)),"",VLOOKUP(C21,'Startovní listina'!$B$5:$F$141,3)) ->  | F21: =IF(ISERROR(VLOOKUP(C21,'Startovní listina'!$B$5:$F$141,4)),"",VLOOKUP(C21,'Startovní listina'!$B$5:$F$141,4)) ->  | K21: =IF(ISERROR(VLOOKUP(C21,'Startovní listina'!$B$5:$F$141,5)),"",VLOOKUP(C21,'Startovní listina'!$B$5:$F$141,5)) -> 

Sheet Výsledková listina (2) (hidden)
A1: ="Výsledková listina - Malý svratecký maraton "&'Prezenční listina'!O2 -> Výsledková listina - Malý svratecký maraton 2017
A2: 2015-08-22 | K2: Poté, co jsou dopsány časy VŠECH běžců, stisknout tlačítko 1.řazení Ve sloupci B (Pořadí v kategorii) vytvořit posloupnou číselnou řadu pro každou kategorii a poté stisknout tlačítko 2.řazení !!! POZOR!!! Použití tlačítek je nevratný krok!
A3: ='Prezenční listina'!O2-1953&". ročník" -> 64. ročník
A4: Celkové pořadí | B4: Pořadí v kategorii | C4: Kategorie | D4: Startovní číslo | E4: Příjmení | F4: Jméno | G4: Narození | H4: Oddíl / Bydliště | I4: Čas
A5: 1 | B5: 1 | C5: ='Startovní listina'!G47 -> G | D5: ='Startovní listina'!B47 -> 58 | E5: ='Startovní listina'!C47 -> Benešová | F5: ='Startovní listina'!D47 -> Marie | G5: ='Startovní listina'!E47 -> 1982 | H5: ='Startovní listina'!F47 -> Dolní Rožínka | I5: 02:19:48
A6: =IF('Výsledková listina (2)'!D5<>"",A5+1,"") -> 2 | C6: ='Startovní listina'!G71 ->  | D6: ='Startovní listina'!B71 ->  | E6: ='Startovní listina'!C71 ->  | F6: ='Startovní listina'!D71 ->  | G6: ='Startovní listina'!E71 ->  | H6: ='Startovní listina'!F71 ->  | I6: 02:47:00
A7: =IF('Výsledková listina (2)'!D6<>"",A6+1,"") ->  | C7: ='Startovní listina'!G5 -> A | D7: ='Startovní listina'!B5 -> 2 | E7: ='Startovní listina'!C5 -> Podsedník | F7: ='Startovní listina'!D5 -> Marek | G7: ='Startovní listina'!E5 -> 1985 | H7: ='Startovní listina'!F5 -> Brno | I7: 03:02:17
A8: =IF('Výsledková listina (2)'!D7<>"",A7+1,"") ->  | C8: ='Startovní listina'!G85 ->  | D8: ='Startovní listina'!B85 ->  | E8: ='Startovní listina'!C85 ->  | F8: ='Startovní listina'!D85 ->  | G8: ='Startovní listina'!E85 ->  | H8: ='Startovní listina'!F85 ->  | I8: 03:28:11
A9: =IF('Výsledková listina (2)'!D8<>"",A8+1,"") ->  | C9: ='Startovní listina'!G59 -> A | D9: ='Startovní listina'!B59 -> 76 | E9: ='Startovní listina'!C59 -> Koutský | F9: ='Startovní listina'!D59 -> Tomáš | G9: ='Startovní listina'!E59 -> 1987 | H9: ='Startovní listina'!F59 -> Ledová stěna Vír | I9: 02:23:11
A10: =IF('Výsledková listina (2)'!D9<>"",A9+1,"") ->  | C10: ='Startovní listina'!G46 -> F | D10: ='Startovní listina'!B46 -> 56 | E10: ='Startovní listina'!C46 -> Vlachová Hutová | F10: ='Startovní listina'!D46 -> Eliška | G10: ='Startovní listina'!E46 -> 1988 | H10: ='Startovní listina'!F46 -> Brno | I10: 02:50:33
A11: =IF('Výsledková listina (2)'!D10<>"",A10+1,"") ->  | C11: ='Startovní listina'!G28 -> G | D11: ='Startovní listina'!B28 -> 31 | E11: ='Startovní listina'!C28 -> Škvařilová | F11: ='Startovní listina'!D28 -> Eva | G11: ='Startovní listina'!E28 -> 1973 | H11: ='Startovní listina'!F28 -> RSFK Říčany | I11: 02:26:07
A12: =IF('Výsledková listina (2)'!D11<>"",A11+1,"") ->  | C12: ='Startovní listina'!G67 -> B | D12: ='Startovní listina'!B67 -> 86 | E12: ='Startovní listina'!C67 -> Benc | F12: ='Startovní listina'!D67 -> Karel | G12: ='Startovní listina'!E67 -> 1975 | H12: ='Startovní listina'!F67 -> Pivonice | I12: 02:34:42
A13: =IF('Výsledková listina (2)'!D12<>"",A12+1,"") ->  | C13: ='Startovní listina'!G68 ->  | D13: ='Startovní listina'!B68 ->  | E13: ='Startovní listina'!C68 ->  | F13: ='Startovní listina'!D68 ->  | G13: ='Startovní listina'!E68 ->  | H13: ='Startovní listina'!F68 ->  | I13: 02:42:43
A14: =IF('Výsledková listina (2)'!D13<>"",A13+1,"") ->  | C14: ='Startovní listina'!G62 -> D | D14: ='Startovní listina'!B62 -> 80 | E14: ='Startovní listina'!C62 -> Glier | F14: ='Startovní listina'!D62 -> Miroslav | G14: ='Startovní listina'!E62 -> 1949 | H14: ='Startovní listina'!F62 -> Ústí nad Labem | I14: 02:42:35
A15: =IF('Výsledková listina (2)'!D14<>"",A14+1,"") ->  | C15: ='Startovní listina'!G55 -> A | D15: ='Startovní listina'!B55 -> 70 | E15: ='Startovní listina'!C55 -> Kalich | F15: ='Startovní listina'!D55 -> Daniel | G15: ='Startovní listina'!E55 -> 1982 | H15: ='Startovní listina'!F55 -> Brno | I15: 02:40:36
A16: =IF('Výsledková listina (2)'!D15<>"",A15+1,"") ->  | C16: ='Startovní listina'!G60 -> C | D16: ='Startovní listina'!B60 -> 77 | E16: ='Startovní listina'!C60 -> Krajča | F16: ='Startovní listina'!D60 -> Rudy | G16: ='Startovní listina'!E60 -> 1965 | H16: ='Startovní listina'!F60 -> rarecacti.com | I16: 02:38:54
A17: =IF('Výsledková listina (2)'!D16<>"",A16+1,"") ->  | C17: ='Startovní listina'!G7 -> A | D17: ='Startovní listina'!B7 -> 4 | E17: ='Startovní listina'!C7 -> Hübner | F17: ='Startovní listina'!D7 -> Tomáš | G17: ='Startovní listina'!E7 -> 1979 | H17: ='Startovní listina'!F7 -> SDH Bolešín | I17: 03:07:50
A18: =IF('Výsledková listina (2)'!D17<>"",A17+1,"") ->  | C18: ='Startovní listina'!G63 -> B | D18: ='Startovní listina'!B63 -> 82 | E18: ='Startovní listina'!C63 -> Orálek | F18: ='Startovní listina'!D63 -> Daniel | G18: ='Startovní listina'!E63 -> 1970 | H18: ='Startovní listina'!F63 -> behejbrno.com | I18: 02:39:15
A19: =IF('Výsledková listina (2)'!D18<>"",A18+1,"") ->  | C19: ='Startovní listina'!G49 -> D | D19: ='Startovní listina'!B49 -> 61 | E19: ='Startovní listina'!C49 -> Nekuža | F19: ='Startovní listina'!D49 -> Jiří | G19: ='Startovní listina'!E49 -> 1951 | H19: ='Startovní listina'!F49 -> RUNNERS Zbýšov | I19: 02:13:13
A20: =IF('Výsledková listina (2)'!D19<>"",A19+1,"") ->  | C20: ='Startovní listina'!G14 -> A | D20: ='Startovní listina'!B14 -> 12 | E20: ='Startovní listina'!C14 -> Pivec | F20: ='Startovní listina'!D14 -> Jan | G20: ='Startovní listina'!E14 -> 1981 | H20: ='Startovní listina'!F14 -> Digitor.cz | I20: 02:32:37
A21: =IF('Výsledková listina (2)'!D20<>"",A20+1,"") ->  | C21: ='Startovní listina'!G42 -> B | D21: ='Startovní listina'!B42 -> 48 | E21: ='Startovní listina'!C42 -> Plekanec | F21: ='Startovní listina'!D42 -> Juraj | G21: ='Startovní listina'!E42 -> 1974 | H21: ='Startovní listina'!F42 -> Brno | I21: 02:49:46
A22: =IF('Výsledková listina (2)'!D22<>"",A21+1,"") ->  | C22: ='Startovní listina'!G79 ->  | D22: ='Startovní listina'!B79 ->  | E22: ='Startovní listina'!C79 ->  | F22: ='Startovní listina'!D79 ->  | G22: ='Startovní listina'!E79 ->  | H22: ='Startovní listina'!F79 ->  | I22: 02:13:29
A23: =IF('Výsledková listina (2)'!D21<>"",A22+1,"") ->  | C23: ='Startovní listina'!G15 -> H | D23: ='Startovní listina'!B15 -> 13 | E23: ='Startovní listina'!C15 -> Martincová | F23: ='Startovní listina'!D15 -> Ivana | G23: ='Startovní listina'!E15 -> 1963 | H23: ='Startovní listina'!F15 -> AC Moravská Slavia Brno | I23: 02:01:16
A24: =IF('Výsledková listina (2)'!D23<>"",A23+1,"") ->  | C24: ='Startovní listina'!G91 ->  | D24: ='Startovní listina'!B91 ->  | E24: ='Startovní listina'!C91 ->  | F24: ='Startovní listina'!D91 ->  | G24: ='Startovní listina'!E91 ->  | H24: ='Startovní listina'!F91 ->  | I24: 02:30:31
A25: =IF('Výsledková listina (2)'!D24<>"",A24+1,"") ->  | C25: ='Startovní listina'!G74 ->  | D25: ='Startovní listina'!B74 ->  | E25: ='Startovní listina'!C74 ->  | F25: ='Startovní listina'!D74 ->  | G25: ='Startovní listina'!E74 ->  | H25: ='Startovní listina'!F74 ->  | I25: 02:11:00
A26: =IF('Výsledková listina (2)'!D25<>"",A25+1,"") ->  | C26: ='Startovní listina'!G44 -> B | D26: ='Startovní listina'!B44 -> 51 | E26: ='Startovní listina'!C44 -> Dvořák | F26: ='Startovní listina'!D44 -> Vojtěch | G26: ='Startovní listina'!E44 -> 1974 | H26: ='Startovní listina'!F44 -> Brno | I26: 03:10:37
A27: =IF('Výsledková listina (2)'!D26<>"",A26+1,"") ->  | C27: ='Startovní listina'!G84 ->  | D27: ='Startovní listina'!B84 ->  | E27: ='Startovní listina'!C84 ->  | F27: ='Startovní listina'!D84 ->  | G27: ='Startovní listina'!E84 ->  | H27: ='Startovní listina'!F84 ->  | I27: 02:28:22
A28: =IF('Výsledková listina (2)'!D27<>"",A27+1,"") ->  | C28: ='Startovní listina'!G87 ->  | D28: ='Startovní listina'!B87 ->  | E28: ='Startovní listina'!C87 ->  | F28: ='Startovní listina'!D87 ->  | G28: ='Startovní listina'!E87 ->  | H28: ='Startovní listina'!F87 ->  | I28: 02:29:21
A29: =IF('Výsledková listina (2)'!D28<>"",A28+1,"") ->  | C29: ='Startovní listina'!G75 ->  | D29: ='Startovní listina'!B75 ->  | E29: ='Startovní listina'!C75 ->  | F29: ='Startovní listina'!D75 ->  | G29: ='Startovní listina'!E75 ->  | H29: ='Startovní listina'!F75 ->  | I29: 03:01:37
A30: =IF('Výsledková listina (2)'!D29<>"",A29+1,"") ->  | C30: ='Startovní listina'!G18 -> B | D30: ='Startovní listina'!B18 -> 18 | E30: ='Startovní listina'!C18 -> Benko | F30: ='Startovní listina'!D18 -> Jan | G30: ='Startovní listina'!E18 -> 1974 | H30: ='Startovní listina'!F18 -> GOMANGO Litomyšl
A31: =IF('Výsledková listina (2)'!D30<>"",A30+1,"") ->  | C31: ='Startovní listina'!G41 -> C | D31: ='Startovní listina'!B41 -> 47 | E31: ='Startovní listina'!C41 -> Novotný | F31: ='Startovní listina'!D41 -> Petr | G31: ='Startovní listina'!E41 -> 1965 | H31: ='Startovní listina'!F41 -> AK Kuřim | I31: 02:16:46
A32: =IF('Výsledková listina (2)'!D31<>"",A31+1,"") ->  | C32: ='Startovní listina'!G23 -> A | D32: ='Startovní listina'!B23 -> 24 | E32: ='Startovní listina'!C23 -> Vrba | F32: ='Startovní listina'!D23 -> Tomáš | G32: ='Startovní listina'!E23 -> 1986 | H32: ='Startovní listina'!F23 -> Bystré
A33: =IF('Výsledková listina (2)'!D32<>"",A32+1,"") ->  | C33: ='Startovní listina'!G57 -> A | D33: ='Startovní listina'!B57 -> 73 | E33: ='Startovní listina'!C57 -> Kalich | F33: ='Startovní listina'!D57 -> Radim | G33: ='Startovní listina'!E57 -> 1985 | H33: ='Startovní listina'!F57 -> Odranec | I33: 02:42:39
A34: =IF('Výsledková listina (2)'!D33<>"",A33+1,"") ->  | C34: ='Startovní listina'!G40 -> F | D34: ='Startovní listina'!B40 -> 46 | E34: ='Startovní listina'!C40 -> Pešáková | F34: ='Startovní listina'!D40 -> Mirka | G34: ='Startovní listina'!E40 -> 1985 | H34: ='Startovní listina'!F40 -> AC Racers Tetčice | I34: 02:10:10
A35: =IF('Výsledková listina (2)'!D34<>"",A34+1,"") ->  | C35: ='Startovní listina'!G9 -> F | D35: ='Startovní listina'!B9 -> 6 | E35: ='Startovní listina'!C9 -> Navrátilová | F35: ='Startovní listina'!D9 -> Vlasta | G35: ='Startovní listina'!E9 -> 1983 | H35: ='Startovní listina'!F9 -> Vír | I35: 02:05:55
A36: =IF('Výsledková listina (2)'!D35<>"",A35+1,"") ->  | C36: ='Startovní listina'!G77 ->  | D36: ='Startovní listina'!B77 ->  | E36: ='Startovní listina'!C77 ->  | F36: ='Startovní listina'!D77 ->  | G36: ='Startovní listina'!E77 ->  | H36: ='Startovní listina'!F77 -> 
A37: =IF('Výsledková listina (2)'!D36<>"",A36+1,"") ->  | C37: ='Startovní listina'!G81 ->  | D37: ='Startovní listina'!B81 ->  | E37: ='Startovní listina'!C81 ->  | F37: ='Startovní listina'!D81 ->  | G37: ='Startovní listina'!E81 ->  | H37: ='Startovní listina'!F81 ->  | I37: 03:24:59
A38: =IF('Výsledková listina (2)'!D37<>"",A37+1,"") ->  | C38: ='Startovní listina'!G54 -> B | D38: ='Startovní listina'!B54 -> 69 | E38: ='Startovní listina'!C54 -> Faja | F38: ='Startovní listina'!D54 -> Ondřej | G38: ='Startovní listina'!E54 -> 1976 | H38: ='Startovní listina'!F54 -> Brno | I38: 02:37:38
A39: =IF('Výsledková listina (2)'!D38<>"",A38+1,"") ->  | C39: ='Startovní listina'!G94 ->  | D39: ='Startovní listina'!B94 ->  | E39: ='Startovní listina'!C94 ->  | F39: ='Startovní listina'!D94 ->  | G39: ='Startovní listina'!E94 ->  | H39: ='Startovní listina'!F94 ->  | I39: 03:13:50
A40: =IF('Výsledková listina (2)'!D39<>"",A39+1,"") ->  | C40: ='Startovní listina'!G20 -> B | D40: ='Startovní listina'!B20 -> 21 | E40: ='Startovní listina'!C20 -> Stöger | F40: ='Startovní listina'!D20 -> Karel | G40: ='Startovní listina'!E20 -> 1976 | H40: ='Startovní listina'!F20 -> fKlidu Brno | I40: 02:43:21
A41: =IF('Výsledková listina (2)'!D40<>"",A40+1,"") ->  | C41: ='Startovní listina'!G19 -> A | D41: ='Startovní listina'!B19 -> 19 | E41: ='Startovní listina'!C19 -> Czerný | F41: ='Startovní listina'!D19 -> Pavel | G41: ='Startovní listina'!E19 -> 1981 | H41: ='Startovní listina'!F19 -> BKB | I41: 03:01:04
A42: =IF('Výsledková listina (2)'!D41<>"",A41+1,"") ->  | C42: ='Startovní listina'!G69 ->  | D42: ='Startovní listina'!B69 ->  | E42: ='Startovní listina'!C69 ->  | F42: ='Startovní listina'!D69 ->  | G42: ='Startovní listina'!E69 ->  | H42: ='Startovní listina'!F69 ->  | I42: DNF
A43: =IF('Výsledková listina (2)'!D42<>"",A42+1,"") ->  | C43: ='Startovní listina'!G38 -> B | D43: ='Startovní listina'!B38 -> 44 | E43: ='Startovní listina'!C38 -> Řezníček | F43: ='Startovní listina'!D38 -> Roman | G43: ='Startovní listina'!E38 -> 1977 | H43: ='Startovní listina'!F38 -> Žďár nad Sázavou | I43: 02:26:38
A44: =IF('Výsledková listina (2)'!D43<>"",A43+1,"") ->  | C44: ='Startovní listina'!G80 ->  | D44: ='Startovní listina'!B80 ->  | E44: ='Startovní listina'!C80 ->  | F44: ='Startovní listina'!D80 ->  | G44: ='Startovní listina'!E80 ->  | H44: ='Startovní listina'!F80 ->  | I44: 02:45:32
A45: =IF('Výsledková listina (2)'!D44<>"",A44+1,"") ->  | C45: ='Startovní listina'!G53 -> H | D45: ='Startovní listina'!B53 -> 67 | E45: ='Startovní listina'!C53 -> Podmelová | F45: ='Startovní listina'!D53 -> Vilma | G45: ='Startovní listina'!E53 -> 1962 | H45: ='Startovní listina'!F53 -> AC Moravská Slavia Brno | I45: 02:46:25
A46: =IF('Výsledková listina (2)'!D45<>"",A45+1,"") ->  | C46: ='Startovní listina'!G11 -> H | D46: ='Startovní listina'!B11 -> 9 | E46: ='Startovní listina'!C11 -> Tesařová | F46: ='Startovní listina'!D11 -> Marie | G46: ='Startovní listina'!E11 -> 1954 | H46: ='Startovní listina'!F11 -> Křižanov | I46: 02:45:37
A47: =IF('Výsledková listina (2)'!D46<>"",A46+1,"") ->  | C47: ='Startovní listina'!G89 ->  | D47: ='Startovní listina'!B89 ->  | E47: ='Startovní listina'!C89 ->  | F47: ='Startovní listina'!D89 ->  | G47: ='Startovní listina'!E89 ->  | H47: ='Startovní listina'!F89 ->  | I47: 02:23:07
A48: =IF('Výsledková listina (2)'!D47<>"",A47+1,"") ->  | C48: ='Startovní listina'!G93 ->  | D48: ='Startovní listina'!B93 ->  | E48: ='Startovní listina'!C93 ->  | F48: ='Startovní listina'!D93 ->  | G48: ='Startovní listina'!E93 ->  | H48: ='Startovní listina'!F93 -> 
A49: =IF('Výsledková listina (2)'!D48<>"",A48+1,"") ->  | C49: ='Startovní listina'!G78 ->  | D49: ='Startovní listina'!B78 ->  | E49: ='Startovní listina'!C78 ->  | F49: ='Startovní listina'!D78 ->  | G49: ='Startovní listina'!E78 ->  | H49: ='Startovní listina'!F78 ->  | I49: 02:49:04
A50: =IF('Výsledková listina (2)'!D49<>"",A49+1,"") ->  | C50: ='Startovní listina'!G35 -> G | D50: ='Startovní listina'!B35 -> 40 | E50: ='Startovní listina'!C35 -> Hanslová | F50: ='Startovní listina'!D35 -> Lenka | G50: ='Startovní listina'!E35 -> 1973 | H50: ='Startovní listina'!F35 -> Žďár nad Sázavou | I50: 02:31:40
A51: =IF('Výsledková listina (2)'!D50<>"",A50+1,"") ->  | C51: ='Startovní listina'!G36 -> H | D51: ='Startovní listina'!B36 -> 41 | E51: ='Startovní listina'!C36 -> Křižovičová | F51: ='Startovní listina'!D36 -> Hana | G51: ='Startovní listina'!E36 -> 1971 | H51: ='Startovní listina'!F36 -> Nové Město na Moravě
A52: =IF('Výsledková listina (2)'!D51<>"",A51+1,"") ->  | C52: ='Startovní listina'!G29 -> B | D52: ='Startovní listina'!B29 -> 33 | E52: ='Startovní listina'!C29 -> Klíma | F52: ='Startovní listina'!D29 -> Miroslav | G52: ='Startovní listina'!E29 -> 1975 | H52: ='Startovní listina'!F29 -> Brno | I52: 02:19:07
A53: =IF('Výsledková listina (2)'!D52<>"",A52+1,"") ->  | C53: ='Startovní listina'!G86 ->  | D53: ='Startovní listina'!B86 ->  | E53: ='Startovní listina'!C86 ->  | F53: ='Startovní listina'!D86 ->  | G53: ='Startovní listina'!E86 ->  | H53: ='Startovní listina'!F86 ->  | I53: 02:21:00
A54: =IF('Výsledková listina (2)'!D53<>"",A53+1,"") ->  | C54: ='Startovní listina'!G17 -> A | D54: ='Startovní listina'!B17 -> 17 | E54: ='Startovní listina'!C17 -> Ptáček | F54: ='Startovní listina'!D17 -> Michal | G54: ='Startovní listina'!E17 -> 1986 | H54: ='Startovní listina'!F17 -> člen nadšenců parku Lužánky | I54: 03:06:22
A55: =IF('Výsledková listina (2)'!D54<>"",A54+1,"") ->  | C55: ='Startovní listina'!G37 -> D | D55: ='Startovní listina'!B37 -> 42 | E55: ='Startovní listina'!C37 -> Mareš | F55: ='Startovní listina'!D37 -> Bohumil | G55: ='Startovní listina'!E37 -> 1951 | H55: ='Startovní listina'!F37 -> LEAR Brno | I55: 02:32:28
A56: =IF('Výsledková listina (2)'!D55<>"",A55+1,"") ->  | C56: ='Startovní listina'!G32 -> B | D56: ='Startovní listina'!B32 -> 36 | E56: ='Startovní listina'!C32 -> Fanfrdla | F56: ='Startovní listina'!D32 -> Ctirad | G56: ='Startovní listina'!E32 -> 1974 | H56: ='Startovní listina'!F32 -> Silůvky | I56: 02:59:30
A57: =IF('Výsledková listina (2)'!D56<>"",A56+1,"") ->  | C57: ='Startovní listina'!G58 -> B | D57: ='Startovní listina'!B58 -> 75 | E57: ='Startovní listina'!C58 -> Kratochvíl | F57: ='Startovní listina'!D58 -> Jaroslav | G57: ='Startovní listina'!E58 -> 1977 | H57: ='Startovní listina'!F58 -> SDH Hluboké | I57: 02:07:54
A58: =IF('Výsledková listina (2)'!D57<>"",A57+1,"") ->  | C58: ='Startovní listina'!G26 -> B | D58: ='Startovní listina'!B26 -> 28 | E58: ='Startovní listina'!C26 -> Pučálka | F58: ='Startovní listina'!D26 -> Radek | G58: ='Startovní listina'!E26 -> 1973 | H58: ='Startovní listina'!F26 -> Železárny Štěpánov s.r.o | I58: 03:06:38
A59: =IF('Výsledková listina (2)'!D58<>"",A58+1,"") ->  | C59: ='Startovní listina'!G52 -> A | D59: ='Startovní listina'!B52 -> 64 | E59: ='Startovní listina'!C52 -> Kohut | F59: ='Startovní listina'!D52 -> Jan | G59: ='Startovní listina'!E52 -> 1985 | H59: ='Startovní listina'!F52 -> MAX-TRAINING.CZ | I59: 03:14:48
A60: =IF('Výsledková listina (2)'!D59<>"",A59+1,"") ->  | C60: ='Startovní listina'!G66 -> A | D60: ='Startovní listina'!B66 -> 85 | E60: ='Startovní listina'!C66 -> Příhoda | F60: ='Startovní listina'!D66 -> Jan | G60: ='Startovní listina'!E66 -> 1983 | H60: ='Startovní listina'!F66 -> Ždánice | I60: 02:46:48
A61: =IF('Výsledková listina (2)'!D60<>"",A60+1,"") ->  | C61: ='Startovní listina'!G31 -> F | D61: ='Startovní listina'!B31 -> 35 | E61: ='Startovní listina'!C31 -> Bartoňková | F61: ='Startovní listina'!D31 -> Nina | G61: ='Startovní listina'!E31 -> 1990 | H61: ='Startovní listina'!F31 -> Fan Brno | I61: 02:38:44
A62: =IF('Výsledková listina (2)'!D61<>"",A61+1,"") ->  | C62: ='Startovní listina'!G92 ->  | D62: ='Startovní listina'!B92 ->  | E62: ='Startovní listina'!C92 ->  | F62: ='Startovní listina'!D92 ->  | G62: ='Startovní listina'!E92 ->  | H62: ='Startovní listina'!F92 ->  | I62: 03:04:27
A63: =IF('Výsledková listina (2)'!D62<>"",A62+1,"") ->  | C63: ='Startovní listina'!G45 -> C | D63: ='Startovní listina'!B45 -> 54 | E63: ='Startovní listina'!C45 -> Drózd | F63: ='Startovní listina'!D45 -> Januš | G63: ='Startovní listina'!E45 -> 1962 | H63: ='Startovní listina'!F45 -> Velké Přílepy | I63: 03:21:11
A64: =IF('Výsledková listina (2)'!D63<>"",A63+1,"") ->  | C64: ='Startovní listina'!G34 -> D | D64: ='Startovní listina'!B34 -> 38 | E64: ='Startovní listina'!C34 -> Chromý | F64: ='Startovní listina'!D34 -> Bořivoj | G64: ='Startovní listina'!E34 -> 1953 | H64: ='Startovní listina'!F34 -> Tišnov | I64: 03:00:59
A65: =IF('Výsledková listina (2)'!D64<>"",A64+1,"") ->  | C65: ='Startovní listina'!G8 -> G | D65: ='Startovní listina'!B8 -> 5 | E65: ='Startovní listina'!C8 -> Komárková | F65: ='Startovní listina'!D8 -> Zdeňka | G65: ='Startovní listina'!E8 -> 1974 | H65: ='Startovní listina'!F8 -> SDH Bolešín | I65: 03:30:08
A66: =IF('Výsledková listina (2)'!D65<>"",A65+1,"") ->  | C66: ='Startovní listina'!G73 ->  | D66: ='Startovní listina'!B73 ->  | E66: ='Startovní listina'!C73 ->  | F66: ='Startovní listina'!D73 ->  | G66: ='Startovní listina'!E73 ->  | H66: ='Startovní listina'!F73 ->  | I66: 03:01:32
A67: =IF('Výsledková listina (2)'!D66<>"",A66+1,"") ->  | C67: ='Startovní listina'!G27 -> F | D67: ='Startovní listina'!B27 -> 30 | E67: ='Startovní listina'!C27 -> Křípalová | F67: ='Startovní listina'!D27 -> Renata | G67: ='Startovní listina'!E27 -> 1983 | H67: ='Startovní listina'!F27 -> Třebíč | I67: 02:05:07
A68: =IF('Výsledková listina (2)'!D67<>"",A67+1,"") ->  | C68: ='Startovní listina'!G70 ->  | D68: ='Startovní listina'!B70 ->  | E68: ='Startovní listina'!C70 ->  | F68: ='Startovní listina'!D70 ->  | G68: ='Startovní listina'!E70 ->  | H68: ='Startovní listina'!F70 ->  | I68: 02:57:35
A69: =IF('Výsledková listina (2)'!D68<>"",A68+1,"") ->  | C69: ='Startovní listina'!G51 -> C | D69: ='Startovní listina'!B51 -> 63 | E69: ='Startovní listina'!C51 -> Münster | F69: ='Startovní listina'!D51 -> Libor | G69: ='Startovní listina'!E51 -> 1966 | H69: ='Startovní listina'!F51 -> Blansko | I69: 02:19:36
A70: =IF('Výsledková listina (2)'!D69<>"",A69+1,"") ->  | C70: ='Startovní listina'!G98 ->  | D70: ='Startovní listina'!B98 ->  | E70: ='Startovní listina'!C98 ->  | F70: ='Startovní listina'!D98 ->  | G70: ='Startovní listina'!E98 ->  | H70: ='Startovní listina'!F98 ->  | I70: 01:54:34
A71: =IF('Výsledková listina (2)'!D70<>"",A70+1,"") ->  | C71: ='Startovní listina'!G50 -> A | D71: ='Startovní listina'!B50 -> 62 | E71: ='Startovní listina'!C50 -> Tomek | F71: ='Startovní listina'!D50 -> Pavel | G71: ='Startovní listina'!E50 -> 1980 | H71: ='Startovní listina'!F50 -> Brno | I71: 02:21:57
A72: =IF('Výsledková listina (2)'!D71<>"",A71+1,"") ->  | C72: ='Startovní listina'!G21 -> F | D72: ='Startovní listina'!B21 -> 22 | E72: ='Startovní listina'!C21 -> Ďurdiaková | F72: ='Startovní listina'!D21 -> Tereza | G72: ='Startovní listina'!E21 -> 1991 | H72: ='Startovní listina'!F21 -> AK OLYMP Brno
A73: =IF('Výsledková listina (2)'!D72<>"",A72+1,"") ->  | C73: ='Startovní listina'!G6 -> G | D73: ='Startovní listina'!B6 -> 3 | E73: ='Startovní listina'!C6 -> Ježová | F73: ='Startovní listina'!D6 -> Martina | G73: ='Startovní listina'!E6 -> 1975 | H73: ='Startovní listina'!F6 -> Brno | I73: 02:40:25
A74: =IF('Výsledková listina (2)'!D73<>"",A73+1,"") ->  | C74: ='Startovní listina'!G48 -> G | D74: ='Startovní listina'!B48 -> 60 | E74: ='Startovní listina'!C48 -> Rokosová | F74: ='Startovní listina'!D48 -> Ivana | G74: ='Startovní listina'!E48 -> 1982 | H74: ='Startovní listina'!F48 -> Polička | I74: 02:21:35
A75: =IF('Výsledková listina (2)'!D74<>"",A74+1,"") ->  | C75: ='Startovní listina'!G97 ->  | D75: ='Startovní listina'!B97 ->  | E75: ='Startovní listina'!C97 ->  | F75: ='Startovní listina'!D97 ->  | G75: ='Startovní listina'!E97 ->  | H75: ='Startovní listina'!F97 ->  | I75: 03:14:54
A76: =IF('Výsledková listina (2)'!D75<>"",A75+1,"") ->  | C76: ='Startovní listina'!G22 -> B | D76: ='Startovní listina'!B22 -> 23 | E76: ='Startovní listina'!C22 -> Šorf | F76: ='Startovní listina'!D22 -> Ivo | G76: ='Startovní listina'!E22 -> 1975 | H76: ='Startovní listina'!F22 -> ABND Racing Team Bystřice n. P. | I76: 02:25:09
A77: =IF('Výsledková listina (2)'!D76<>"",A76+1,"") ->  | C77: ='Startovní listina'!G82 ->  | D77: ='Startovní listina'!B82 ->  | E77: ='Startovní listina'!C82 ->  | F77: ='Startovní listina'!D82 ->  | G77: ='Startovní listina'!E82 ->  | H77: ='Startovní listina'!F82 ->  | I77: 02:50:59
A78: =IF('Výsledková listina (2)'!D77<>"",A77+1,"") ->  | C78: ='Startovní listina'!G96 ->  | D78: ='Startovní listina'!B96 ->  | E78: ='Startovní listina'!C96 ->  | F78: ='Startovní listina'!D96 ->  | G78: ='Startovní listina'!E96 ->  | H78: ='Startovní listina'!F96 ->  | I78: 03:12:26
A79: =IF('Výsledková listina (2)'!D78<>"",A78+1,"") ->  | C79: ='Startovní listina'!G30 -> B | D79: ='Startovní listina'!B30 -> 34 | E79: ='Startovní listina'!C30 -> Fanfrdla | F79: ='Startovní listina'!D30 -> Dalimil | G79: ='Startovní listina'!E30 -> 1973 | H79: ='Startovní listina'!F30 -> Matyteam Brno | I79: 02:37:53
A80: =IF('Výsledková listina (2)'!D79<>"",A79+1,"") ->  | C80: ='Startovní listina'!G64 -> C | D80: ='Startovní listina'!B64 -> 83 | E80: ='Startovní listina'!C64 -> Zourek | F80: ='Startovní listina'!D64 -> Karel | G80: ='Startovní listina'!E64 -> 1959 | H80: ='Startovní listina'!F64 -> Bedřichovice | I80: 03:18:47
A81: =IF('Výsledková listina (2)'!D80<>"",A80+1,"") ->  | C81: ='Startovní listina'!G39 -> G | D81: ='Startovní listina'!B39 -> 45 | E81: ='Startovní listina'!C39 -> Bojanovská | F81: ='Startovní listina'!D39 -> Alena | G81: ='Startovní listina'!E39 -> 1975 | H81: ='Startovní listina'!F39 -> Žďár nad Sázavou | I81: 02:07:35
A82: =IF('Výsledková listina (2)'!D81<>"",A81+1,"") ->  | C82: ='Startovní listina'!G56 -> G | D82: ='Startovní listina'!B56 -> 72 | E82: ='Startovní listina'!C56 -> Mlčáková | F82: ='Startovní listina'!D56 -> Hana | G82: ='Startovní listina'!E56 -> 1981 | H82: ='Startovní listina'!F56 -> Strážnice | I82: 02:24:19
A83: =IF('Výsledková listina (2)'!D82<>"",A82+1,"") ->  | C83: ='Startovní listina'!G83 ->  | D83: ='Startovní listina'!B83 ->  | E83: ='Startovní listina'!C83 ->  | F83: ='Startovní listina'!D83 ->  | G83: ='Startovní listina'!E83 ->  | H83: ='Startovní listina'!F83 ->  | I83: 02:31:15
A84: =IF('Výsledková listina (2)'!D83<>"",A83+1,"") ->  | C84: ='Startovní listina'!G61 -> A | D84: ='Startovní listina'!B61 -> 79 | E84: ='Startovní listina'!C61 -> Glier | F84: ='Startovní listina'!D61 -> Michal | G84: ='Startovní listina'!E61 -> 1982 | H84: ='Startovní listina'!F61 -> SDH Doubravník | I84: 02:27:55
A85: =IF('Výsledková listina (2)'!D84<>"",A84+1,"") ->  | C85: ='Startovní listina'!G95 ->  | D85: ='Startovní listina'!B95 ->  | E85: ='Startovní listina'!C95 ->  | F85: ='Startovní listina'!D95 ->  | G85: ='Startovní listina'!E95 ->  | H85: ='Startovní listina'!F95 ->  | I85: 02:34:44
A86: =IF('Výsledková listina (2)'!D85<>"",A85+1,"") ->  | C86: ='Startovní listina'!G65 -> D | D86: ='Startovní listina'!B65 -> 84 | E86: ='Startovní listina'!C65 -> Sedláček | F86: ='Startovní listina'!D65 -> Svatopluk | G86: ='Startovní listina'!E65 -> 1957 | H86: ='Startovní listina'!F65 -> AC Moravská Slavia Brno | I86: 02:58:55
A87: =IF('Výsledková listina (2)'!D86<>"",A86+1,"") ->  | C87: ='Startovní listina'!G43 -> B | D87: ='Startovní listina'!B43 -> 49 | E87: ='Startovní listina'!C43 -> Ondráček | F87: ='Startovní listina'!D43 -> Tomáš | G87: ='Startovní listina'!E43 -> 1977 | H87: ='Startovní listina'!F43 -> Brno | I87: 02:32:49
A88: =IF('Výsledková listina (2)'!D87<>"",A87+1,"") ->  | C88: ='Startovní listina'!G33 -> C | D88: ='Startovní listina'!B33 -> 37 | E88: ='Startovní listina'!C33 -> Bělehrádek | F88: ='Startovní listina'!D33 -> Pavel | G88: ='Startovní listina'!E33 -> 1958 | H88: ='Startovní listina'!F33 -> TJ Čolek
A89: =IF('Výsledková listina (2)'!D88<>"",A88+1,"") ->  | C89: ='Startovní listina'!G76 ->  | D89: ='Startovní listina'!B76 ->  | E89: ='Startovní listina'!C76 ->  | F89: ='Startovní listina'!D76 ->  | G89: ='Startovní listina'!E76 ->  | H89: ='Startovní listina'!F76 ->  | I89: 03:18:56
A90: =IF('Výsledková listina (2)'!D89<>"",A89+1,"") ->  | C90: ='Startovní listina'!G12 -> E | D90: ='Startovní listina'!B12 -> 10 | E90: ='Startovní listina'!C12 -> Holý | F90: ='Startovní listina'!D12 -> Josef | G90: ='Startovní listina'!E12 -> 1941 | H90: ='Startovní listina'!F12 -> AC Moravská Slavia Brno | I90: 02:05:40
A91: =IF('Výsledková listina (2)'!D90<>"",A90+1,"") ->  | C91: ='Startovní listina'!G24 -> H | D91: ='Startovní listina'!B24 -> 26 | E91: ='Startovní listina'!C24 -> Šedová | F91: ='Startovní listina'!D24 -> Věra | G91: ='Startovní listina'!E24 -> 1964 | H91: ='Startovní listina'!F24 -> Praha | I91: 02:08:44
A92: =IF('Výsledková listina (2)'!D91<>"",A91+1,"") ->  | C92: ='Startovní listina'!G16 -> C | D92: ='Startovní listina'!B16 -> 14 | E92: ='Startovní listina'!C16 -> Zouhar | F92: ='Startovní listina'!D16 -> Libor | G92: ='Startovní listina'!E16 -> 1958 | H92: ='Startovní listina'!F16 -> Brno-Líšeň
A93: =IF('Výsledková listina (2)'!D92<>"",A92+1,"") ->  | C93: ='Startovní listina'!G88 ->  | D93: ='Startovní listina'!B88 ->  | E93: ='Startovní listina'!C88 ->  | F93: ='Startovní listina'!D88 ->  | G93: ='Startovní listina'!E88 ->  | H93: ='Startovní listina'!F88 ->  | I93: 02:53:55
A94: =IF('Výsledková listina (2)'!D93<>"",A93+1,"") ->  | C94: ='Startovní listina'!G90 ->  | D94: ='Startovní listina'!B90 ->  | E94: ='Startovní listina'!C90 ->  | F94: ='Startovní listina'!D90 ->  | G94: ='Startovní listina'!E90 ->  | H94: ='Startovní listina'!F90 ->  | I94: 02:55:52
A95: =IF('Výsledková listina (2)'!D94<>"",A94+1,"") ->  | C95: ='Startovní listina'!G25 -> B | D95: ='Startovní listina'!B25 -> 27 | E95: ='Startovní listina'!C25 -> Žličař | F95: ='Startovní listina'!D25 -> Karel | G95: ='Startovní listina'!E25 -> 1977 | H95: ='Startovní listina'!F25 -> Železárny Štěpánov s.r.o | I95: 03:04:10
A96: =IF('Výsledková listina (2)'!D95<>"",A95+1,"") ->  | C96: ='Startovní listina'!G72 ->  | D96: ='Startovní listina'!B72 ->  | E96: ='Startovní listina'!C72 ->  | F96: ='Startovní listina'!D72 ->  | G96: ='Startovní listina'!E72 ->  | H96: ='Startovní listina'!F72 -> 
A97: =IF('Výsledková listina (2)'!D96<>"",A96+1,"") ->  | C97: ='Startovní listina'!G13 -> G | D97: ='Startovní listina'!B13 -> 11 | E97: ='Startovní listina'!C13 -> Dostálová | F97: ='Startovní listina'!D13 -> Vendula | G97: ='Startovní listina'!E13 -> 1981 | H97: ='Startovní listina'!F13 -> Digitor.cz | I97: 02:40:16
A98: =IF('Výsledková listina (2)'!D97<>"",A97+1,"") ->  | C98: ='Startovní listina'!G10 -> C | D98: ='Startovní listina'!B10 -> 8 | E98: ='Startovní listina'!C10 -> Chramosta | F98: ='Startovní listina'!D10 -> Jaroslav | G98: ='Startovní listina'!E10 -> 1966 | H98: ='Startovní listina'!F10 -> JABOJA Team Dobrná | I98: 03:00:21
A99: =IF('Výsledková listina (2)'!D98<>"",A98+1,"") ->  | C99: ='Startovní listina'!G99 ->  | D99: ='Startovní listina'!B99 ->  | E99: ='Startovní listina'!C99 ->  | F99: ='Startovní listina'!D99 ->  | G99: ='Startovní listina'!E99 ->  | H99: ='Startovní listina'!F99 -> 
A100: =IF('Výsledková listina (2)'!D99<>"",A99+1,"") ->  | C100: ='Startovní listina'!G100 ->  | D100: ='Startovní listina'!B100 ->  | E100: ='Startovní listina'!C100 ->  | F100: ='Startovní listina'!D100 ->  | G100: ='Startovní listina'!E100 ->  | H100: ='Startovní listina'!F100 -> 
A101: =IF('Výsledková listina (2)'!D100<>"",A100+1,"") ->  | C101: ='Startovní listina'!G101 ->  | D101: ='Startovní listina'!B101 ->  | E101: ='Startovní listina'!C101 ->  | F101: ='Startovní listina'!D101 ->  | G101: ='Startovní listina'!E101 ->  | H101: ='Startovní listina'!F101 -> 
A102: =IF('Výsledková listina (2)'!D101<>"",A101+1,"") ->  | C102: ='Startovní listina'!G102 ->  | D102: ='Startovní listina'!B102 ->  | E102: ='Startovní listina'!C102 ->  | F102: ='Startovní listina'!D102 ->  | G102: ='Startovní listina'!E102 ->  | H102: ='Startovní listina'!F102 -> 
A103: =IF('Výsledková listina (2)'!D102<>"",A102+1,"") ->  | C103: ='Startovní listina'!G103 ->  | D103: ='Startovní listina'!B103 ->  | E103: ='Startovní listina'!C103 ->  | F103: ='Startovní listina'!D103 ->  | G103: ='Startovní listina'!E103 ->  | H103: ='Startovní listina'!F103 -> 
